Workbook

Sheet Assumptions
A2: Gold Dust Expansion: Assumptions
B5: Gold Spot Pricing Assumptions
B6: This section outlines key spot pricing assumptions
C9: Case Selected | E9: =Scenario!$O$12 -> Base | L9: 2 | M9: 3 | N9: 4 | O9: 1 | P9: 2 | Q9: 3 | R9: 4 | S9: 1 | T9: 2 | U9: 3 | V9: 4
C10: Price Case | I10: 17Q3 | J10: 17Q4 | K10: 18Q1 | L10: 18Q2 | M10: 18Q3 | N10: 18Q4 | O10: 19Q1 | P10: 19Q2 | Q10: 19Q3 | R10: 19Q4 | S10: 20Q1 | T10: 20Q2 | U10: 20Q3 | V10: 20Q4 | W10: 21Q1 | X10: 21Q2 | Y10: 21Q3 | Z10: 21Q4
B11: =IF(Scenario!$O$12=$C$11,1,0) -> 1 | C11: Base | D11: USD/Oz | E11: Value Changes of 0% | I11: 1350 | J11: 1350 | K11: 1350 | L11: =D18 -> 1284.8 | M11: =E20 -> 1290.9 | N11: =E23 -> 1302.65 | O11: =D24 -> 1308.6 | P11: =E26 -> 1314.65 | Q11: =D27 -> 1320.9 | R11: =D28 -> 1327.05 | S11: =D29 -> 1333.2 | T11: =D30 -> 1339.25 | U11: =D31 -> 1345.3 | V11: =D32 -> 1351.45 | W11: =D33 -> 1357.6 | X11: =D34 -> 1363.65 | Y11: =D35 -> 1369.7 | Z11: =D36 -> 1376.2
B12: =IF(Scenario!$O$12=$C$12,1,0) -> 0 | C12: Pessimistic | D12: USD/Oz | E12: Adverse Changes of 20% | I12: =I11*0.8 -> 1080 | J12: =J11*0.8 -> 1080 | K12: =K11*0.8 -> 1080 | L12: =L11*0.8 -> 1027.84 | M12: =M11*0.8 -> 1032.72 | N12: 1042.12 | O12: 1046.88 | P12: 1051.72 | Q12: 1056.72 | R12: 1061.64 | S12: 1066.56 | T12: 1071.4 | U12: 1076.24 | V12: 1081.16 | W12: 1086.08 | X12: 1090.92 | Y12: 1095.76 | Z12: 1100.96
B13: =IF(Scenario!$O$12=$C$13,1,0) -> 0 | C13: Optimistic | D13: USD/Oz | E13: Favourable Changes of 20% | H13: Sensitivity | I13: =I11*1.2 -> 1620 | J13: =J11*1.2 -> 1620 | K13: =K11*1.2 -> 1620 | L13: =L11*1.2 -> 1541.76 | M13: =M11*1.2 -> 1549.08 | N13: 1563.18 | O13: 1570.32 | P13: 1577.58 | Q13: 1585.08 | R13: 1592.46 | S13: 1599.84 | T13: 1607.1 | U13: 1614.36 | V13: 1621.74 | W13: 1629.12 | X13: 1636.38 | Y13: 1643.64 | Z13: 1651.44
C14: Applied case | D14: USD/Oz | H14: =Scenario!E15 -> 0 | I14: =I11*(1+$H$14) -> 1350 | J14: =J11*(1+$H$14) -> 1350 | K14: =K11*(1+$H$14) -> 1350 | L14: =L11*(1+$H$14) -> 1284.8 | M14: =M11*(1+$H$14) -> 1290.9 | N14: =D21*(1+H14) -> 1296.8 | O14: =E23*(1+H14) -> 1302.65 | P14: =D24*(1+H14) -> 1308.6 | Q14: =E26*(1+H14) -> 1314.65 | R14: =D27*(1+H14) -> 1320.9 | S14: =D28*(1+H14) -> 1327.05 | T14: =D29*(1+H14) -> 1333.2 | U14: =D30*(1+H14) -> 1339.25 | V14: =D31*(1+H14) -> 1345.3 | W14: =D32*(1+H14) -> 1351.45 | X14: =D33*(1+H14) -> 1357.6 | Y14: =D34*(1+H14) -> 1363.65 | Z14: =D35*(1+H14) -> 1369.7
B16: Forecasted Spot Price Assumptions are based on the prices specified for Gold 100oz Future Contracts (sourced from Bloomberg 29/09/2017)
B17: Date | C17: Mid-Point | D17: Closing Price | E17: Mid-Point
B18: 2017-12-01 | D18: 1284.8
B19: 2018-02-01 | D19: 1288.9
B20: 2018-04-01 | C20: 2018-03-01 | D20: 1292.9 | E20: =(D19+D20)/2 -> 1290.9
B21: 2018-06-01 | D21: 1296.8
B22: 2018-08-01 | D22: 1300.7
B23: 2018-10-01 | C23: 2018-09-01 | D23: 1304.6 | E23: =(D22+D23)/2 -> 1302.65
B24: 2018-12-01 | D24: 1308.6
B25: 2019-02-01 | D25: 1312.6
B26: 2019-04-01 | C26: 2018-03-01 | D26: 1316.7 | E26: =(D25+D26)/2 -> 1314.65
B27: 2019-06-01 | D27: 1320.9
B28: 2019-09-01 | D28: =(D27+D29)/2 -> 1327.05
B29: 2019-12-01 | D29: 1333.2
B30: 2020-03-01 | D30: =(D29+D31)/2 -> 1339.25
B31: 2020-06-01 | D31: 1345.3
B32: 2020-09-01 | D32: =(D31+D33)/2 -> 1351.45
B33: 2020-12-01 | D33: 1357.6
B34: 2021-03-01 | D34: =(D33+D35)/2 -> 1363.65
B35: 2021-06-01 | D35: 1369.7
B36: 2021-09-01 | D36: =(D35+D37)/2 -> 1376.2
B37: 2021-12-01 | D37: 1382.7
B41: Gold Mine Production Assumptions
B43: This section outlines key mine production assumptions | G43: 17Q3 | H43: 17Q4 | I43: 18Q1 | J43: 18Q2 | K43: 18Q3 | L43: 18Q4 | M43: 19Q1 | N43: 19Q2 | O43: 19Q3 | P43: 19Q4 | Q43: 20Q1 | R43: 20Q2 | S43: 20Q3 | T43: 20Q4 | U43: 21Q1 | V43: 21Q2 | W43: 21Q3 | X43: 21Q4
B44: Figures represent Total Production (Pit A & Pit B) | G44: ='Base Model'!D26 -> 250 | H44: ='Base Model'!E26 -> 243.75 | I44: ='Base Model'!F26 -> 237.65625 | J44: ='Base Model'!G26 -> 231.7148438 | K44: ='Base Model'!H26 -> 225.9219727 | L44: ='Base Model'!I26 -> 220.2739233 | M44: ='Base Model'!J26 -> 214.7670753 | N44: ='Base Model'!K26 -> 209.3978984 | O44: ='Base Model'!L26 -> 214.1629509 | P44: ='Base Model'!M26 -> 249.0588771 | Q44: ='Base Model'!N26 -> 344.0824052 | R44: ='Base Model'!O26 -> 439.2303451 | S44: ='Base Model'!P26 -> 434.4995865 | T44: ='Base Model'!Q26 -> 429.8870968 | U44: ='Base Model'!R26 -> 425.3899194 | V44: ='Base Model'!S26 -> 421.0051714 | W44: ='Base Model'!T26 -> 416.7300421 | X44: ='Base Model'!U26 -> 412.5617911
B45: Are to remain static
B47: Forex (AUD/USD) Assumptions
B48: This section outlines key Forex pricing assumptions. Uses AUD FX Futures to forecast AUD/USD rate
G49: 17Q3 | H49: 17Q4 | I49: 18Q1 | J49: 18Q2 | K49: 18Q3 | L49: 18Q4 | M49: 19Q1 | N49: 19Q2 | O49: 19Q3 | P49: 19Q4 | Q49: 20Q1 | R49: 20Q2 | S49: 20Q3 | T49: 20Q4 | U49: 21Q1 | V49: 21Q2 | W49: 21Q3 | X49: 21Q4
B50: Price | C50: AUD/USD | G50: 0.7 | H50: 0.7 | I50: 0.7 | J50: 0.7836 | K50: 0.7829 | L50: 0.7821 | M50: 0.7812 | N50: 0.7803 | O50: 0.7793 | P50: 0.7784 | Q50: 0.7784 | R50: 0.7784 | S50: 0.7784 | T50: 0.7784 | U50: 0.7784 | V50: 0.7784 | W50: 0.7784 | X50: 0.7784
B51: (Sourced from Bloomberg 29/09/2017)
B54: Additional Assumptions
B56: 1) Discount Rate for Gold Mine = 5%
B57: 2) Use of Hedging doesn't begin until 18Q2 - All figures pre-18Q2 are fixed per Assignment Brief
B58: 3) No use of Forward Contracts as Banks will most likely discount their forward rates due to probability of Default being high
B59: 4) No additional Financing or Equity raising allowed
B60: 5) Inflation is fixed at 2% p.a
B61: 6) Gold Prices & FX (AUD/USD) are uncorrelated for the sake of the set Model Parameters
B62: 7) Over-the-Counter financial instruments are off-limit due to their unreliability in observing pricing with resources on hand

Sheet Base Model
B4: Assumptions
B5: Start Year | F5: 2017
B6: Start Quarter | F6: 3
B7: Pit A Initial Production Rate | F7: 250 | G7: k oz/ qtr
B8: Pit A Decline Rate | F8: 0.025 | G8: % / qrt
B9: Avg. Gold Price | F9: =IF(('Monte Carlo Simulation (1000)'!$L$2="Simulate"),(1300*(1+'Monte Carlo Simulation (1000)'!$N$5)),(1300*(1+Scenario!$E$15))) -> 1300 | G9: US$ / oz
B10: Avg. AUD Rate | F10: =IF(('Monte Carlo Simulation (1000)'!$L$2="Simulate"),(0.78*(1+'Monte Carlo Simulation (1000)'!$N$6)),(0.78*(1+Scenario!$E$14))) -> 0.78 | G10: AUDUSD
B11: Expansion CapEX | F11: 125 | G11: AUD MM / qrt
B12: Cost Inflation | F12: =2% -> 0.02 | G12: % pa
B13: DA | F13: 20 | G13: AUD MM
B14: Tax Rate | F14: 0.3
B15: Debt | F15: 1000 | G15: AUD MM
B16: Cost of Debt | F16: =IF(('Monte Carlo Simulation (1000)'!$N$7="Simulate"),(6%*(1+'Monte Carlo Simulation (1000)'!$N$7)),(6%*(1+Scenario!$E$13))) -> 0.06 | G16: $ pa | H16: LIBOR + 500bps
B19: Year | D19: =F5 -> 2017 | E19: =D19+IF(E20=1,1,0) -> 2017 | F19: 2018 | G19: 2018 | H19: 2018 | I19: 2018 | J19: 2019 | K19: 2019 | L19: 2019 | M19: 2019 | N19: 2020 | O19: 2020 | P19: 2020 | Q19: 2020 | R19: 2021 | S19: 2021 | T19: 2021 | U19: 2021
B20: Quarter | D20: =F6 -> 3 | E20: =MOD(D20,4)+1 -> 4 | F20: 1 | G20: 2 | H20: 3 | I20: 4 | J20: 1 | K20: 2 | L20: 3 | M20: 4 | N20: 1 | O20: 2 | P20: 3 | Q20: 4 | R20: 1 | S20: 2 | T20: 3 | U20: 4
B22: Production Profile | D22: =MOD(D$19,100)&"Q"&D$20 -> 17Q3 | E22: 17Q4 | F22: 18Q1 | G22: 18Q2 | H22: 18Q3 | I22: 18Q4 | J22: 19Q1 | K22: 19Q2 | L22: 19Q3 | M22: 19Q4 | N22: 20Q1 | O22: 20Q2 | P22: 20Q3 | Q22: 20Q4 | R22: 21Q1 | S22: 21Q2 | T22: 21Q3 | U22: 21Q4
B24: Pit A | C24: k oz | D24: =F7 -> 250 | E24: =(1-$F$8)*D24 -> 243.75 | F24: 237.65625 | G24: 231.7148438 | H24: 225.9219727 | I24: 220.2739233 | J24: 214.7670753 | K24: 209.3978984 | L24: 204.1629509 | M24: 199.0588771 | N24: 194.0824052 | O24: 189.2303451 | P24: 184.4995865 | Q24: 179.8870968 | R24: 175.3899194 | S24: 171.0051714 | T24: 166.7300421 | U24: 162.5617911
B25: Pit B | C25: k oz | D25: 0 | E25: 0 | F25: 0 | G25: 0 | H25: 0 | I25: 0 | J25: 0 | K25: 0 | L25: 10 | M25: 50 | N25: 150 | O25: 250 | P25: =O25 -> 250 | Q25: 250 | R25: 250 | S25: 250 | T25: 250 | U25: 250
B26: Total | C26: k oz | D26: =SUM(D24:D25) -> 250 | E26: 243.75 | F26: 237.65625 | G26: 231.7148438 | H26: 225.9219727 | I26: 220.2739233 | J26: 214.7670753 | K26: 209.3978984 | L26: 214.1629509 | M26: 249.0588771 | N26: 344.0824052 | O26: 439.2303451 | P26: 434.4995865 | Q26: 429.8870968 | R26: 425.3899194 | S26: 421.0051714 | T26: 416.7300421 | U26: 412.5617911
B28: Price Profile | D28: =MOD(D$19,100)&"Q"&D$20 -> 17Q3 | E28: 17Q4 | F28: 18Q1 | G28: 18Q2 | H28: 18Q3 | I28: 18Q4 | J28: 19Q1 | K28: 19Q2 | L28: 19Q3 | M28: 19Q4 | N28: 20Q1 | O28: 20Q2 | P28: 20Q3 | Q28: 20Q4 | R28: 21Q1 | S28: 21Q2 | T28: 21Q3 | U28: 21Q4
B30: Avg. Gold Price | C30: US$ / oz | D30: 1350 | E30: =D30 -> 1350 | F30: =D30 -> 1350 | G30: =$F$9 -> 1300 | H30: 1300 | I30: 1300 | J30: 1300 | K30: 1300 | L30: 1300 | M30: 1300 | N30: 1300 | O30: 1300 | P30: 1300 | Q30: 1300 | R30: 1300 | S30: 1300 | T30: 1300 | U30: 1300
B31: Avg. AUD Rate | C31: AUDUSD | D31: 0.7 | E31: =D31 -> 0.7 | F31: =D31 -> 0.7 | G31: =$F$10 -> 0.78 | H31: 0.78 | I31: 0.78 | J31: 0.78 | K31: 0.78 | L31: 0.78 | M31: 0.78 | N31: 0.78 | O31: 0.78 | P31: 0.78 | Q31: 0.78 | R31: 0.78 | S31: 0.78 | T31: 0.78 | U31: 0.78
B33: Cost Profile | D33: =MOD(D$19,100)&"Q"&D$20 -> 17Q3 | E33: 17Q4 | F33: 18Q1 | G33: 18Q2 | H33: 18Q3 | I33: 18Q4 | J33: 19Q1 | K33: 19Q2 | L33: 19Q3 | M33: 19Q4 | N33: 20Q1 | O33: 20Q2 | P33: 20Q3 | Q33: 20Q4 | R33: 21Q1 | S33: 21Q2 | T33: 21Q3 | U33: 21Q4
B35: Pit A COGS | C35: AUD / oz | D35: 1270 | E35: 1270 | F35: =E35*(1+$F$12)^(1/4) -> 1276.302923 | G35: =F35*(1+$F$12)^(1/4) -> 1282.637127 | H35: 1289.002767 | I35: 1295.4 | J35: 1301.828982 | K35: 1308.28987 | L35: 1314.782823 | M35: 1321.308 | N35: 1327.865561 | O35: 1334.455667 | P35: 1341.078479 | Q35: 1347.73416 | R35: 1354.422872 | S35: 1361.14478 | T35: 1367.900049 | U35: 1374.688843
B36: Pit B COGS | C36: AUD / oz | D36: 1400 | E36: =D36 -> 1400 | F36: =E36*(1+$F$12)^(1/4) -> 1406.948104 | G36: 1413.930691 | H36: 1420.947933 | I36: 1428 | J36: 1435.087066 | K36: 1442.209305 | L36: 1449.366891 | M36: 1456.56 | N36: 1463.788808 | O36: 1471.053491 | P36: 1478.354229 | Q36: 1485.6912 | R36: 1493.064584 | S36: 1500.474561 | T36: 1507.921314 | U36: 1515.405024
B37: Expenses | C37: AUD MM | D37: 25 | E37: 25 | F37: =E37*(1+$F$12)^(1/4) -> 25.12407329 | G37: 25.24876235 | H37: 25.37407023 | I37: 25.5 | J37: 25.62655476 | K37: 25.75373759 | L37: 25.88155163 | M37: 26.01 | N37: 26.13908585 | O37: 26.26881234 | P37: 26.39918266 | Q37: 26.5302 | R37: 26.66186757 | S37: 26.79418859 | T37: 26.92716632 | U37: 27.060804
B39: Income Statement | D39: =MOD(D$19,100)&"Q"&D$20 -> 17Q3 | E39: 17Q4 | F39: 18Q1 | G39: 18Q2 | H39: 18Q3 | I39: 18Q4 | J39: 19Q1 | K39: 19Q2 | L39: 19Q3 | M39: 19Q4 | N39: 20Q1 | O39: 20Q2 | P39: 20Q3 | Q39: 20Q4 | R39: 21Q1 | S39: 21Q2 | T39: 21Q3 | U39: 21Q4
B41: Revenue | C41: AUD MM | D41: =D26/1000*D30/D31 -> 482.1428571 | E41: 470.0892857 | F41: =F26/1000*F30/F31 -> 458.3370536 | G41: =G26/1000*G30/G31 -> 386.1914062 | H41: 376.5366211 | I41: 367.1232056 | J41: =J26/1000*J30/J31 -> 357.9451254 | K41: 348.9964973 | L41: 356.9382515 | M41: =M26/1000*M30/M31 -> 415.0981286 | N41: 573.4706754 | O41: 732.0505751 | P41: 724.1659774 | Q41: 716.4784947 | R41: 708.983199 | S41: 701.6752857 | T41: 694.5500702 | U41: 687.6029851
B42: COGS | C42: AUD MM | D42: =-(D35*D24+D36*D25)/1000 -> -317.5 | E42: -309.5625 | F42: -303.3213666 | G42: -297.2060615 | H42: -291.214048 | I42: -285.3428403 | J42: -279.5900029 | K42: -273.9531492 | L42: -282.9236098 | M42: -335.8460868 | N42: -477.2836631 | O42: -620.2828792 | P42: -617.0169821 | Q42: -613.8627853 | R42: -610.8182643 | S42: -607.8814368 | T42: -605.0503612 | U42: -602.3231365
B43: Gross Profit | C43: AUD MM | D43: =SUM(D41:D42) -> 164.6428571 | E43: 160.5267857 | F43: 155.015687 | G43: 88.98534474 | H43: 85.32257311 | I43: 81.78036527 | J43: 78.35512257 | K43: 75.04334811 | L43: 74.01464169 | M43: 79.25204173 | N43: 96.1870123 | O43: 111.7676959 | P43: 107.1489953 | Q43: 102.6157094 | R43: 98.16493462 | S43: 93.7938489 | T43: 89.49970901 | U43: 85.2798486
B44: Expenses | C44: AUD MM | D44: =-D37 -> -25 | E44: -25 | F44: -25.12407329 | G44: -25.24876235 | H44: -25.37407023 | I44: -25.5 | J44: -25.62655476 | K44: -25.75373759 | L44: -25.88155163 | M44: -26.01 | N44: -26.13908585 | O44: -26.26881234 | P44: -26.39918266 | Q44: -26.5302 | R44: -26.66186757 | S44: -26.79418859 | T44: -26.92716632 | U44: -27.060804
B45: EBITDA | C45: AUD MM | D45: =SUM(D43:D44) -> 139.6428571 | E45: 135.5267857 | F45: 129.8916137 | G45: 63.73658239 | H45: 59.94850288 | I45: 56.28036527 | J45: 52.72856782 | K45: 49.28961052 | L45: 48.13309006 | M45: 53.24204173 | N45: 70.04792645 | O45: 85.49888358 | P45: 80.74981265 | Q45: 76.08550936 | R45: 71.50306706 | S45: 66.99966031 | T45: 62.57254269 | U45: 58.2190446
B46: DA | C46: AUD MM | D46: =-$F$13 -> -20 | E46: -20 | F46: -20 | G46: -20 | H46: -20 | I46: -20 | J46: -20 | K46: -20 | L46: -20 | M46: -20 | N46: -20 | O46: -20 | P46: -20 | Q46: -20 | R46: -20 | S46: -20 | T46: -20 | U46: -20
B47: EBIT | C47: AUD MM | D47: =SUM(D45:D46) -> 119.6428571 | E47: 115.5267857 | F47: 109.8916137 | G47: =SUM(G45:G46) -> 43.73658239 | H47: 39.94850288 | I47: 36.28036527 | J47: 32.72856782 | K47: 29.28961052 | L47: 28.13309006 | M47: 33.24204173 | N47: 50.04792645 | O47: 65.49888358 | P47: 60.74981265 | Q47: 56.08550936 | R47: 51.50306706 | S47: 46.99966031 | T47: 42.57254269 | U47: 38.2190446
B48: Interest | C48: AUD MM | D48: =-$F$16*$F$15/4 -> -15 | E48: -15 | F48: -15 | G48: -15 | H48: -15 | I48: -15 | J48: -15 | K48: -15 | L48: -15 | M48: -15 | N48: -15 | O48: -15 | P48: -15 | Q48: -15 | R48: -15 | S48: -15 | T48: -15 | U48: -15
B49: Taxes | C49: AUD MM | D49: =-$F$14*(SUM(D47:D48)) -> -31.39285714 | E49: -30.15803571 | F49: -28.46748411 | G49: =-$F$14*(SUM(G47:G48)) -> -8.620974718 | H49: -7.484550865 | I49: -6.384109582 | J49: -5.318570346 | K49: -4.286883155 | L49: -3.939927019 | M49: -5.472612519 | N49: -10.51437793 | O49: -15.14966507 | P49: -13.7249438 | Q49: -12.32565281 | R49: -10.95092012 | S49: -9.599898093 | T49: -8.271762808 | U49: -6.965713379
B50: NPAT | C50: AUD MM | D50: =SUM(D47:D49) -> 73.25 | E50: 70.36875 | F50: 66.4241296 | G50: 20.11560768 | H50: 17.46395202 | I50: 14.89625569 | J50: 12.40999747 | K50: 10.00272736 | L50: 9.193163044 | M50: 12.76942921 | N50: 24.53354851 | O50: 35.34921851 | P50: 32.02486886 | Q50: 28.75985656 | R50: 25.55214694 | S50: 22.39976222 | T50: 19.30077988 | U50: 16.25333122
B52: Statement of Cashflows | D52: =MOD(D$19,100)&"Q"&D$20 -> 17Q3 | E52: 17Q4 | F52: 18Q1 | G52: 18Q2 | H52: 18Q3 | I52: 18Q4 | J52: 19Q1 | K52: 19Q2 | L52: 19Q3 | M52: 19Q4 | N52: 20Q1 | O52: 20Q2 | P52: 20Q3 | Q52: 20Q4 | R52: 21Q1 | S52: 21Q2 | T52: 21Q3 | U52: 21Q4
B54: Cash at start of period | D54: 50 | E54: =D60 -> 117.25 | F54: 181.61875 | G54: 817.0428796 | H54: 706.1584873 | I54: 592.6224393 | J54: 476.518695 | K54: 357.9286925 | L54: 236.9314198 | M54: 115.1245829 | N54: -3.105987926 | O54: 15.42756059 | P54: 44.7767791 | Q54: 70.80164795 | R54: 93.56150451 | S54: 113.1136514 | T54: 129.5134137 | U54: 142.8141935
B56: Operating Cashflow | D56: =D50-(1-$F$14)*D46 -> 87.25 | E56: =E50-(1-$F$14)*E46 -> 84.36875 | F56: 80.4241296 | G56: 34.11560768 | H56: 31.46395202 | I56: 28.89625569 | J56: 26.40999747 | K56: 24.00272736 | L56: 23.19316304 | M56: 26.76942921 | N56: 38.53354851 | O56: 49.34921851 | P56: 46.02486886 | Q56: 42.75985656 | R56: 39.55214694 | S56: 36.39976222 | T56: 33.30077988 | U56: 30.25333122
B57: Investing Cashflows | D57: =-$F$13 -> -20 | E57: =-$F$13 -> -20 | F57: =-$F$13-$F$11 -> -145 | G57: -145 | H57: -145 | I57: -145 | J57: -145 | K57: -145 | L57: -145 | M57: -145 | N57: =-$F$13 -> -20 | O57: -20 | P57: -20 | Q57: -20 | R57: -20 | S57: -20 | T57: -20 | U57: -20
B58: Financing Casfhlows | D58: 0 | E58: 0 | F58: 700 | G58: 0 | H58: 0 | I58: 0 | J58: 0 | K58: 0 | L58: 0 | M58: 0 | N58: 0 | O58: 0 | P58: 0 | Q58: 0 | R58: 0 | S58: 0 | T58: 0 | U58: 0
B60: Cash at end of period | D60: =SUM(D54:D58) -> 117.25 | E60: 181.61875 | F60: 817.0428796 | G60: 706.1584873 | H60: 592.6224393 | I60: 476.518695 | J60: 357.9286925 | K60: 236.9314198 | L60: 115.1245829 | M60: -3.105987926 | N60: 15.42756059 | O60: 44.7767791 | P60: 70.80164795 | Q60: 93.56150451 | R60: 113.1136514 | S60: 129.5134137 | T60: 142.8141935 | U60: 153.0675248
B62: DCF Model | D62: =MOD(D$19,100)&"Q"&D$20 -> 17Q3 | E62: 17Q4 | F62: 18Q1 | G62: 18Q2 | H62: 18Q3 | I62: 18Q4 | J62: 19Q1 | K62: 19Q2 | L62: 19Q3 | M62: 19Q4 | N62: 20Q1 | O62: 20Q2 | P62: 20Q3 | Q62: 20Q4 | R62: 21Q1 | S62: 21Q2 | T62: 21Q3 | U62: 21Q4
B64: EBITDA | C64: $ | D64: =D45 -> 139.6428571 | E64: 135.5267857 | F64: 129.8916137 | G64: 63.73658239 | H64: 59.94850288 | I64: 56.28036527 | J64: 52.72856782 | K64: 49.28961052 | L64: 48.13309006 | M64: 53.24204173 | N64: 70.04792645 | O64: 85.49888358 | P64: 80.74981265 | Q64: 76.08550936 | R64: 71.50306706 | S64: 66.99966031 | T64: 62.57254269 | U64: 58.2190446 | W64: Free Cash Flows = Operating Cashflow - CapEx
B65: Less Adjustments:
B66: Capital Expenditdures | C66: $ | D66: 0 | E66: 0 | F66: =$F$11 -> 125 | G66: 125 | H66: 125 | I66: 125 | J66: 125 | K66: 125 | L66: 125 | M66: 125 | N66: 0 | O66: 0 | P66: 0 | Q66: 0 | R66: 0 | S66: 0 | T66: 0 | U66: 0
B67: Increase in NWC | C67: $ | D67: 0 | E67: 0 | F67: 0 | G67: 0 | H67: 0 | I67: 0 | J67: 0 | K67: 0 | L67: 0 | M67: 0 | N67: 0 | O67: 0 | P67: 0 | Q67: 0 | R67: 0 | S67: 0 | T67: 0 | U67: 0
B68: Taxes | C68: $ | D68: =D49*-1 -> 31.39285714 | E68: 30.15803571 | F68: 28.46748411 | G68: 8.620974718 | H68: 7.484550865 | I68: 6.384109582 | J68: 5.318570346 | K68: 4.286883155 | L68: 3.939927019 | M68: 5.472612519 | N68: 10.51437793 | O68: 15.14966507 | P68: 13.7249438 | Q68: 12.32565281 | R68: 10.95092012 | S68: 9.599898093 | T68: 8.271762808 | U68: 6.965713379
B69: Total Adjustments | C69: $ | D69: =SUM(D66:D68) -> 31.39285714 | E69: 30.15803571 | F69: 153.4674841 | G69: 133.6209747 | H69: 132.4845509 | I69: 131.3841096 | J69: 130.3185703 | K69: 129.2868832 | L69: 128.939927 | M69: 130.4726125 | N69: 10.51437793 | O69: 15.14966507 | P69: 13.7249438 | Q69: 12.32565281 | R69: 10.95092012 | S69: 9.599898093 | T69: 8.271762808 | U69: 6.965713379
B71: Free Cash Flow | D71: =D64-D69 -> 108.25 | E71: 105.36875 | F71: -23.5758704 | G71: -69.88439232 | H71: -72.53604798 | I71: -75.10374431 | J71: -77.59000253 | K71: -79.99727264 | L71: -80.80683696 | M71: -77.23057079 | N71: 59.53354851 | O71: 70.34921851 | P71: 67.02486886 | Q71: 63.75985656 | R71: 60.55214694 | S71: 57.39976222 | T71: 54.30077988 | U71: 51.25333122
B73: Discount Factor | C73: 0.05 | D73: =1 -> 1 | E73: =D73/1.05 -> 0.9523809524 | F73: 0.9070294785 | G73: 0.8638375985 | H73: 0.8227024748 | I73: 0.7835261665 | J73: 0.7462153966 | K73: 0.7106813301 | L73: 0.676839362 | M73: 0.6446089162 | N73: 0.6139132535 | O73: 0.5846792891 | P73: 0.5568374182 | Q73: 0.5303213506 | R73: 0.505067953 | S73: 0.4810170981 | T73: 0.458111522 | U73: 0.4362966876
B75: Discounted Cash Flow | D75: =D71*D73 -> 108.25 | E75: 100.3511905 | F75: -21.38400943 | G75: -60.36876564 | H75: -59.67558619 | I75: -58.84574887 | J75: -57.89885451 | K75: -56.85256813 | L75: -54.69324797 | M75: -49.78351453 | N75: 36.54843446 | O75: 41.13173107 | P75: 37.32195493 | Q75: 33.81321325 | R75: 30.5829489 | S75: 27.61026705 | T75: 24.87581292 | U75: 22.36165864
B76: Gold Mine NPV | C76: =SUM($D$75:$U$75) -> 43.34491642
B77: Gold Mine IRR
B79: Transaction NPV
B80: Purchase Price of Mine B | C80: =SUM(F80:M80) -> -1000 | D80: 0 | E80: 0 | F80: =-$F$11 -> -125 | G80: =-$F$11 -> -125 | H80: =-H66 -> -125 | I80: -125 | J80: -125 | K80: -125 | L80: -125 | M80: -125 | N80: 0 | O80: 0 | P80: 0 | Q80: 0 | R80: 0 | S80: 0 | T80: 0 | U80: 0 | W80: Note: Both a Negative NPV & Negative IRR.
B81: Undicounted FCF | C81: =SUM(H81:U81) -> 20.90903749 | D81: =D71 -> 108.25 | E81: 105.36875 | F81: -23.5758704 | G81: -69.88439232 | H81: -72.53604798 | I81: -75.10374431 | J81: -77.59000253 | K81: -79.99727264 | L81: -80.80683696 | M81: -77.23057079 | N81: 59.53354851 | O81: 70.34921851 | P81: 67.02486886 | Q81: 63.75985656 | R81: 60.55214694 | S81: 57.39976222 | T81: 54.30077988 | U81: 51.25333122 | W81: Under the Assumptions of the base model, gold dust shouldn't expand with a new gold mine
B83: Transaction IRR | C83: =IRR(D84:U84) -> 
B84: Net Cashflow | C84: =SUM(H84:U84) -> -62.59446149 | D84: =D75+D81 -> 216.5 | E84: 205.7199405 | F84: -44.95987983 | G84: -130.253158 | H84: -132.2116342 | I84: -133.9494932 | J84: -135.488857 | K84: -136.8498408 | L84: -135.5000849 | M84: -127.0140853 | N84: 96.08198298 | O84: 111.4809496 | P84: 104.3468238 | Q84: 97.5730698 | R84: 91.13509584 | S84: 85.01002927 | T84: 79.1765928 | U84: 73.61498986
B86: Payback
B87: Purchase Price of Mine B | D87: =D80 -> 0 | E87: =E80 -> 0 | F87: =F80 -> -125 | G87: =G80 -> -125 | H87: =-H66 -> -125 | I87: -125 | J87: -125 | K87: -125 | L87: -125 | M87: -125 | N87: 0 | O87: 0 | P87: 0 | Q87: 0 | R87: 0 | S87: 0 | T87: 0 | U87: 0
B88: Undicounted FCF | D88: =D71 -> 108.25 | E88: 105.36875 | F88: -23.5758704 | G88: -69.88439232 | H88: -72.53604798 | I88: -75.10374431 | J88: -77.59000253 | K88: -79.99727264 | L88: -80.80683696 | M88: -77.23057079 | N88: 59.53354851 | O88: 70.34921851 | P88: 67.02486886 | Q88: 63.75985656 | R88: 60.55214694 | S88: 57.39976222 | T88: 54.30077988 | U88: 51.25333122
B89: Net undiscounted Cashflow | D89: =D87+D88 -> 108.25 | E89: 105.36875 | F89: -148.5758704 | G89: -194.8843923 | H89: -197.536048 | I89: -200.1037443 | J89: -202.5900025 | K89: -204.9972726 | L89: -205.806837 | M89: -202.2305708 | N89: 59.53354851 | O89: 70.34921851 | P89: 67.02486886 | Q89: 63.75985656 | R89: 60.55214694 | S89: 57.39976222 | T89: 54.30077988 | U89: 51.25333122
B91: Cumulative undiscounted (Quarterly) | D91: =D81 -> 108.25 | E91: =D91+E89 -> 213.61875 | F91: 65.0428796 | G91: -129.8415127 | H91: -327.3775607 | I91: -527.481305 | J91: -730.0713075 | K91: -935.0685802 | L91: -1140.875417 | M91: -1343.105988 | N91: -1283.572439 | O91: -1213.223221 | P91: -1146.198352 | Q91: -1082.438495 | R91: -1021.886349 | S91: -964.4865863 | T91: -910.1858065 | U91: -858.9324752
B92: Period (Quarterly) | C92: =MAX(H92:U92) -> 15 | D92: =IF(D91 <0,1,0) -> 0 | E92: =D92+IF(E91<0,1,0) -> 0 | F92: 0 | G92: 1 | H92: 2 | I92: 3 | J92: 4 | K92: 5 | L92: 6 | M92: 7 | N92: 8 | O92: 9 | P92: 10 | Q92: 11 | R92: 12 | S92: 13 | T92: 14 | U92: 15
B94: Charts & Graph | D94: =MOD(D$19,100)&"Q"&D$20 -> 17Q3 | E94: 17Q4 | F94: 18Q1 | G94: 18Q2 | H94: 18Q3 | I94: 18Q4 | J94: 19Q1 | K94: 19Q2 | L94: 19Q3 | M94: 19Q4 | N94: 20Q1 | O94: 20Q2 | P94: 20Q3 | Q94: 20Q4 | R94: 21Q1 | S94: 21Q2 | T94: 21Q3 | U94: 21Q4
B96: EBITDA | D96: =D64 -> 139.6428571 | E96: 135.5267857 | F96: 129.8916137 | G96: 63.73658239 | H96: 59.94850288 | I96: 56.28036527 | J96: 52.72856782 | K96: 49.28961052 | L96: 48.13309006 | M96: 53.24204173 | N96: 70.04792645 | O96: 85.49888358 | P96: 80.74981265 | Q96: 76.08550936 | R96: 71.50306706 | S96: 66.99966031 | T96: 62.57254269 | U96: 58.2190446
B97: Capex | D97: =D66 -> 0 | E97: =E66 -> 0 | F97: =-F66 -> -125 | G97: -125 | H97: -125 | I97: -125 | J97: -125 | K97: -125 | L97: -125 | M97: -125 | N97: 0 | O97: 0 | P97: 0 | Q97: 0 | R97: 0 | S97: 0 | T97: 0 | U97: 0
B98: Free Cash Flow | D98: =D71 -> 108.25 | E98: 105.36875 | F98: -23.5758704 | G98: -69.88439232 | H98: -72.53604798 | I98: -75.10374431 | J98: -77.59000253 | K98: -79.99727264 | L98: -80.80683696 | M98: -77.23057079 | N98: 59.53354851 | O98: 70.34921851 | P98: 67.02486886 | Q98: 63.75985656 | R98: 60.55214694 | S98: 57.39976222 | T98: 54.30077988 | U98: 51.25333122
B100: Acquisition Cost | C100: =SUM(D100:U100) -> -1000 | D100: =D97 -> 0 | E100: 0 | F100: -125 | G100: -125 | H100: -125 | I100: -125 | J100: -125 | K100: -125 | L100: -125 | M100: -125 | N100: 0 | O100: 0 | P100: 0 | Q100: 0 | R100: 0 | S100: 0 | T100: 0 | U100: 0
B101: Cumulative FCF | C101: =U101 -> -858.9324752 | D101: =D91 -> 108.25 | E101: =D101+E102 -> 213.61875 | F101: 65.0428796 | G101: -129.8415127 | H101: -327.3775607 | I101: -527.481305 | J101: -730.0713075 | K101: -935.0685802 | L101: -1140.875417 | M101: -1343.105988 | N101: -1283.572439 | O101: -1213.223221 | P101: -1146.198352 | Q101: -1082.438495 | R101: -1021.886349 | S101: -964.4865863 | T101: -910.1858065 | U101: -858.9324752
B102: Free Cashflow | C102: =SUM(D102:U102) -> -858.9324752 | D102: =D89 -> 108.25 | E102: 105.36875 | F102: -148.5758704 | G102: -194.8843923 | H102: -197.536048 | I102: -200.1037443 | J102: -202.5900025 | K102: -204.9972726 | L102: -205.806837 | M102: -202.2305708 | N102: 59.53354851 | O102: 70.34921851 | P102: 67.02486886 | Q102: 63.75985656 | R102: 60.55214694 | S102: 57.39976222 | T102: 54.30077988 | U102: 51.25333122

Sheet Hedged Model
A2: Gold Dust Expansion: Hedged Model
B4: Model Assumptions
B5: Start Year | F5: 2017
B6: Start Quarter | F6: 3
B7: Pit A Initial Production Rate | F7: 250 | G7: k oz/ qtr
B8: Pit A Decline Rate | F8: 0.025 | G8: % / qrt
B9: Avg. Gold Price | F9: =IF(('Monte Carlo Simulation (1000)'!A2="Simulate"),(1350*(1+'Monte Carlo Simulation (1000)'!$C$5)),(1350*(1+Scenario!E15))) -> 1350 | G9: US$ / oz
B10: Avg. AUD/USD Rate | F10: =IF('Monte Carlo Simulation (1000)'!A2="Simulate",(0.78*(1+'Monte Carlo Simulation (1000)'!$C$6)),0.78*(1+Scenario!$E$14)) -> 0.78 | G10: AUDUSD
B11: Expansion CapEX | F11: 125 | G11: AUD MM / qrt
B12: Cost Inflation | F12: =2% -> 0.02 | G12: % pa
B13: DA | F13: 20 | G13: AUD MM
B14: Tax Rate | F14: 0.3
B15: Debt | F15: 1000 | G15: AUD MM
B16: Cost of Debt | F16: =IF('Monte Carlo Simulation (1000)'!$A$2="Simulate",(6%*(1+'Monte Carlo Simulation (1000)'!$C$7)),6%*(1+Scenario!$E$13)) -> 0.06 | G16: $ pa | H16: LIBOR + 500bps
B17: Hedge Ratio (Forward Contracts) | F17: 0
B19: Year | D19: =F5 -> 2017 | E19: =D19+IF(E20=1,1,0) -> 2017 | F19: =E19+IF(F20=1,1,0) -> 2018 | G19: =F19+IF(G20=1,1,0) -> 2018 | H19: 2018 | I19: 2018 | J19: 2019 | K19: 2019 | L19: 2019 | M19: 2019 | N19: 2020 | O19: =N19+IF(O20=1,1,0) -> 2020 | P19: 2020 | Q19: 2020 | R19: 2021 | S19: 2021 | T19: 2021 | U19: 2021
B20: Quarter | D20: =F6 -> 3 | E20: =MOD(D20,4)+1 -> 4 | F20: =MOD(E20,4)+1 -> 1 | G20: =MOD(F20,4)+1 -> 2 | H20: 3 | I20: 4 | J20: 1 | K20: 2 | L20: 3 | M20: 4 | N20: 1 | O20: =MOD(N20,4)+1 -> 2 | P20: 3 | Q20: 4 | R20: 1 | S20: 2 | T20: 3 | U20: 4
B22: Production Profile | D22: =MOD(D$19,100)&"Q"&D$20 -> 17Q3 | E22: =MOD(E$19,100)&"Q"&E$20 -> 17Q4 | F22: =MOD(F$19,100)&"Q"&F$20 -> 18Q1 | G22: =MOD(G$19,100)&"Q"&G$20 -> 18Q2 | H22: 18Q3 | I22: 18Q4 | J22: 19Q1 | K22: 19Q2 | L22: 19Q3 | M22: 19Q4 | N22: 20Q1 | O22: 20Q2 | P22: 20Q3 | Q22: 20Q4 | R22: 21Q1 | S22: 21Q2 | T22: 21Q3 | U22: 21Q4
B24: Pit A | C24: k oz | D24: =F7 -> 250 | E24: =(1-$F$8)*D24 -> 243.75 | F24: 237.65625 | G24: 231.7148438 | H24: 225.9219727 | I24: 220.2739233 | J24: 214.7670753 | K24: 209.3978984 | L24: 204.1629509 | M24: 199.0588771 | N24: 194.0824052 | O24: 189.2303451 | P24: 184.4995865 | Q24: 179.8870968 | R24: 175.3899194 | S24: 171.0051714 | T24: 166.7300421 | U24: 162.5617911
B25: Pit B | C25: k oz | D25: 0 | E25: 0 | F25: 0 | G25: 0 | H25: 0 | I25: 0 | J25: 0 | K25: 0 | L25: 10 | M25: 50 | N25: 150 | O25: 250 | P25: =O25 -> 250 | Q25: 250 | R25: 250 | S25: 250 | T25: 250 | U25: 250
B26: Total | C26: k oz | D26: 250 | E26: =SUM(E24:E25) -> 243.75 | F26: 237.65625 | G26: 231.7148438 | H26: 225.9219727 | I26: 220.2739233 | J26: 214.7670753 | K26: 209.3978984 | L26: 214.1629509 | M26: 249.0588771 | N26: 344.0824052 | O26: 439.2303451 | P26: 434.4995865 | Q26: 429.8870968 | R26: =SUM(R24:R25) -> 425.3899194 | S26: =SUM(S24:S25) -> 421.0051714 | T26: =SUM(T24:T25) -> 416.7300421 | U26: =SUM(U24:U25) -> 412.5617911
B28: Spot Pricing | D28: =MOD(D$19,100)&"Q"&D$20 -> 17Q3 | E28: =MOD(E$19,100)&"Q"&E$20 -> 17Q4 | F28: =MOD(F$19,100)&"Q"&F$20 -> 18Q1 | G28: =MOD(G$19,100)&"Q"&G$20 -> 18Q2 | H28: 18Q3 | I28: 18Q4 | J28: 19Q1 | K28: 19Q2 | L28: 19Q3 | M28: 19Q4 | N28: 20Q1 | O28: 20Q2 | P28: 20Q3 | Q28: 20Q4 | R28: 21Q1 | S28: 21Q2 | T28: 21Q3 | U28: 21Q4
B30: Avg. Gold Price | C30: US$ / oz | D30: 1350 | E30: 1350 | F30: 1350 | G30: =IF('Monte Carlo Simulation (1000)'!$A$2="Simulate",Assumptions!L11*(1+'Monte Carlo Simulation (1000)'!$C$5),Assumptions!L11*(1+Scenario!$E$15)) -> 1284.8 | H30: =IF('Monte Carlo Simulation (1000)'!$A$2="Simulate",Assumptions!M11*(1+'Monte Carlo Simulation (1000)'!$C$5),Assumptions!M11*(1+Scenario!$E$15)) -> 1290.9 | I30: =IF('Monte Carlo Simulation (1000)'!$A$2="Simulate",Assumptions!N11*(1+'Monte Carlo Simulation (1000)'!$C$5),Assumptions!N11*(1+Scenario!$E$15)) -> 1302.65 | J30: =IF('Monte Carlo Simulation (1000)'!$A$2="Simulate",Assumptions!O11*(1+'Monte Carlo Simulation (1000)'!$C$5),Assumptions!O11*(1+Scenario!$E$15)) -> 1308.6 | K30: =IF('Monte Carlo Simulation (1000)'!$A$2="Simulate",Assumptions!P11*(1+'Monte Carlo Simulation (1000)'!$C$5),Assumptions!P11*(1+Scenario!$E$15)) -> 1314.65 | L30: =IF('Monte Carlo Simulation (1000)'!$A$2="Simulate",Assumptions!Q11*(1+'Monte Carlo Simulation (1000)'!$C$5),Assumptions!Q11*(1+Scenario!$E$15)) -> 1320.9 | M30: =IF('Monte Carlo Simulation (1000)'!$A$2="Simulate",Assumptions!R11*(1+'Monte Carlo Simulation (1000)'!$C$5),Assumptions!R11*(1+Scenario!$E$15)) -> 1327.05 | N30: =IF('Monte Carlo Simulation (1000)'!$A$2="Simulate",Assumptions!S11*(1+'Monte Carlo Simulation (1000)'!$C$5),Assumptions!S11*(1+Scenario!$E$15)) -> 1333.2 | O30: =IF('Monte Carlo Simulation (1000)'!$A$2="Simulate",Assumptions!T11*(1+'Monte Carlo Simulation (1000)'!$C$5),Assumptions!T11*(1+Scenario!$E$15)) -> 1339.25 | P30: =IF('Monte Carlo Simulation (1000)'!$A$2="Simulate",Assumptions!U11*(1+'Monte Carlo Simulation (1000)'!$C$5),Assumptions!U11*(1+Scenario!$E$15)) -> 1345.3 | Q30: =IF('Monte Carlo Simulation (1000)'!$A$2="Simulate",Assumptions!V11*(1+'Monte Carlo Simulation (1000)'!$C$5),Assumptions!V11*(1+Scenario!$E$15)) -> 1351.45 | R30: =IF('Monte Carlo Simulation (1000)'!$A$2="Simulate",Assumptions!W11*(1+'Monte Carlo Simulation (1000)'!$C$5),Assumptions!W11*(1+Scenario!$E$15)) -> 1357.6 | S30: =IF('Monte Carlo Simulation (1000)'!$A$2="Simulate",Assumptions!X11*(1+'Monte Carlo Simulation (1000)'!$C$5),Assumptions!X11*(1+Scenario!$E$15)) -> 1363.65 | T30: =IF('Monte Carlo Simulation (1000)'!$A$2="Simulate",Assumptions!Y11*(1+'Monte Carlo Simulation (1000)'!$C$5),Assumptions!Y11*(1+Scenario!$E$15)) -> 1369.7 | U30: =IF('Monte Carlo Simulation (1000)'!$A$2="Simulate",Assumptions!Z11*(1+'Monte Carlo Simulation (1000)'!$C$5),Assumptions!Z11*(1+Scenario!$E$15)) -> 1376.2
B31: Avg. AUD Rate | C31: AUDUSD | D31: 0.7 | E31: 0.7 | F31: 0.7 | G31: =IF('Monte Carlo Simulation (1000)'!$A$2="Simulate",Assumptions!J50*(1+'Monte Carlo Simulation (1000)'!$C$7),Assumptions!J50*(1+Scenario!$E$14)) -> 0.7836 | H31: =IF('Monte Carlo Simulation (1000)'!$A$2="Simulate",Assumptions!K50*(1+'Monte Carlo Simulation (1000)'!$C$7),Assumptions!K50*(1+Scenario!$E$14)) -> 0.7829 | I31: =IF('Monte Carlo Simulation (1000)'!$A$2="Simulate",Assumptions!L50*(1+'Monte Carlo Simulation (1000)'!$C$7),Assumptions!L50*(1+Scenario!$E$14)) -> 0.7821 | J31: =IF('Monte Carlo Simulation (1000)'!$A$2="Simulate",Assumptions!M50*(1+'Monte Carlo Simulation (1000)'!$C$7),Assumptions!M50*(1+Scenario!$E$14)) -> 0.7812 | K31: =IF('Monte Carlo Simulation (1000)'!$A$2="Simulate",Assumptions!N50*(1+'Monte Carlo Simulation (1000)'!$C$7),Assumptions!N50*(1+Scenario!$E$14)) -> 0.7803 | L31: =IF('Monte Carlo Simulation (1000)'!$A$2="Simulate",Assumptions!O50*(1+'Monte Carlo Simulation (1000)'!$C$7),Assumptions!O50*(1+Scenario!$E$14)) -> 0.7793 | M31: =IF('Monte Carlo Simulation (1000)'!$A$2="Simulate",Assumptions!P50*(1+'Monte Carlo Simulation (1000)'!$C$7),Assumptions!P50*(1+Scenario!$E$14)) -> 0.7784 | N31: =IF('Monte Carlo Simulation (1000)'!$A$2="Simulate",Assumptions!Q50*(1+'Monte Carlo Simulation (1000)'!$C$7),Assumptions!Q50*(1+Scenario!$E$14)) -> 0.7784 | O31: =IF('Monte Carlo Simulation (1000)'!$A$2="Simulate",Assumptions!R50*(1+'Monte Carlo Simulation (1000)'!$C$7),Assumptions!R50*(1+Scenario!$E$14)) -> 0.7784 | P31: =IF('Monte Carlo Simulation (1000)'!$A$2="Simulate",Assumptions!S50*(1+'Monte Carlo Simulation (1000)'!$C$7),Assumptions!S50*(1+Scenario!$E$14)) -> 0.7784 | Q31: =IF('Monte Carlo Simulation (1000)'!$A$2="Simulate",Assumptions!T50*(1+'Monte Carlo Simulation (1000)'!$C$7),Assumptions!T50*(1+Scenario!$E$14)) -> 0.7784 | R31: =IF('Monte Carlo Simulation (1000)'!$A$2="Simulate",Assumptions!U50*(1+'Monte Carlo Simulation (1000)'!$C$7),Assumptions!U50*(1+Scenario!$E$14)) -> 0.7784 | S31: =IF('Monte Carlo Simulation (1000)'!$A$2="Simulate",Assumptions!V50*(1+'Monte Carlo Simulation (1000)'!$C$7),Assumptions!V50*(1+Scenario!$E$14)) -> 0.7784 | T31: =IF('Monte Carlo Simulation (1000)'!$A$2="Simulate",Assumptions!W50*(1+'Monte Carlo Simulation (1000)'!$C$7),Assumptions!W50*(1+Scenario!$E$14)) -> 0.7784 | U31: =IF('Monte Carlo Simulation (1000)'!$A$2="Simulate",Assumptions!X50*(1+'Monte Carlo Simulation (1000)'!$C$7),Assumptions!X50*(1+Scenario!$E$14)) -> 0.7784
B32: Avg. Gold Price | C32: AUS$/oz | D32: =D30/D31 -> 1928.571429 | E32: =E30/E31 -> 1928.571429 | F32: 1928.571429 | G32: 1639.612047 | H32: 1648.869587 | I32: 1665.579849 | J32: 1675.115207 | K32: 1684.800718 | L32: 1694.982677 | M32: 1704.843268 | N32: 1712.74409 | O32: 1720.516444 | P32: 1728.288798 | Q32: 1736.18962 | R32: 1744.090442 | S32: 1751.862795 | T32: 1759.635149 | U32: 1767.985612
B34: Hedging | D34: =MOD(D$19,100)&"Q"&D$20 -> 17Q3 | E34: =MOD(E$19,100)&"Q"&E$20 -> 17Q4 | F34: =MOD(F$19,100)&"Q"&F$20 -> 18Q1 | G34: =MOD(G$19,100)&"Q"&G$20 -> 18Q2 | H34: 18Q3 | I34: 18Q4 | J34: 19Q1 | K34: 19Q2 | L34: 19Q3 | M34: 19Q4 | N34: 20Q1 | O34: 20Q2 | P34: 20Q3 | Q34: 20Q4 | R34: 21Q1 | S34: 21Q2 | T34: 21Q3 | U34: 21Q4
B36: Payout of Long Put(Gold) | C36: USD/oz | G36: ='Risk Strategy'!Q34/1000000 -> 0 | H36: ='Risk Strategy'!R34/1000000 -> 0 | I36: ='Risk Strategy'!S34/1000000 -> 0 | J36: ='Risk Strategy'!T34/1000000 -> 0 | K36: ='Risk Strategy'!U34/1000000 -> 0 | L36: ='Risk Strategy'!V34/1000000 -> 0 | M36: ='Risk Strategy'!W34/1000000 -> 0
B37: Cost at 18Q2 of Put | C37: USD/oz | G37: =-SUM('Risk Strategy'!Q35:W35)/1000000 -> -90.30531716
B38: Net P/L from Long Put (Gold) | C38: USD/oz | G38: =SUM(G36:G37) -> -90.30531716 | H38: =SUM(H36:H37) -> 0 | I38: 0 | J38: 0 | K38: 0 | L38: 0 | M38: 0
B40: Payout of Short Call (Gold) | C40: USD/oz | G40: ='Risk Strategy'!Q22/1000000 -> 0 | H40: ='Risk Strategy'!R22/1000000 -> 0 | I40: ='Risk Strategy'!S22/1000000 -> 0 | J40: ='Risk Strategy'!T22/1000000 -> 0 | K40: ='Risk Strategy'!U22/1000000 -> 0 | L40: ='Risk Strategy'!V22/1000000 -> 0 | M40: ='Risk Strategy'!W22/1000000 -> 0
B41: Premium at 18Q2 Short Call | C41: USD/oz | G41: =-SUM('Risk Strategy'!Q23:W23)/1000000 -> 89.92642701
B42: Net P/L of Short Call | C42: USD/oz | G42: =SUM(G40:G41) -> 89.92642701 | H42: =SUM(H40:H41) -> 0 | I42: 0 | J42: 0 | K42: 0 | L42: 0 | M42: 0
B44: Gain/loss Options on FX | C44: USD/oz | G44: ='Risk Strategy'!Q59/1000000 -> 30.7488284 | H44: ='Risk Strategy'!R59/1000000 -> 18.97618487 | I44: ='Risk Strategy'!S59/1000000 -> 18.29394589 | J44: ='Risk Strategy'!T59/1000000 -> 17.50121067
B45: Cost at 18Q2 of FX long call | C45: USD/oz | G45: =-SUM('Risk Strategy'!Q60:T60)/1000000 -> -72.66511258
B46: Net P/L from Long Call FX | C46: USD/oz | G46: =SUM(G44:G45) -> -41.91628418 | H46: =SUM(H44:H45) -> 18.97618487 | I46: 18.29394589 | J46: 17.50121067
B48: Net P/L from All Options | C48: USD/oz | G48: =G38+G42+G46 -> -42.29517434 | H48: =H38+H42+H46 -> 18.97618487 | I48: 18.29394589 | J48: 17.50121067 | K48: 0 | L48: 0 | M48: 0
B49: Forex (AUD/USD) | G49: =G31 -> 0.7836 | H49: 0.7829 | I49: 0.7821 | J49: 0.7812 | K49: 0.7803 | L49: 0.7793 | M49: 0.7784
B50: Net P/L from All Options | C50: AUD/oz | G50: =G48/G49 -> -53.97546495 | H50: =H48/H49 -> 24.23832528 | I50: 23.39080154 | J50: 22.40298345 | K50: 0 | L50: 0 | M50: 0
B52: Gain/Loss in Margin Account | C52: USD/oz | G52: =-'Gold Future Margins'!N14/1000000 -> 0 | H52: 0 | I52: 0 | J52: 0 | K52: 0 | L52: 0 | M52: 0
B53: Initial Margin Payment of Contracts | C53: USD/oz | F53: ='Gold Future Margins'!N26/1000000 -> -61.35966362 | G53: 0 | H53: 0 | I53: 0 | J53: 0 | K53: 0 | L53: 0 | M53: 0
B54: Initial Margin Reinbursement | C54: USD/oz | G54: ='Gold Future Margins'!R19/1000000 -> 9.083221875 | H54: ='Gold Future Margins'!R20/1000000 -> 8.856141328 | I54: ='Gold Future Margins'!R21/1000000 -> 8.634737795 | J54: ='Gold Future Margins'!R22/1000000 -> 8.41886935 | K54: ='Gold Future Margins'!R23/1000000 -> 8.208397616 | L54: ='Gold Future Margins'!R24/1000000 -> 8.395187676 | M54: ='Gold Future Margins'!R25/1000000 -> 9.763107984
B55: Margin Account Reinbursement | C55: USD/oz | G55: 0 | H55: =IF($G$52>0,0,'Gold Future Margins'!R7/1000000) -> 0 | I55: =IF($G$52>0,0,'Gold Future Margins'!$R$8)/1000000 -> 0 | J55: =IF($G$52>0,0,'Gold Future Margins'!R9)/1000000 -> 0 | K55: =IF($G$52>0,0,'Gold Future Margins'!R10)/1000000 -> 0 | L55: =IF($G$52>0,0,'Gold Future Margins'!R11)/1000000 -> 0 | M55: =IF($G$52>0,0,'Gold Future Margins'!R12)/1000000 -> 0
B56: Net Position (Gain/Loss) | C56: USD/oz | G56: =SUM(G52:G55) -> 9.083221875 | H56: =SUM(H52:H55) -> 8.856141328 | I56: 8.634737795 | J56: 8.41886935 | K56: 8.208397616 | L56: 8.395187676 | M56: 9.763107984
B58: AUD FX Futures
B59: Gain/Loss in Margin Account | C59: USD/oz | G59: ='FX Margins'!$N$10/1000000 -> 0 | H59: 0 | I59: 0 | J59: 0 | K59: 0 | L59: 0 | M59: 0
B60: Initial Margin Payment | C60: USD/oz | F60: ='FX Margins'!$N$16/1000000 -> -16.25497672 | G60: 0 | H60: 0 | I60: 0 | J60: 0 | K60: 0 | L60: 0 | M60: 0
B61: Initial Margin Reinbursement | C61: USD/oz | G61: 0 | H61: 0 | I61: 0 | J61: 0 | K61: ='FX Margins'!R13/1000000 -> 5.060449211 | L61: ='FX Margins'!R14/1000000 -> 5.175604647 | M61: ='FX Margins'!R15/1000000 -> 6.018922864
B62: Margin Account Reinbursement | C62: USD/oz | G62: 0 | H62: 0 | I62: 0 | J62: 0 | K62: =IF($G$59>0,0,'FX Margins'!$R$7/1000000) -> 0 | L62: =IF($G$59>0,0,'FX Margins'!$R$7/1000000) -> 0 | M62: =IF($G$59>0,0,'FX Margins'!$R$7/1000000) -> 0
B63: Net Position (Gain/Loss) | C63: USD/oz | G63: =SUM(G59:G62) -> 0 | H63: 0 | I63: 0 | J63: 0 | K63: 5.060449211 | L63: 5.175604647 | M63: 6.018922864
B65: Total Gain/Loss in Margin Acc | C65: USD/oz | F65: =F53+F60 -> -77.61464035 | G65: =G56+G63 -> 9.083221875 | H65: 8.856141328 | I65: 8.634737795 | J65: 8.41886935 | K65: 13.26884683 | L65: 13.57079232 | M65: 15.78203085
B66: Forex (AUD/USD) | F66: =G66 -> 0.7836 | G66: =G49 -> 0.7836 | H66: 0.7829 | I66: 0.7821 | J66: 0.7812 | K66: 0.7803 | L66: 0.7793 | M66: 0.7784
B67: Total Gain/Loss in Margin Acc | C67: AUD/oz | F67: =F65/F66 -> -99.04880085 | G67: =G65/G66 -> 11.5916563 | H67: =H65/H66 -> 11.31197002 | I67: 11.04045237 | J67: 10.77684249 | K67: 17.00480178 | L67: 17.41407972 | M67: 20.27496255
B69: Revenue Summary | D69: =MOD(D$19,100)&"Q"&D$20 -> 17Q3 | E69: =MOD(E$19,100)&"Q"&E$20 -> 17Q4 | F69: =MOD(F$19,100)&"Q"&F$20 -> 18Q1 | G69: =MOD(G$19,100)&"Q"&G$20 -> 18Q2 | H69: 18Q3 | I69: 18Q4 | J69: 19Q1 | K69: 19Q2 | L69: 19Q3 | M69: 19Q4 | N69: 20Q1 | O69: 20Q2 | P69: 20Q3 | Q69: 20Q4 | R69: 21Q1 | S69: 21Q2 | T69: 21Q3 | U69: 21Q4
B71: Spot Revenue | D71: =(D26*D32)/1000 -> 482.1428571 | E71: 470.0892857 | F71: 458.3370536 | G71: 379.9224493 | H71: 372.5158698 | I71: 366.883808 | J71: 359.7595938 | K71: 352.7937295 | L71: 363.0024918 | M71: 424.6063501 | N71: 589.3251062 | O71: 755.7030314 | P71: 750.9407678 | Q71: 746.3655151 | R71: 741.9184925 | S71: 737.5432965 | T71: 733.2928297 | U71: 729.4033104
B72: Option Strategy Revenue | D72: =D50 -> 0 | E72: 0 | F72: 0 | G72: -53.97546495 | H72: 24.23832528 | I72: 23.39080154 | J72: 22.40298345 | K72: 0 | L72: 0 | M72: 0 | N72: 0 | O72: 0 | P72: 0 | Q72: 0 | R72: 0 | S72: 0 | T72: 0 | U72: 0
B73: Gain/Loss in Margin Account | D73: =D67 -> 0 | E73: =E67 -> 0 | F73: =F67 -> -99.04880085 | G73: =G67 -> 11.5916563 | H73: 11.31197002 | I73: 11.04045237 | J73: 10.77684249 | K73: 17.00480178 | L73: 17.41407972 | M73: 20.27496255 | N73: 0 | O73: 0 | P73: 0 | Q73: 0 | R73: 0 | S73: 0 | T73: 0 | U73: 0
B75: Net Reveue | D75: =SUM(D71:D73) -> 482.1428571 | E75: =SUM(E71:E73) -> 470.0892857 | F75: 359.2882527 | G75: 337.5386406 | H75: 408.0661651 | I75: 401.3150619 | J75: 392.9394197 | K75: 369.7985312 | L75: 380.4165715 | M75: 444.8813126 | N75: 589.3251062 | O75: 755.7030314 | P75: 750.9407678 | Q75: 746.3655151 | R75: 741.9184925 | S75: 737.5432965 | T75: 733.2928297 | U75: 729.4033104
B77: Cost Profile | D77: =MOD(D$19,100)&"Q"&D$20 -> 17Q3 | E77: =MOD(E$19,100)&"Q"&E$20 -> 17Q4 | F77: =MOD(F$19,100)&"Q"&F$20 -> 18Q1 | G77: =MOD(G$19,100)&"Q"&G$20 -> 18Q2 | H77: 18Q3 | I77: 18Q4 | J77: 19Q1 | K77: 19Q2 | L77: 19Q3 | M77: 19Q4 | N77: 20Q1 | O77: 20Q2 | P77: 20Q3 | Q77: 20Q4 | R77: 21Q1 | S77: 21Q2 | T77: 21Q3 | U77: 21Q4
B79: Pit A COGS | C79: AUD / oz | D79: 1270 | E79: 1270 | F79: =E79*(1+$F$12)^(1/4) -> 1276.302923 | G79: =F79*(1+$F$12)^(1/4) -> 1282.637127 | H79: 1289.002767 | I79: 1295.4 | J79: 1301.828982 | K79: 1308.28987 | L79: 1314.782823 | M79: 1321.308 | N79: 1327.865561 | O79: 1334.455667 | P79: 1341.078479 | Q79: 1347.73416 | R79: 1354.422872 | S79: 1361.14478 | T79: 1367.900049 | U79: 1374.688843
B80: Pit B COGS | C80: AUD / oz | D80: 1400 | E80: =D80 -> 1400 | F80: =E80*(1+$F$12)^(1/4) -> 1406.948104 | G80: =F80*(1+$F$12)^(1/4) -> 1413.930691 | H80: 1420.947933 | I80: 1428 | J80: 1435.087066 | K80: 1442.209305 | L80: 1449.366891 | M80: 1456.56 | N80: 1463.788808 | O80: 1471.053491 | P80: 1478.354229 | Q80: 1485.6912 | R80: 1493.064584 | S80: 1500.474561 | T80: 1507.921314 | U80: 1515.405024
B81: Expenses | C81: AUD MM | D81: 25 | E81: 25 | F81: =E81*(1+$F$12)^(1/4) -> 25.12407329 | G81: =F81*(1+$F$12)^(1/4) -> 25.24876235 | H81: =G81*(1+$F$12)^(1/4) -> 25.37407023 | I81: 25.5 | J81: 25.62655476 | K81: 25.75373759 | L81: 25.88155163 | M81: 26.01 | N81: 26.13908585 | O81: 26.26881234 | P81: 26.39918266 | Q81: 26.5302 | R81: 26.66186757 | S81: 26.79418859 | T81: 26.92716632 | U81: 27.060804
B83: Income Statement | D83: =MOD(D$19,100)&"Q"&D$20 -> 17Q3 | E83: =MOD(E$19,100)&"Q"&E$20 -> 17Q4 | F83: =MOD(F$19,100)&"Q"&F$20 -> 18Q1 | G83: =MOD(G$19,100)&"Q"&G$20 -> 18Q2 | H83: 18Q3 | I83: 18Q4 | J83: 19Q1 | K83: 19Q2 | L83: 19Q3 | M83: 19Q4 | N83: 20Q1 | O83: 20Q2 | P83: 20Q3 | Q83: 20Q4 | R83: 21Q1 | S83: 21Q2 | T83: 21Q3 | U83: 21Q4
B85: Revenue | C85: AUD MM | D85: =D75 -> 482.1428571 | E85: =E75 -> 470.0892857 | F85: 359.2882527 | G85: 337.5386406 | H85: 408.0661651 | I85: 401.3150619 | J85: 392.9394197 | K85: 369.7985312 | L85: 380.4165715 | M85: 444.8813126 | N85: 589.3251062 | O85: 755.7030314 | P85: 750.9407678 | Q85: 746.3655151 | R85: 741.9184925 | S85: 737.5432965 | T85: 733.2928297 | U85: 729.4033104
B86: COGS | C86: AUD MM | D86: =-(D79*D24+D80*D25)/1000 -> -317.5 | E86: -309.5625 | F86: -303.3213666 | G86: -297.2060615 | H86: -291.214048 | I86: -285.3428403 | J86: -279.5900029 | K86: -273.9531492 | L86: -282.9236098 | M86: -335.8460868 | N86: -477.2836631 | O86: -620.2828792 | P86: -617.0169821 | Q86: -613.8627853 | R86: -610.8182643 | S86: -607.8814368 | T86: -605.0503612 | U86: -602.3231365
B87: Gross Profit | C87: AUD MM | D87: =SUM(D85:D86) -> 164.6428571 | E87: 160.5267857 | F87: 55.96688615 | G87: 40.33257911 | H87: 116.8521172 | I87: 115.9722216 | J87: 113.3494169 | K87: 95.84538206 | L87: 97.49296169 | M87: 109.0352258 | N87: 112.0414431 | O87: 135.4201522 | P87: 133.9237857 | Q87: 132.5027298 | R87: 131.1002281 | S87: 129.6618597 | T87: 128.2424686 | U87: 127.0801739
B88: Expenses | C88: AUD MM | D88: =-D81 -> -25 | E88: -25 | F88: -25.12407329 | G88: -25.24876235 | H88: -25.37407023 | I88: -25.5 | J88: -25.62655476 | K88: -25.75373759 | L88: -25.88155163 | M88: -26.01 | N88: -26.13908585 | O88: -26.26881234 | P88: -26.39918266 | Q88: -26.5302 | R88: -26.66186757 | S88: -26.79418859 | T88: -26.92716632 | U88: -27.060804
B89: EBITDA | C89: AUD MM | D89: =SUM(D87:D88) -> 139.6428571 | E89: 135.5267857 | F89: 30.84281286 | G89: 15.08381676 | H89: 91.47804694 | I89: 90.47222162 | J89: 87.72286213 | K89: 70.09164446 | L89: 71.61141006 | M89: 83.0252258 | N89: 85.90235725 | O89: 109.1513399 | P89: 107.524603 | Q89: 105.9725298 | R89: 104.4383606 | S89: 102.8676711 | T89: 101.3153023 | U89: 100.0193699
B90: DA | C90: AUD MM | D90: =-$F$13 -> -20 | E90: =-$F$13 -> -20 | F90: -20 | G90: -20 | H90: -20 | I90: -20 | J90: -20 | K90: -20 | L90: -20 | M90: -20 | N90: -20 | O90: -20 | P90: -20 | Q90: -20 | R90: -20 | S90: -20 | T90: -20 | U90: -20
B91: EBIT | C91: AUD MM | D91: =SUM(D89:D90) -> 119.6428571 | E91: 115.5267857 | F91: 10.84281286 | G91: -4.916183239 | H91: 71.47804694 | I91: 70.47222162 | J91: 67.72286213 | K91: 50.09164446 | L91: 51.61141006 | M91: 63.0252258 | N91: 65.90235725 | O91: 89.15133986 | P91: 87.52460303 | Q91: 85.97252982 | R91: 84.43836058 | S91: 82.86767112 | T91: 81.31530226 | U91: 80.01936995
B92: Interest | C92: AUD MM | D92: =-$F$16*$F$15/4 -> -15 | E92: =-$F$16*$F$15/4 -> -15 | F92: -15 | G92: -15 | H92: -15 | I92: -15 | J92: -15 | K92: -15 | L92: -15 | M92: -15 | N92: -15 | O92: -15 | P92: -15 | Q92: -15 | R92: -15 | S92: -15 | T92: -15 | U92: -15
B93: Tax Deductions (Options) | C93: AUD MM | D93: 0 | E93: 0 | F93: 0 | G93: ='Risk Strategy'!Q75 -> -34.05494155 | H93: ='Risk Strategy'!R75 -> -38.31125862 | I93: ='Risk Strategy'!S75 -> -44.73480821 | J93: ='Risk Strategy'!T75 -> -19.23247942 | K93: ='Risk Strategy'!U75 -> -18.35839155 | L93: ='Risk Strategy'!V75 -> -23.12172747 | M93: ='Risk Strategy'!W75 -> -30.16294977 | N93: 0 | O93: 0 | P93: 0 | Q93: 0 | R93: 0 | S93: 0 | T93: 0 | U93: 0
B94: Taxes | C94: AUD MM | D94: =IF((D91<0),0,-$F$14*(SUM(D91:D93))) -> -31.39285714 | E94: =IF((E91<0),0,-$F$14*(SUM(E91:E93))) -> -30.15803571 | F94: =IF((F91<0),0,IF((-$F$14*(SUM(F91:F93))>0),0,(-$F$14*(SUM(F91:F93))))) -> 0 | G94: =(-$F$14*(SUM(G91:G93))) -> 16.19133744 | H94: =IF((H91<0),0,IF((-$F$14*(SUM(H91:H93))>0),0,(-$F$14*(SUM(H91:H93))))) -> -5.450036496 | I94: =IF((I91<0),0,IF((-$F$14*(SUM(I91:I93))>0),0,(-$F$14*(SUM(I91:I93))))) -> -3.221224022 | J94: -10.04711481 | K94: -5.019975874 | L94: -4.046904776 | M94: -5.358682809 | N94: -15.27070717 | O94: -22.24540196 | P94: -21.75738091 | Q94: -21.29175895 | R94: -20.83150817 | S94: -20.36030134 | T94: -19.89459068 | U94: -19.50581098
B95: NPAT | C95: AUD MM | D95: =D91+D92+D94 -> 73.25 | E95: =E91+E92+E94 -> 70.36875 | F95: -4.157187136 | G95: -3.724845801 | H95: 51.02801044 | I95: 52.25099759 | J95: =J91+J92+J94 -> 42.67574731 | K95: 30.07166859 | L95: 32.56450528 | M95: 42.66654299 | N95: 35.63165007 | O95: 51.9059379 | P95: 50.76722212 | Q95: 49.68077087 | R95: 48.6068524 | S95: 47.50736978 | T95: 46.42071158 | U95: 45.51355896
B97: Statement of Cashflows | D97: =MOD(D$19,100)&"Q"&D$20 -> 17Q3 | E97: =MOD(E$19,100)&"Q"&E$20 -> 17Q4 | F97: =MOD(F$19,100)&"Q"&F$20 -> 18Q1 | G97: =MOD(G$19,100)&"Q"&G$20 -> 18Q2 | H97: 18Q3 | I97: 18Q4 | J97: 19Q1 | K97: 19Q2 | L97: 19Q3 | M97: 19Q4 | N97: 20Q1 | O97: 20Q2 | P97: 20Q3 | Q97: 20Q4 | R97: 21Q1 | S97: 21Q2 | T97: 21Q3 | U97: 21Q4
B99: Cash at start of period | D99: 50 | E99: =D105 -> 117.25 | F99: =E105 -> 181.61875 | G99: =F105 -> 746.4615629 | H99: =G105 -> 611.7367171 | I99: =H105 -> 531.7647275 | J99: 453.0157251 | K99: 364.6914724 | L99: 263.763141 | M99: 165.3276463 | N99: 76.99418928 | O99: 106.6258394 | P99: 152.5317773 | Q99: 197.2989994 | R99: 240.9797702 | S99: 283.5866227 | T99: 325.0939924 | U99: =T105 -> 365.514704
B101: Operating Cashflow | D101: =D95-(1-$F$14)*D90 -> 87.25 | E101: =E95-(1-$F$14)*E90 -> 84.36875 | F101: 9.842812864 | G101: 10.2751542 | H101: 65.02801044 | I101: 66.25099759 | J101: 56.67574731 | K101: 44.07166859 | L101: 46.56450528 | M101: 56.66654299 | N101: 49.63165007 | O101: 65.9059379 | P101: 64.76722212 | Q101: 63.68077087 | R101: 62.6068524 | S101: 61.50736978 | T101: 60.42071158 | U101: 59.51355896
B102: Investing Cashflows | D102: =-$F$13 -> -20 | E102: =-$F$13 -> -20 | F102: =-$F$13-$F$11 -> -145 | G102: -145 | H102: -145 | I102: -145 | J102: -145 | K102: -145 | L102: -145 | M102: -145 | N102: =-$F$13 -> -20 | O102: =-$F$13 -> -20 | P102: -20 | Q102: -20 | R102: -20 | S102: -20 | T102: -20 | U102: -20
B103: Financing Casfhlows | D103: 0 | E103: 0 | F103: 700 | G103: 0 | H103: 0 | I103: 0 | J103: 0 | K103: 0 | L103: 0 | M103: 0 | N103: 0 | O103: 0 | P103: 0 | Q103: 0 | R103: 0 | S103: 0 | T103: 0 | U103: 0
B105: Cash at end of period | D105: =SUM(D99:D103) -> 117.25 | E105: =SUM(E99:E103) -> 181.61875 | F105: =SUM(F99:F103) -> 746.4615629 | G105: 611.7367171 | H105: 531.7647275 | I105: 453.0157251 | J105: 364.6914724 | K105: 263.763141 | L105: 165.3276463 | M105: 76.99418928 | N105: 106.6258394 | O105: 152.5317773 | P105: 197.2989994 | Q105: 240.9797702 | R105: 283.5866227 | S105: 325.0939924 | T105: 365.514704 | U105: 405.028263
B107: DCF Model | D107: =MOD(D$19,100)&"Q"&D$20 -> 17Q3 | E107: =MOD(E$19,100)&"Q"&E$20 -> 17Q4 | F107: =MOD(F$19,100)&"Q"&F$20 -> 18Q1 | G107: =MOD(G$19,100)&"Q"&G$20 -> 18Q2 | H107: 18Q3 | I107: 18Q4 | J107: 19Q1 | K107: 19Q2 | L107: 19Q3 | M107: 19Q4 | N107: 20Q1 | O107: 20Q2 | P107: 20Q3 | Q107: 20Q4 | R107: 21Q1 | S107: 21Q2 | T107: 21Q3 | U107: 21Q4
B109: EBITDA | C109: $ | D109: =D89 -> 139.6428571 | E109: 135.5267857 | F109: 30.84281286 | G109: 15.08381676 | H109: 91.47804694 | I109: 90.47222162 | J109: 87.72286213 | K109: 70.09164446 | L109: 71.61141006 | M109: 83.0252258 | N109: 85.90235725 | O109: 109.1513399 | P109: 107.524603 | Q109: 105.9725298 | R109: 104.4383606 | S109: 102.8676711 | T109: 101.3153023 | U109: 100.0193699
B110: Less Adjustments:
B111: Capital Expenditdures | C111: $ | D111: 0 | E111: 0 | F111: 125 | G111: 125 | H111: =$F$11 -> 125 | I111: 125 | J111: 125 | K111: 125 | L111: 125 | M111: 125 | N111: 0 | O111: 0 | P111: 0 | Q111: 0 | R111: 0 | S111: 0 | T111: 0 | U111: 0
B112: Increase in NWC | C112: $ | D112: 0 | E112: 0 | F112: 0 | G112: 0 | H112: 0 | I112: 0 | J112: 0 | K112: 0 | L112: 0 | M112: 0 | N112: 0 | O112: 0 | P112: 0 | Q112: 0 | R112: 0 | S112: 0 | T112: 0 | U112: 0
B113: Taxes | C113: $ | D113: =D94*-1 -> 31.39285714 | E113: =E94*-1 -> 30.15803571 | F113: =F94*-1 -> 0 | G113: =G94*-1 -> -16.19133744 | H113: =H94 -> -5.450036496 | I113: =I94 -> -3.221224022 | J113: -10.04711481 | K113: -5.019975874 | L113: -4.046904776 | M113: -5.358682809 | N113: -15.27070717 | O113: -22.24540196 | P113: -21.75738091 | Q113: -21.29175895 | R113: -20.83150817 | S113: -20.36030134 | T113: -19.89459068 | U113: -19.50581098
B114: Total Adjustments | C114: $ | D114: =SUM(D111:D113) -> 31.39285714 | E114: =SUM(E111:E113) -> 30.15803571 | F114: =SUM(F111:F113) -> 125 | G114: =SUM(G111:G113) -> 108.8086626 | H114: =SUM(H111:H113) -> 119.5499635 | I114: =SUM(I111:I113) -> 121.778776 | J114: 114.9528852 | K114: 119.9800241 | L114: 120.9530952 | M114: 119.6413172 | N114: -15.27070717 | O114: -22.24540196 | P114: -21.75738091 | Q114: -21.29175895 | R114: -20.83150817 | S114: -20.36030134 | T114: -19.89459068 | U114: -19.50581098
B116: Free Cash Flow | D116: =D109-D114 -> 108.25 | E116: =E109-E114 -> 105.36875 | F116: =F109-F114 -> -94.15718714 | G116: -93.7248458 | H116: -28.07191657 | I116: -31.30655436 | J116: -27.23002306 | K116: -49.88837966 | L116: -49.34168516 | M116: -36.61609139 | N116: 101.1730644 | O116: 131.3967418 | P116: 129.2819839 | Q116: 127.2642888 | R116: 125.2698687 | S116: 123.2279725 | T116: 121.2098929 | U116: 119.5251809
B118: Discount Factor | C118: 0.05 | D118: =1 -> 1 | E118: =D118/(1.05) -> 0.9523809524 | F118: =E118/(1.05) -> 0.9070294785 | G118: 0.8638375985 | H118: 0.8227024748 | I118: 0.7835261665 | J118: 0.7462153966 | K118: 0.7106813301 | L118: 0.676839362 | M118: 0.6446089162 | N118: 0.6139132535 | O118: 0.5846792891 | P118: 0.5568374182 | Q118: 0.5303213506 | R118: 0.505067953 | S118: 0.4810170981 | T118: 0.458111522 | U118: =T118/(1.05) -> 0.4362966876
B120: Discounted Cash Flow | D120: =D116*D118 -> 108.25 | E120: =E116*E118 -> 100.3511905 | F120: -85.40334434 | G120: -80.96304572 | H120: -23.09483523 | I120: -24.52950452 | J120: -20.31946246 | K120: -35.45474002 | L120: -33.39639471 | M120: -23.60305899 | N120: 62.11148515 | O120: 76.82495359 | P120: 71.98904615 | Q120: 67.49096951 | R120: 63.26979618 | S120: 59.27476172 | T120: 55.52764853 | U120: 52.14844053
B122: Gold Mine NPV | C122: =SUM(H120:U120) -> 348.2391054 | D122: =IF(C122>0,1,0) -> 1
B123: Gold Mine IRR
B125: Transaction NPV
B126: Purchase Price of Mine B | C126: =SUM($F$126:M126) -> -1000 | D126: =0 -> 0 | E126: 0 | F126: =-$F$11 -> -125 | G126: -125 | H126: -125 | I126: -125 | J126: -125 | K126: -125 | L126: -125 | M126: -125 | N126: =-N111 -> 0 | O126: 0 | P126: 0 | Q126: 0 | R126: 0 | S126: 0 | T126: 0 | U126: 0 | W126: Note: For IRR during a Combined Down Scenario, due to there being 2 IRR's
B127: Undicounted FCF | C127: =SUM(H127:U127) -> 755.8943438 | D127: =D116 -> 108.25 | E127: =E116 -> 105.36875 | F127: -94.15718714 | G127: -93.7248458 | H127: -28.07191657 | I127: -31.30655436 | J127: -27.23002306 | K127: -49.88837966 | L127: -49.34168516 | M127: -36.61609139 | N127: 101.1730644 | O127: 131.3967418 | P127: 129.2819839 | Q127: 127.2642888 | R127: 125.2698687 | S127: 123.2279725 | T127: 121.2098929 | U127: 119.5251809 | W127: It shouldn’t be used for deciding whether or not to continue the expansion
B129: Transaction IRR | C129: =IRR(D130:U130) -> 0.6719086558
B130: Net Cashflow | C130: =SUM(H130:U130) -> 5.894343815 | D130: =D126+D127 -> 108.25 | E130: =E126+E127 -> 105.36875 | F130: -219.1571871 | G130: -218.7248458 | H130: -153.0719166 | I130: -156.3065544 | J130: -152.2300231 | K130: -174.8883797 | L130: -174.3416852 | M130: -161.6160914 | N130: 101.1730644 | O130: 131.3967418 | P130: 129.2819839 | Q130: 127.2642888 | R130: 125.2698687 | S130: 123.2279725 | T130: 121.2098929 | U130: 119.5251809
B132: Payback
B133: Purchase Price of Mine B | D133: =D126 -> 0 | E133: =E126 -> 0 | F133: -125 | G133: -125 | H133: -125 | I133: -125 | J133: -125 | K133: -125 | L133: -125 | M133: -125 | N133: 0 | O133: 0 | P133: 0 | Q133: 0 | R133: 0 | S133: 0 | T133: 0 | U133: 0
B134: Undicounted FCF | D134: =D127 -> 108.25 | E134: =E127 -> 105.36875 | F134: -94.15718714 | G134: -93.7248458 | H134: -28.07191657 | I134: -31.30655436 | J134: -27.23002306 | K134: -49.88837966 | L134: -49.34168516 | M134: -36.61609139 | N134: 101.1730644 | O134: 131.3967418 | P134: 129.2819839 | Q134: 127.2642888 | R134: 125.2698687 | S134: 123.2279725 | T134: 121.2098929 | U134: 119.5251809
B135: Net Cashflow | D135: =D133+D134 -> 108.25 | E135: =E133+E134 -> 105.36875 | F135: -219.1571871 | G135: -218.7248458 | H135: -153.0719166 | I135: -156.3065544 | J135: -152.2300231 | K135: -174.8883797 | L135: -174.3416852 | M135: -161.6160914 | N135: 101.1730644 | O135: 131.3967418 | P135: 129.2819839 | Q135: 127.2642888 | R135: 125.2698687 | S135: 123.2279725 | T135: 121.2098929 | U135: 119.5251809
B137: Cumulative (Quarterly) | D137: =D135 -> 108.25 | E137: =D137+E135 -> 213.61875 | F137: =E137+F135 -> -5.538437136 | G137: -224.2632829 | H137: -377.3351995 | I137: -533.6417539 | J137: -685.8717769 | K137: -860.7601566 | L137: -1035.101842 | M137: -1196.717933 | N137: -1095.544869 | O137: -964.1481269 | P137: -834.866143 | Q137: -707.6018542 | R137: -582.3319855 | S137: -459.104013 | T137: -337.8941201 | U137: =T137+U135 -> -218.3689391
B138: Period (Quarterly) | C138: =MAX(H138:U138) -> 16 | D138: =IF(D137 <0,1,0) -> 0 | E138: =D138+IF(E137<0,1,0) -> 0 | F138: =E138+IF(F137<0,1,0) -> 1 | G138: 2 | H138: 3 | I138: 4 | J138: 5 | K138: 6 | L138: 7 | M138: 8 | N138: 9 | O138: 10 | P138: 11 | Q138: 12 | R138: 13 | S138: 14 | T138: 15 | U138: =T138+IF(U137<0,1,0) -> 16
B140: Charts & Graph | D140: =MOD(D$19,100)&"Q"&D$20 -> 17Q3 | E140: =MOD(E$19,100)&"Q"&E$20 -> 17Q4 | F140: =MOD(F$19,100)&"Q"&F$20 -> 18Q1 | G140: =MOD(G$19,100)&"Q"&G$20 -> 18Q2 | H140: 18Q3 | I140: 18Q4 | J140: 19Q1 | K140: 19Q2 | L140: 19Q3 | M140: 19Q4 | N140: 20Q1 | O140: 20Q2 | P140: 20Q3 | Q140: 20Q4 | R140: 21Q1 | S140: 21Q2 | T140: 21Q3 | U140: 21Q4
B142: EBITDA | D142: =D109 -> 139.6428571 | E142: =E109 -> 135.5267857 | F142: 30.84281286 | G142: 15.08381676 | H142: 91.47804694 | I142: 90.47222162 | J142: 87.72286213 | K142: 70.09164446 | L142: 71.61141006 | M142: 83.0252258 | N142: 85.90235725 | O142: 109.1513399 | P142: 107.524603 | Q142: 105.9725298 | R142: 104.4383606 | S142: 102.8676711 | T142: 101.3153023 | U142: 100.0193699
B143: Capex | D143: =D126 -> 0 | E143: =E126 -> 0 | F143: -125 | G143: -125 | H143: -125 | I143: -125 | J143: -125 | K143: -125 | L143: -125 | M143: -125 | N143: 0 | O143: 0 | P143: 0 | Q143: 0 | R143: 0 | S143: 0 | T143: 0 | U143: 0
B144: Free Cash Flow | D144: =D116 -> 108.25 | E144: =E116 -> 105.36875 | F144: -94.15718714 | G144: -93.7248458 | H144: -28.07191657 | I144: -31.30655436 | J144: -27.23002306 | K144: -49.88837966 | L144: -49.34168516 | M144: -36.61609139 | N144: 101.1730644 | O144: 131.3967418 | P144: 129.2819839 | Q144: 127.2642888 | R144: 125.2698687 | S144: 123.2279725 | T144: 121.2098929 | U144: 119.5251809
B146: Acquisition Cost | C146: =SUM($D$146:M146) -> -1000 | D146: =D143 -> 0 | E146: =E143 -> 0 | F146: -125 | G146: -125 | H146: -125 | I146: -125 | J146: -125 | K146: -125 | L146: -125 | M146: -125 | N146: 0 | O146: 0 | P146: 0 | Q146: 0 | R146: 0 | S146: 0 | T146: 0 | U146: 0
B147: Cumulative FCF | C147: =U147 -> -218.3689391 | D147: =D137 -> 108.25 | E147: =E137 -> 213.61875 | F147: -5.538437136 | G147: -224.2632829 | H147: -377.3351995 | I147: -533.6417539 | J147: -685.8717769 | K147: -860.7601566 | L147: -1035.101842 | M147: -1196.717933 | N147: -1095.544869 | O147: -964.1481269 | P147: -834.866143 | Q147: -707.6018542 | R147: -582.3319855 | S147: -459.104013 | T147: -337.8941201 | U147: -218.3689391
B148: Free Cashflow | C148: =SUM($D$148:U148) -> -218.3689391 | D148: =D135 -> 108.25 | E148: =E135 -> 105.36875 | F148: -219.1571871 | G148: -218.7248458 | H148: -153.0719166 | I148: -156.3065544 | J148: -152.2300231 | K148: -174.8883797 | L148: -174.3416852 | M148: -161.6160914 | N148: 101.1730644 | O148: 131.3967418 | P148: 129.2819839 | Q148: 127.2642888 | R148: 125.2698687 | S148: 123.2279725 | T148: 121.2098929 | U148: 119.5251809
P166: Need to fix dates on graph

Sheet Scenario
A2: Gold Dust Expansion: Scenario Analysis
AA3: Base
C4: Scenario Manager
C6: Case Selector | D6: Selection | E6: 1 | G6: Change Case for Different Scenarios
C7: Number of scenarios | D7: Num# | E7: =COUNT(F11:K11) -> 6
C8: Hedging Percentage | E8: 0.8
F10: Case | M10: Profile of Scenarios for Gold Dust
E11: Active | F11: 1 | G11: 2 | H11: 3 | I11: 4 | J11: 5 | K11: 6
E12: =INDEX($F12:$K12,1,E$6) -> Base Case | F12: Base Case | G12: Price Dn | H12: Interest Up | I12: Forex Up | J12: Combined Up | K12: Combined Down | N12: Case Selected | O12: =E16 -> Base
C13: Interest Rates | E13: =IF(INDEX($F13:$K13,1,E$6)="",F13,INDEX($F13:$K13,1,E$6)) -> 0 | F13: 0 | G13: 0 | H13: 0.2 | I13: 0 | J13: -0.2 | K13: 0.2 | N13: Price Case
C14: Forex (AUD/USD) | E14: =IF(INDEX($F14:$K14,1,E$6)="",F14,INDEX($F14:$K14,1,E$6)) -> 0 | F14: 0 | G14: 0 | H14: 0 | I14: 0.2 | J14: -0.2 | K14: 0.2 | M14: =IF($O$12=N14,1,0) -> 1 | N14: Base | O14: USD/Oz | P14: Value Changes of 0%
C15: Price | E15: =IF(INDEX($F15:$K15,1,E$6)="",F15,INDEX($F15:$K15,1,E$6)) -> 0 | F15: 0 | G15: -0.2 | H15: 0 | I15: 0 | J15: 0.2 | K15: -0.2 | M15: =IF($O$12=N15,1,0) -> 0 | N15: Pessimistic | O15: USD/Oz | P15: Adverse Changes of 20%
C16: Price Path | E16: =IF(INDEX($F16:$K16,1,E$6)="",F16,INDEX($F16:$K16,1,E$6)) -> Base | F16: Base | G16: Pessimistic | H16: Pessimistic | I16: Pessimistic | J16: Optimistic | K16: Pessimistic | M16: =IF($O$12=N16,1,0) -> 0 | N16: Optimistic | O16: USD/Oz | P16: Favourable Changes of 20%
C19: Scenario 1 (Unhedged Base Model) | M19: Scenario 2 (Hedged Model)
F21: NPAT | G21: Operating CF | H21: Investing CF | I21: Financing CF | J21: Cash @ start of period | K21: Cash @ end of period | P21: NPAT | Q21: Operating CF | R21: Investing CF | S21: Financing CF | T21: Cash @ start of 18Q4 | U21: Cash @ end of period
D22: Period | E22: Case | F22: AUD | G22: AUD | H22: AUD | I22: AUD | J22: AUD | K22: AUD | N22: Period | O22: Case | P22: AUD | Q22: AUD | R22: AUD | S22: AUD | T22: AUD | U22: AUD
D23: 18Q4 | E23: =$E$12 -> Base Case | F23: ='Base Model'!I50 -> 14.89625569 | G23: ='Base Model'!I56 -> 28.89625569 | H23: ='Base Model'!I57 -> -145 | I23: ='Base Model'!I58 -> 0 | J23: ='Base Model'!I54 -> 592.6224393 | K23: ='Base Model'!I60 -> 476.518695 | N23: 18Q4 | O23: =$E$12 -> Base Case | P23: ='Hedged Model'!I95 -> 52.25099759 | Q23: ='Hedged Model'!I101 -> 66.25099759 | R23: ='Hedged Model'!I102 -> -145 | S23: ='Hedged Model'!J103 -> 0 | T23: ='Hedged Model'!I99 -> 531.7647275 | U23: ='Hedged Model'!I105 -> 453.0157251
D24: 19Q4 | E24: =$E$12 -> Base Case | F24: ='Base Model'!$M$50 -> 12.76942921 | G24: ='Base Model'!$M$56 -> 26.76942921 | H24: ='Base Model'!$M$57 -> -145 | I24: ='Base Model'!$M$58 -> 0 | J24: ='Base Model'!M54 -> 115.1245829 | K24: ='Base Model'!$M$60 -> -3.105987926 | N24: 19Q4 | O24: =$E$12 -> Base Case | P24: ='Hedged Model'!M95 -> 42.66654299 | Q24: ='Hedged Model'!M101 -> 56.66654299 | R24: ='Hedged Model'!M102 -> -145 | S24: ='Hedged Model'!M103 -> 0 | T24: ='Hedged Model'!M99 -> 165.3276463 | U24: ='Hedged Model'!M105 -> 76.99418928
AA27: Best Case
D45: Sensitivity Tables for Cash at End of 19Q4 (Unhedged & Hedged)
C47: Sensitivity of changes in Gold & FX assumptions in Cash Held at end of 19Q4 (Hedged) | P47: Sensitivity of changes in Gold & FX assumptions in Cash Held at end of 19Q4 (Unhedged)
H49: Gold % Change | U49: Gold % Change
E50: -0.2 | F50: -0.15 | G50: -0.1 | H50: -0.05 | I50: 0 | J50: 0.05 | K50: 0.1 | L50: 0.15 | M50: 0.2 | R50: -0.2 | S50: -0.15 | T50: -0.1 | U50: -0.05 | V50: 0 | W50: 0.05 | X50: 0.1 | Y50: 0.15 | Z50: 0.2
D51: 0.2 | E51: 65.5638407 | F51: 65.88081089 | G51: 66.19778109 | H51: 66.51475128 | I51: 78.03638654 | J51: 84.36078832 | K51: 90.72963576 | L51: 93.76999431 | M51: 96.25919281 | Q51: 0.2 | R51: -611.8328096 | S51: -535.7419569 | T51: -459.6511042 | U51: -383.5602515 | V51: -307.4693988 | W51: -231.3785461 | X51: -155.2876933 | Y51: -79.19684063 | Z51: -3.105987926
D52: 0.15 | E52: 67.5707842 | F52: 67.90153571 | G52: 68.23228721 | H52: 68.56303872 | I52: 80.58561464 | J52: 87.18499042 | K52: 93.83074426 | L52: 95.72579113 | M52: 89.10316893 | Q52: 0.15 | R52: -558.9000425 | S52: -479.5008918 | T52: -400.1017412 | U52: -320.7025905 | V52: -241.3034399 | W52: -161.9042892 | X52: -82.50513858 | Y52: -3.105987926 | Z52: 76.29316273
D53: 0.1 | E53: 69.76017711 | F53: 70.10596277 | G53: 70.45174844 | H53: 70.79753411 | I53: 83.36659075 | J53: 90.26593815 | K53: 94.40297803 | L53: 85.57524673 | M53: 76.63024473 | Q53: 0.1 | R53: -501.1552057 | S53: -418.1470027 | T53: -335.1387997 | U53: -252.1305968 | V53: -169.1223938 | W53: -86.11419088 | X53: -3.105987926 | Y53: 79.90221503 | Z53: 162.910418
C54: Forex % Change | D54: 0.05 | E54: 72.15808363 | F54: 72.52033528 | G54: 72.88258693 | H54: 73.24483858 | I54: 86.41242173 | J54: 93.64030948 | K54: 81.71133193 | L54: 72.34037746 | M54: 62.96942299 | P54: Forex % Change | Q54: 0.05 | R54: -437.9108605 | S54: -350.949886 | T54: -263.9889115 | U54: -177.027937 | V54: -90.06696245 | W54: -3.105987926 | X54: 83.8549866 | Y54: 170.8159611 | Z54: 257.7769356
D55: 0 | E55: 64.8798922 | F55: 65.18062275 | G55: 65.48135331 | H55: 65.78208386 | I55: 76.99418928 | J55: 83.5564971 | K55: 69.27844039 | L55: 59.4389382 | M55: 49.599436 | Q55: 0 | R55: -368.3420809 | S55: -277.0330577 | T55: -185.7240344 | U55: -94.41501118 | V55: -3.105987926 | W55: 88.20303532 | X55: 179.5120586 | Y55: 270.8210818 | Z55: 362.1301051
D56: -0.05 | E56: 89.08302427 | F56: 89.39958275 | G56: 89.71614122 | H56: 90.0326997 | I56: 101.8349159 | J56: 108.7426084 | K56: 93.713075 | L56: 83.35570427 | M56: 72.99833353 | Q56: -0.05 | R56: -291.4502719 | S56: -195.3355106 | T56: -99.22074924 | U56: -3.105987926 | V56: 93.00877339 | W56: 189.1235347 | X56: 285.238296 | Y56: 381.3530573 | Z56: 477.4678187
D57: -0.1 | E57: 180.7186511 | F57: 181.0527961 | G57: 181.3869412 | H57: 181.7210862 | I57: 194.1789812 | J57: 201.4704343 | K57: 185.6059268 | L57: 174.6731466 | M57: 163.7403664 | Q57: -0.1 | R57: -206.0149285 | S57: -104.5604582 | T57: -3.105987926 | U57: 98.34848235 | V57: 199.8029526 | W57: 301.2574229 | X57: 402.7118932 | Y57: 504.1663635 | Z57: 605.6208337
D58: -0.15 | E58: 293.8443332 | F58: 294.1981338 | G58: 294.5519345 | H58: 294.9057351 | I58: 308.0964474 | J58: 315.8168095 | K58: 299.0190957 | L58: 287.4432108 | M58: 275.8673259 | Q58: -0.15 | R58: -110.5283682 | S58: -3.105987926 | T58: 104.3163924 | U58: 211.7387727 | V58: 319.161153 | W58: 426.5835333 | X58: 534.0059135 | Y58: 641.4282938 | Z58: 748.8506741
D59: -0.2 | E59: 421.1107255 | F59: 421.4866387 | G59: 421.8625519 | H59: 422.2384651 | I59: 436.2535969 | J59: 444.4564816 | K59: 426.6089108 | L59: 414.309533 | M59: 402.0101553 | Q59: -0.2 | R59: -3.105987926 | S59: 111.0302911 | T59: 225.1665702 | U59: 339.3028493 | V59: 453.4391283 | W59: 567.5754074 | X59: 681.7116865 | Y59: 795.8479655 | Z59: 909.9842446
E88: Sensitivity Tables for Profitability at end of year (Unhedged & Hedged)
C90: Sensitivity of changes in Gold & FX assumptions in Profitabilty (Unhedged) for year ended 18Q4 | P90: Sensitivity of changes in Gold & FX assumptions in Profitabilty (Unhedged) for year ended 19Q4
H92: Gold % Change | U92: Gold % Change
E93: -0.2 | F93: -0.15 | G93: -0.1 | H93: -0.05 | I93: 0 | J93: 0.05 | K93: 0.1 | L93: 0.15 | M93: 0.2 | R93: -0.2 | S93: -0.15 | T93: -0.1 | U93: -0.05 | V93: 0 | W93: 0.05 | X93: 0.1 | Y93: 0.15 | Z93: 0.2
D94: 0.2 | E94: -66.09403658 | F94: -50.79723635 | G94: -35.50043612 | H94: -20.20363589 | I94: -4.906835656 | J94: 10.38996458 | K94: 25.68676481 | L94: 40.98356504 | M94: 56.28036527 | Q94: 0.2 | R94: -85.12400113 | S94: -67.82824577 | T94: -50.53249041 | U94: -33.23673505 | V94: -15.9409797 | W94: 1.35477566 | X94: 18.65053102 | Y94: 35.94628637 | Z94: 53.24204173
D95: 0.15 | E95: -55.45278425 | F95: -39.49090575 | G95: -23.52902724 | H95: -7.56714874 | I95: 8.394729763 | J95: 24.35660827 | K95: 40.31848677 | L95: 56.28036527 | M95: 72.24224377 | Q95: 0.15 | R95: -73.09217131 | S95: -55.04442659 | T95: -36.99668187 | U95: -18.94893715 | V95: -0.90119243 | W95: 17.14655229 | X95: 35.19429701 | Y95: 53.24204173 | Z95: 71.28978645
D96: 0.1 | E96: -43.84414534 | F96: -27.1567269 | G96: -10.46930847 | H96: 6.218109967 | I96: 22.9055284 | J96: 39.59294684 | K96: 56.28036527 | L96: 72.96778371 | M96: 89.65520214 | Q96: 0.1 | R96: -59.96653879 | S96: -41.09844203 | T96: -22.23034528 | U96: -3.362248528 | V96: 15.50584823 | W96: 34.37394498 | X96: 53.24204173 | Y96: 72.11013848 | Z96: 90.97823524
C97: Forex % Change | D97: 0.05 | E97: -31.12992177 | F97: -13.64786436 | G97: 3.834193048 | H97: 21.31625046 | I97: 38.79830786 | J97: 56.28036527 | K97: 73.76242268 | L97: 91.24448009 | M97: 108.7265375 | P97: Forex % Change | Q97: 0.05 | R97: -45.59084602 | S97: -25.82426847 | T97: -6.057690922 | U97: 13.70888663 | V97: 33.47546418 | W97: 53.24204173 | X97: 73.00861928 | Y97: 92.77519683 | Z97: 112.5417744
D98: 0 | E98: -17.14427584 | F98: 1.211884437 | G98: 19.56804472 | H98: 37.92420499 | I98: 56.28036527 | J98: 74.63652555 | K98: 92.99268583 | L98: 111.3488461 | M98: 129.7050064 | Q98: 0 | R98: -29.77758398 | S98: -9.022677554 | T98: 11.73222887 | U98: 32.4871353 | V98: 53.24204173 | W98: 73.99694816 | X98: 94.75185459 | Y98: 115.506761 | Z98: 136.2616674
D99: -0.05 | E99: -1.68645666 | F99: 17.63581732 | G99: 36.95809129 | H99: 56.28036527 | I99: 75.60263925 | J99: 94.92491323 | K99: 114.2471872 | L99: 133.5694612 | M99: 152.8917352 | Q99: -0.05 | R99: -12.29976804 | S99: 9.547501882 | T99: 31.39477181 | U99: 53.24204173 | V99: 75.08931166 | W99: 96.93658158 | X99: 118.7838515 | Y99: 140.6311214 | Z99: 162.4783914
D100: -0.1 | E100: 15.48889799 | F100: 35.88463163 | G100: 56.28036527 | H100: 76.67609891 | I100: 97.07183256 | J100: 117.4675662 | K100: 137.8632998 | L100: 158.2590335 | M100: 178.6547671 | Q100: -0.1 | R100: 7.120027446 | S100: 30.18103459 | T100: 53.24204173 | U100: 76.30304887 | V100: 99.36405602 | W100: 122.4250632 | X100: 145.4860703 | Y100: 168.5470774 | Z100: 191.6080846
D101: -0.15 | E101: 34.68488259 | F101: 56.28036527 | G101: 77.87584795 | H101: 99.47133063 | I101: 121.0668133 | J101: 142.662296 | K101: 164.2577787 | L101: 185.8532614 | M101: 207.448744 | Q101: -0.15 | R101: 28.82450476 | S101: 53.24204173 | T101: 77.65957871 | U101: 102.0771157 | V101: 126.4946527 | W101: 150.9121896 | X101: 175.3297266 | Y101: 199.7472636 | Z101: 224.1648006
D102: -0.2 | E102: 56.28036527 | F102: 79.22556562 | G102: 102.170766 | H102: 125.1159663 | I102: 148.0611667 | J102: 171.006367 | K102: 193.9515674 | L102: 216.8967677 | M102: 239.8419681 | Q102: -0.2 | R102: 53.24204173 | S102: 79.18567477 | T102: 105.1293078 | U102: 131.0729408 | V102: 157.0165739 | W102: 182.9602069 | X102: 208.9038399 | Y102: 234.847473 | Z102: 260.791106
C129: Sensitivity of changes in Gold & FX assumptions in Profitabilty (Hedged) for year ended 18Q4 | P129: Sensitivity of changes in Gold & FX assumptions in Profitabilty (Hedged) for year ended 19Q4
H131: Gold % Change | U131: Gold % Change
E132: -0.2 | F132: -0.15 | G132: -0.1 | H132: -0.05 | I132: 0 | J132: 0.05 | K132: 0.1 | L132: 0.15 | M132: 0.2 | R132: -0.2 | S132: -0.15 | T132: -0.1 | U132: -0.05 | V132: 0 | W132: 0.05 | X132: 0.1 | Y132: 0.15 | Z132: 0.2
D133: 0.2 | E133: 103.8988364 | F133: 103.9674872 | G133: 104.036138 | H133: 104.1047887 | I133: 105.7694233 | J133: 117.7855651 | K133: 130.2253769 | L133: 142.6651887 | M133: 155.1050005 | Q133: 0.2 | R133: 5.644051886 | S133: 5.726042299 | T133: 5.808032711 | U133: 5.890023124 | V133: 8.878340362 | W133: 10.05353628 | X133: 29.21970292 | Y133: 41.73165866 | Z133: 54.24361441
D134: 0.15 | E134: 100.4920279 | F134: 100.5636635 | G134: 100.6352991 | H134: 100.7069347 | I134: 102.4439447 | J134: 114.9825275 | K134: 127.9632006 | L134: 140.9438738 | M134: 153.9245469 | Q134: 0.15 | R134: 21.62231879 | S134: 21.707874 | T134: 21.79342921 | U134: 21.87898443 | V134: 24.9972285 | W134: 26.22351989 | X134: 46.22299812 | Y134: 59.27895195 | Z134: 72.33490577
D135: 0.1 | E135: 96.7755096 | F135: 96.85040135 | G135: 96.9252931 | H135: 97.00018485 | I135: 98.81614979 | J135: 111.9246682 | K135: 125.4953719 | L135: 139.0660757 | M135: 152.6367794 | Q135: 0.1 | R135: 39.05315541 | S135: 39.14259949 | T135: 39.23204358 | U135: 39.32148767 | V135: 42.58147011 | W135: 43.86350202 | X135: 64.77204744 | Y135: 78.42145371 | Z135: 92.07085998
C136: Forex % Change | D136: 0.05 | E136: 92.70503712 | F136: 92.78349515 | G136: 92.86195317 | H136: 92.9404112 | I136: 94.84285066 | J136: 108.5755842 | K136: 122.792512 | L136: 137.0094397 | M136: 151.2263674 | P136: Forex % Change | Q136: 0.05 | R136: 58.1440717 | S136: 58.23777503 | T136: 58.33147836 | U136: 58.42518169 | V136: 61.84040139 | W136: 63.18348244 | X136: 85.08767288 | Y136: 99.38705088 | Z136: 113.6864289
D137: 0 | E137: 88.2275174 | F137: 88.30989832 | G137: 88.39227925 | H137: 88.47466018 | I137: 90.47222162 | J137: 104.8915919 | K137: 119.819366 | L137: 134.7471401 | M137: 149.6749142 | Q137: 0 | R137: 79.14407963 | S137: 79.24246813 | T137: 79.34085662 | U137: 79.43924512 | V137: 83.0252258 | W137: 84.4354609 | X137: 107.4348609 | Y137: 122.4492078 | Z137: 137.4635547
D138: -0.05 | E138: 84.60932407 | F138: 84.69604084 | G138: 84.7827576 | H138: 84.86947437 | I138: 86.97217062 | J138: 102.1504551 | K138: 117.8639015 | L138: 133.577348 | M138: 149.2907944 | Q138: -0.05 | R138: 122.2132649 | S138: 122.3168317 | T138: 122.4203985 | U138: 122.5239654 | V138: 126.2986819 | W138: 127.7831399 | X138: 151.9930346 | Y138: 167.7976103 | Z138: 183.6021859
D139: -0.1 | E139: 106.5788888 | F139: 106.6704231 | G139: 106.7619575 | H139: 106.8534918 | I139: 109.0730046 | J139: 125.0945271 | K139: 141.6809427 | L139: 158.2673584 | M139: 174.8537741 | Q139: -0.1 | R139: 168.5211038 | S139: 168.6304244 | T139: 168.7397449 | U139: 168.8490655 | V139: 172.8334884 | W139: 174.4004163 | X139: 199.9553052 | Y139: 216.6379128 | Z139: 233.3205205
D140: -0.15 | E140: 131.1331081 | F140: 131.2300269 | G140: 131.3269456 | H140: 131.4238643 | I140: 133.7739366 | J140: 150.7379016 | K140: 168.2999888 | L140: 185.862076 | M140: 203.4241632 | Q140: -0.15 | R140: 220.2769238 | S140: 220.392675 | T140: 220.5084262 | U140: 220.6241773 | V140: 224.8429781 | W140: 226.5020783 | X140: 253.5601959 | Y140: 271.2241334 | Z140: 288.8880709
D141: -0.2 | E141: 158.7566049 | F141: 158.8595811 | G141: 158.9625572 | H141: 159.0655334 | I141: 161.5624852 | J141: 179.586698 | K141: 198.2464156 | L141: 216.9061333 | M141: 235.5658509 | Q141: -0.2 | R141: 278.5022213 | S141: 278.6252069 | T141: 278.7481926 | U141: 278.8711782 | V141: 283.353654 | W141: 285.1164479 | X141: 313.8656979 | Y141: 332.6336315 | Z141: 351.4015651

Sheet Sensitivity Analysis
A2: Gold Dust Expansion: Sensitivity Analysis
C4: Sensitivity Analysis (Unhedged Model)
C6: Range of sensitivity Inputs (+/- 20%)
C9: Gold Price +/-20% | E9: Interest Rate +/-20% | G9: Forex (AUD/USD) +/-20% | I9: Inflation +/-20%
C10: Change | D10: FCF | E10: Change | F10: FCF | G10: Change | H10: FCF | I10: Change | J10: FCF
C11: 0 | D11: -3.105987926 | E11: 0 | F11: -3.105987926 | G11: 0 | H11: -3.105987926 | I11: 0 | J11: -3.105987926
C12: -0.2 | D12: -368.3420809 | E12: -0.2 | F12: 18 | G12: -0.2 | H12: 453 | I12: -0.2 | J12: 4.811914286
C13: 0.2 | D13: 362 | E13: 0.2 | F13: -24.10598793 | G13: 0.2 | H13: -307.4693988 | I13: 0.2 | J13: -11.0373209
E16: Assumption | G16: Adverse change | H16: Positive Change
E17: =I9 -> Inflation +/-20% | G17: =-($J$13/$J$11)-1 -> -4.553562073 | H17: =ABS($G$17) -> 4.553562073
E18: =E9 -> Interest Rate +/-20% | G18: =-($F$13/$F$11)-1 -> -8.761133816 | H18: =-($F$12/$F$11)-1 -> 4.795257556
E19: =C9 -> Gold Price +/-20% | G19: =-($D$12/$D$11)-1 -> -119.5909571 | H19: =-($D$13/$D$11)-1 -> 115.5490686
E20: =G9 -> Forex (AUD/USD) +/-20% | G20: =-($H$13/$H$11)-1 -> -99.99246425 | H20: =-($H$12/$H$11)-1 -> 144.8473152
C23: Sensitivity of End of Period (19Q4) Cash with Changes in Assumptions
C25: eVA/Tornado Chart
C46: Sensitivity Analysis (Hedged Model)
C50: Hedged Gold Price +/-20% | E50: Hedged Interest Rate +/-20% | G50: Hedged Forex (AUD/USD) +/-20% | I50: Hedged Inflation +/-20%
C51: Change | D51: FCF | E51: Change | F51: FCF | G51: Change | H51: FCF | I51: Change | J51: FCF
C52: 0 | D52: 76.99 | E52: 0 | F52: 76.99 | G52: 0 | H52: 76.99 | I52: 0 | J52: 76.99
C53: -0.2 | D53: 64.88 | E53: -0.2 | F53: 98.89 | G53: -0.2 | H53: 501.28 | I53: -0.2 | J53: 85.01
C54: 0.2 | D54: 798.34 | E54: 0.2 | F54: 55.09 | G54: 0.2 | H54: 78.04 | I54: 0.2 | J54: 68.97
E56: Assumption | G56: Adverse change | H56: Positive Change
E57: =I50 -> Hedged Inflation +/-20% | G57: =(J54/J52)-1 -> -0.1041693726 | H57: =(J53/J52)-1 -> 0.1041693726
E58: =E50 -> Hedged Interest Rate +/-20% | G58: =($F$54/$F$52)-1 -> -0.2844525263 | H58: =($F$53/$F$52)-1 -> 0.2844525263
E59: =G50 -> Hedged Forex (AUD/USD) +/-20% | G59: =($H$54/$H$52)-1 -> 0.01363813482 | H59: =(H53/H52)-1 -> 5.510975451
E60: =C50 -> Hedged Gold Price +/-20% | G60: =($D$53/$D$52)-1 -> -0.157293155 | H60: =($D$54/$D$52)-1 -> 9.369398623
C84: Sensitivity Analysis (Hedged Model vs. Unhedged Model)
E107: Driver | F107: Positive impact | G107: Adverse Impact
E108: Hedged Inflation +/-20% | F108: =H57 -> 0.1041693726 | G108: =G57 -> -0.1041693726
E109: Unhedged Inflation +/-20% | F109: =H17 -> 4.553562073 | G109: =G17 -> -4.553562073
E110: Hedged Interest Rate +/-20% | F110: =H58 -> 0.2844525263 | G110: =G58 -> -0.2844525263
E111: Unhedged Interest Rate +/-20% | F111: =H18 -> 4.795257556 | G111: =G18 -> -8.761133816
E112: Hedged Gold Price +/-20% | F112: =$H$60 -> 9.369398623 | G112: =$G$60 -> -0.157293155
E113: Unhedged Gold Price +/-20% | F113: =$H$19 -> 115.5490686 | G113: =$G$20 -> -99.99246425
E114: Hedged Forex (AUD/USD) +/-20% | F114: =H59 -> 5.510975451 | G114: =G59 -> 0.01363813482
E115: Unhedged Forex (AUD/USD) +/-20% | F115: =H20 -> 144.8473152 | G115: =G19 -> -119.5909571

Sheet Risk Strategy
A2: Put: | E2: GOLD 100 OZ FUTR COMDTY (CMX) | O2: Assumptions:
A3: Call: | O3: Spot FX rate | P3: 0.78 | R3: Assumption Key:
A4: 2018-12-01 | G4: =Assumptions!$D$18 -> 1284.8 | O4: Spot price | P4: 1300 | R4: Favourable Δ
A5: Strike | B5: Ticker | C5: Bid | D5: Ask | E5: Call Settlement | F5: Open Int | G5: Strike | H5: Ticker | I5: Bid | J5: Ask | K5: Put Settlement | L5: Open Int | O5: Hedge Ratio | P5: 1 | R5: Base Δ
A6: 1275 | B6: GCZ7C | C6: 0 | D6: 0 | E6: 25.7 | F6: 3294 | H6: GCZ7P | I6: 0 | J6: 31 | K6: 15.9 | L6: 2497 | O6: Gold Price Δ | P6: =Scenario!E15 -> 0 | R6: Adverse Δ
A7: 1280 | B7: GCZ7C | C7: 0 | D7: 0 | E7: 23.1 | F7: 1295 | H7: GCZ7P | I7: 0 | J7: 27.3 | K7: 18.3 | L7: 3650 | O7: AUD/USD Δ | P7: =Scenario!E14 -> 0
A8: 1285 | B8: GCZ7C | C8: 0 | D8: 34.5 | E8: 20.6 | F8: 795 | H8: GCZ7P | I8: 0 | J8: 25.4 | K8: 20.8 | L8: 1112 | R8: Options on Gold Futures
A9: 1290 | B9: GCZ7C | C9: 0 | D9: 0 | E9: 18.4 | F9: 1376 | H9: GCZ7P | I9: 3 | J9: 0 | K9: 23.6 | L9: 1563 | Q9: (Option prices & premiums were sourced from Bloomberg Terminals on the 29th September 2017)
A10: 1295 | B10: GCZ7C | C10: 9.1 | D10: 0 | E10: 16.4 | F10: 996 | H10: GCZ7P | I10: 0 | J10: 0 | K10: 26.6 | L10: 664 | Y10: Increments | Z10: =25 -> 25
A11: 1300 | B11: GCZ7C | C11: 11.5 | D11: 150 | E11: 14.5 | F11: 8511 | H11: GCZ7P | I11: 19 | J11: 49 | K11: 29.7 | L11: 3905
A12: 1305 | B12: GCZ7C | C12: 0 | D12: 0 | E12: 12.9 | F12: 839 | H12: GCZ7P | I12: 0 | J12: 0 | K12: 33.1 | L12: 884 | Q12: 18Q2 | R12: 18Q3 | S12: 18Q4 | T12: 19Q1 | U12: 19Q2 | V12: 19Q3 | W12: 19Q4 | Y12: Spot Price | Z12: Short Call | AA12: Long Put | AB12: P/L | AC12: Underlying | AD12: Total P/L
A13: 1310 | B13: GCZ7C | C13: 0 | D13: 0 | E13: 11.4 | F13: 834 | H13: GCZ7P | I13: 13.9 | J13: 0 | K13: 36.6 | L13: 662 | Q13: 2 | R13: 3 | S13: 4 | T13: 1 | U13: 2 | V13: 3 | W13: 4 | Y13: 1100 | Z13: =((-MAX(Y13-$Q$15,0)*$Q$18)-($Q$20*$Q$18))/1000000 -> 4.263553125 | AA13: =((MAX($Q$27-Y13,0)*$Q$30)-($Q$32*$Q$30))/1000000 -> 37.46829023 | AB13: =SUM(Z13:AA13) -> 41.73184336 | AC13: =((Y13)*$Q$18)/1000000 -> 254.8863281 | AD13: =SUM(AB13:AC13) -> 296.6181715
A14: 1315 | B14: GCZ7C | C14: 0 | D14: 15.5 | E14: 10.1 | F14: 1260 | H14: GCZ7P | I14: 0 | J14: 0 | K14: 40.2 | L14: 748 | N14: Short Call | O14: Futures "spot" price | Q14: =Q26 -> 1284.8 | R14: =R26 -> 1290.9 | S14: 1296.8 | T14: 1302.65 | U14: 1308.6 | V14: 1314.65 | W14: 1320.9 | Y14: =Y13+$Z$10 -> 1125 | Z14: =((-MAX(Y14-$Q$15,0)*$Q$18)-($Q$20*$Q$18))/1000000 -> 4.263553125 | AA14: =((MAX($Q$27-Y14,0)*$Q$30)-($Q$32*$Q$30))/1000000 -> 31.67541914 | AB14: =SUM(Z14:AA14) -> 35.93897227 | AC14: =((Y14)*$Q$18)/1000000 -> 260.6791992 | AD14: =SUM(AB14:AC14) -> 296.6181715
A15: =A14+5 -> 1320 | B15: GCZ7C | E15: 8.9 | K15: 45.9 | O15: Strike Price | Q15: 1290 | R15: 1300 | S15: 1300 | T15: 1305 | U15: 1310 | V15: 1320 | W15: 1325 | Y15: =Y14+$Z$10 -> 1150 | Z15: 4.263553125 | AA15: 25.88254805 | AB15: 30.14610117 | AC15: 266.4720703 | AD15: 296.6181715
A16: =A15+5 -> 1325 | B16: GCZ7C | E16: 7.8 | K16: 49.5 | O16: Adjusted Spot Price with % change | Q16: =Q14*(1+$P$6) -> 1284.8 | R16: 1290.9 | S16: 1296.8 | T16: 1302.65 | U16: 1308.6 | V16: 1314.65 | W16: 1320.9 | Y16: 1175 | Z16: 4.263553125 | AA16: 20.08967695 | AB16: 24.35323008 | AC16: 272.2649414 | AD16: 296.6181715
A17: 1330 | B17: GCZ7C | E17: 6.9 | K17: 53.3 | O17: Number of ounces per contract | Q17: 100 | R17: 100 | S17: 100 | T17: 100 | U17: 100 | V17: 100 | W17: 100 | Y17: 1200 | Z17: 4.263553125 | AA17: 14.29680586 | AB17: 18.56035898 | AC17: 278.0578125 | AD17: 296.6181715
A18: 1335 | B18: GCZ7C | E18: 6.1 | K18: 57.3 | O18: Number of ounces to hedge | Q18: =Q30*$P$5 -> 231714.8438 | R18: =R30*$P$5 -> 225921.9727 | S18: 220273.9233 | T18: 214767.0753 | U18: 209397.8984 | V18: 214162.9509 | W18: 249058.8771 | Y18: 1225 | Z18: 4.263553125 | AA18: 8.503934766 | AB18: 12.76748789 | AC18: 283.8506836 | AD18: 296.6181715
A19: 1340 | B19: GCZ7C | E19: 5.4 | K19: 61.2 | O19: Number of contracts | Q19: =Q18/Q17 -> 2317.148438 | R19: =R18/R17 -> 2259.219727 | S19: 2202.739233 | T19: 2147.670753 | U19: 2093.978984 | V19: 2141.629509 | W19: 2490.588771 | Y19: 1250 | Z19: 4.263553125 | AA19: 2.711063672 | AB19: 6.974616797 | AC19: 289.6435547 | AD19: 296.6181715
A20: 1345 | B20: GCZ7C | E20: 4.8 | K20: 65.2 | O20: Cost per ounce | Q20: =-VLOOKUP(Q15,A6:L27,5) -> -18.4 | R20: =-VLOOKUP(R15,A32:L53,5) -> -32.8 | S20: =-VLOOKUP(S15,A57:L78,5) -> -47.9 | T20: =-VLOOKUP(T15,A81:L102,5) -> -63.3 | U20: =-VLOOKUP(U15,A105:L130,5) -> -72.4 | V20: =-VLOOKUP(V15,A133:L158,5) -> -89.4 | W20: =-VLOOKUP(A101,A161:L186,5) -> -79.5 | Y20: 1275 | Z20: 4.263553125 | AA20: -3.081807422 | AB20: 1.181745703 | AC20: 295.4364258 | AD20: 296.6181715
A21: 1350 | B21: GCZ7C | E21: 4.3 | K21: 69.4 | O21: Payout per ounce | Q21: =-MAX(Q16-Q15,0) -> 0 | R21: =-MAX(R16-R15,0) -> 0 | S21: 0 | T21: 0 | U21: 0 | V21: 0 | W21: 0 | Y21: 1290 | Z21: 4.263553125 | AA21: -4.240381641 | AB21: 0.02317148437 | AC21: 298.9121484 | AD21: 298.9353199
A22: 1355 | B22: GCZ7C | E22: 3.8 | K22: 73.7 | O22: Payout for all contracts | Q22: =Q21*Q19*Q17 -> 0 | R22: =R21*R19*R17 -> 0 | S22: 0 | T22: 0 | U22: 0 | V22: 0 | W22: 0 | Y22: =Y20+$Z$10 -> 1300 | Z22: 1.946404688 | AA22: -4.240381641 | AB22: -2.293976953 | AC22: 301.2292969 | AD22: 298.9353199
A23: 1360 | B23: GCZ7C | E23: 3.4 | K23: 78 | O23: Total cost | Q23: =Q20*Q17*Q19 -> -4263553.125 | R23: =R20*R17*R19 -> -7410240.703 | S23: -10551120.93 | T23: -13594755.86 | U23: -15160407.84 | V23: -19146167.81 | W23: -19800180.73 | Y23: =Y21+$Z$10 -> 1315 | Z23: -1.529317969 | AA23: -4.240381641 | AB23: -5.769699609 | AC23: 304.7050195 | AD23: 298.9353199
A24: 1365 | B24: GCZ7C | E24: 3 | K24: 82.4 | O24: Net Payout | Q24: =Q22-Q23 -> 4263553.125 | R24: =R22-R23 -> 7410240.703 | S24: 10551120.93 | T24: 13594755.86 | U24: 15160407.84 | V24: 19146167.81 | W24: 19800180.73 | Y24: 1325 | Z24: -3.846466406 | AA24: -4.240381641 | AB24: -8.086848047 | AC24: 307.022168 | AD24: 298.9353199
A25: 1370 | B25: GCZ7C | E25: 2.7 | K25: 86.8 | Y25: 1340 | Z25: -7.322189062 | AA25: -4.240381641 | AB25: -11.5625707 | AC25: 310.4978906 | AD25: 298.9353199
A26: 1375 | B26: GCZ7C | E26: 2.5 | K26: 91.3 | N26: Long Put | O26: Futures "spot" price | Q26: =Assumptions!$D$18 -> 1284.8 | R26: =Assumptions!$E$20 -> 1290.9 | S26: =Assumptions!$D$21 -> 1296.8 | T26: =Assumptions!E23 -> 1302.65 | U26: =Assumptions!D24 -> 1308.6 | V26: =Assumptions!E26 -> 1314.65 | W26: =Assumptions!D27 -> 1320.9 | Y26: 1350 | Z26: -9.6393375 | AA26: -4.240381641 | AB26: -13.87971914 | AC26: 312.8150391 | AD26: 298.9353199
A27: 1380 | B27: GCZ7C | E27: 2.2 | K27: 95.9 | O27: Strike Price | Q27: 1280 | R27: 1285 | S27: 1290 | T27: 1295 | U27: 1300 | V27: 1305 | W27: 1310 | Y27: 1365 | Z27: -13.11506016 | AA27: -4.240381641 | AB27: -17.3554418 | AC27: 316.2907617 | AD27: 298.9353199
O28: Adjusted Spot Price with % change | Q28: =Q16 -> 1284.8 | R28: =R26*(1+$P$6) -> 1290.9 | S28: 1296.8 | T28: 1302.65 | U28: 1308.6 | V28: 1314.65 | W28: 1320.9 | Y28: 1375 | Z28: -15.43220859 | AA28: -4.240381641 | AB28: -19.67259023 | AC28: 318.6079102 | AD28: 298.9353199
O29: Number of ounces per contract | Q29: 100 | R29: 100 | S29: 100 | T29: 100 | U29: 100 | V29: 100 | W29: 100 | Y29: 1390 | Z29: -18.90793125 | AA29: -4.240381641 | AB29: -23.14831289 | AC29: 322.0836328 | AD29: 298.9353199
O30: Number of ounces to hedge | Q30: =(('Hedged Model'!G26*$P$5)*1000)*$P$5 -> 231714.8438 | R30: =(('Hedged Model'!H26*$P$5)*1000)*$P$5 -> 225921.9727 | S30: =(('Hedged Model'!I26*$P$5)*1000)*$P$5 -> 220273.9233 | T30: =(('Hedged Model'!J26*$P$5)*1000)*$P$5 -> 214767.0753 | U30: =(('Hedged Model'!K26*$P$5)*1000)*$P$5 -> 209397.8984 | V30: =(('Hedged Model'!L26*$P$5)*1000)*$P$5 -> 214162.9509 | W30: =(('Hedged Model'!M26*$P$5)*1000)*$P$5 -> 249058.8771
B31: 2018-03-01 | G31: =Assumptions!$E$20 -> 1290.9 | O31: Number of contracts | Q31: =Q30/Q29 -> 2317.148438 | R31: =R30/R29 -> 2259.219727 | S31: 2202.739233 | T31: 2147.670753 | U31: 2093.978984 | V31: 2141.629509 | W31: 2490.588771
A32: 1275 | B32: GCH8C | C32: 0 | D32: 0 | E32: 45.2 | F32: 914 | H32: GCH8P | I32: 0 | J32: 0 | K32: 27.4 | L32: 294 | O32: Cost per ounce | Q32: =VLOOKUP($Q$27,A6:L27,11) -> 18.3 | R32: =VLOOKUP(R27,A32:L53,11) -> 32 | S32: =VLOOKUP(S27,A57:L78,11) -> 45.9 | T32: =VLOOKUP(T27,A81:L102,11) -> 58.6 | U32: =VLOOKUP(U27,A105:L130,11) -> 68.7 | V32: =VLOOKUP(V27,A133:L158,11) -> 84.6 | W32: =VLOOKUP(W27,A161:L186,11) -> 94.9
A33: 1280 | B33: GCH8C | C33: 0 | D33: 0 | E33: 42.5 | F33: 1025 | H33: GCH8P | I33: 0 | J33: 0 | K33: 29.6 | L33: 750 | O33: Payout per ounce | Q33: =MAX(Q27-Q28,0) -> 0 | R33: =MAX(R27-R28,0) -> 0 | S33: 0 | T33: 0 | U33: 0 | V33: 0 | W33: 0
A34: 1285 | B34: GCH8C | C34: 0 | D34: 0 | E34: 39.8 | F34: 210 | H34: GCH8P | I34: 0 | J34: 0 | K34: 32 | L34: 411 | O34: Total Payout for contracts | Q34: =Q33*Q31*Q29 -> 0 | R34: =R33*R31*R29 -> 0 | S34: 0 | T34: 0 | U34: 0 | V34: 0 | W34: 0
A35: 1290 | B35: GCH8C | C35: 0 | D35: 0 | E35: 37.4 | F35: 265 | H35: GCH8P | I35: 0 | J35: 0 | K35: 34.5 | L35: 538 | O35: Total cost | Q35: =Q32*Q29*Q31 -> 4240381.641 | R35: =R32*R29*R31 -> 7229503.125 | S35: 10110573.08 | T35: 12585350.61 | U35: 14385635.62 | V35: 18118185.65 | W35: 23635687.44
A36: 1295 | B36: GCH8C | C36: 0 | D36: 0 | E36: 35 | F36: 50 | H36: GCH8P | I36: 0 | J36: 0 | K36: 37.1 | L36: 50 | O36: Net payout | Q36: =Q34-Q35 -> -4240381.641 | R36: =R34-R35 -> -7229503.125 | S36: -10110573.08 | T36: -12585350.61 | U36: -14385635.62 | V36: -18118185.65 | W36: -23635687.44
A37: 1300 | B37: GCH8C | C37: 0 | D37: 0 | E37: 32.8 | F37: 1072 | H37: GCH8P | I37: 0 | J37: 0 | K37: 39.9 | L37: 917
A38: 1305 | B38: GCH8C | C38: 0 | D38: 0 | E38: 30.7 | F38: 1 | H38: GCH8P | I38: 0 | J38: 0 | K38: 42.7 | L38: 1 | O38: Net option payout | Q38: =Q24+Q36 -> 23171.48437 | R38: =R24+R36 -> 180737.5781 | S38: 440547.8467 | T38: 1009405.254 | U38: 774772.224 | V38: 1027982.164 | W38: -3835506.708
A39: 1310 | B39: GCH8C | C39: 0 | D39: 0 | E39: 28.7 | F39: 31 | H39: GCH8P | I39: 0 | J39: 0 | K39: 45.7 | L39: 63
A40: 1315 | B40: GCH8C | C40: 0 | D40: 0 | E40: 26.9 | F40: 201 | H40: GCH8P | I40: 0 | J40: 0 | K40: 48.9 | L40: 48 | O40: Proceeds from Spot Sale | Q40: =(Q28-Q26)*Q30 -> 0 | R40: =(R28-R26)*R30 -> 0 | S40: 0 | T40: 0 | U40: 0 | V40: 0 | W40: 0
A41: =A40+5 -> 1320 | B41: GCH8C | E41: 25.1 | K41: 52.1
A42: =A41+5 -> 1325 | B42: GCH8C | E42: 23.5 | K42: 55.5 | O42: Net gain/loss on options and spot | Q42: =Q40+Q38 -> 23171.48437 | R42: 180737.5781 | S42: 440547.8467 | T42: 1009405.254 | U42: 774772.224 | V42: 1027982.164 | W42: -3835506.708
A43: 1330 | B43: GCH8C | E43: 22 | K43: 59
A44: 1335 | B44: GCH8C | E44: 20.6 | K44: 62.5
A45: 1340 | B45: GCH8C | E45: 19.3 | K45: 66.2 | R45: Options on Gold Forex (AUD/USD)
A46: 1345 | B46: GCH8C | E46: 18.1 | K46: 69.9 | Q46: (Option prices & premiums were sourced from Bloomberg Terminals on the 29th September 2017) | Y46: Increments | Z46: 0.02
A47: 1350 | B47: GCH8C | E47: 16.9 | K47: 73.8
A48: 1355 | B48: GCH8C | E48: 15.9 | K48: 77.7 | P48: Long Call | Q48: 2 | R48: 3 | S48: 4 | T48: 1 | U48: 2 | V48: 3 | W48: 4 | Y48: Spot Price | Z48: Long Call P/L
A49: 1360 | B49: GCH8C | E49: 14.9 | K49: 81.7 | O49: Future Spot Price | Q49: 0.7836 | R49: 0.7829 | S49: 0.7821 | T49: 0.7812 | Y49: =0.6 -> 0.6 | Z49: =((MAX(Y49-$Q$50,0)*$Q$54)-($Q$57*$Q$54))/1000000 -> -22.44507056
A50: 1365 | B50: GCH8C | E50: 14 | K50: 85.8 | O50: Strike Price | Q50: 0.725 | R50: 0.745 | S50: 0.745 | T50: 0.745 | Y50: =Y49+$Z$46 -> 0.62 | Z50: -22.44507056
A51: 1370 | B51: GCH8C | E51: 13.1 | K51: 89.9 | O51: Future Spot Price | Q51: =Q49*(1+Scenario!$E$14) -> 0.7836 | R51: =R49*(1+Scenario!$E$14) -> 0.7829 | S51: =S49*(1+Scenario!$E$14) -> 0.7821 | T51: =T49*(1+Scenario!$E$14) -> 0.7812 | Y51: =Y50+$Z$46 -> 0.64 | Z51: -22.44507056
A52: 1375 | B52: GCH8C | E52: 12.3 | K52: 94.1 | O52: Cost Factor | Q52: 1000 | R52: 1000 | S52: 1000 | T52: 1000 | Y52: 0.66 | Z52: -22.44507056
A53: 1380 | B53: GCH8C | E53: 11.6 | K53: 98.3 | O53: Number of AUD per contract | Q53: 100000 | R53: 100000 | S53: 100000 | T53: 100000 | Y53: 0.68 | Z53: -22.44507056
O54: Number of AUD to Hedge | Q54: =380.424924766633*1000000 -> 380424924.8 | R54: =373.014715684346*1000000 -> 373014715.7 | S54: =367.358212547399*1000000 -> 367358212.5 | T54: =360.176849371656*1000000 -> 360176849.4 | Y54: 0.7 | Z54: -22.44507056
O55: USD to Hedge | Q55: =Q54*Q49 -> 298100971 | R55: =R54*R49 -> 292033220.9 | S55: 287310858 | T55: 281370154.7 | Y55: 0.72 | Z55: -22.44507056
B56: 2018-06-01 | G56: =Assumptions!$D$21 -> 1296.8 | O56: Number of Contracts | Q56: =Q63/Q62 -> 3804.249248 | R56: =R63/R62 -> 3730.147157 | S56: =S63/S62 -> 3673.582125 | T56: =T63/T62 -> 3601.768494 | Y56: 0.74 | Z56: -16.73869669
A57: 1275 | B57: GCM8C | E57: 60.4 | F57: 615 | H57: GCM8P | K57: 38.8 | L57: 1002 | O57: USD cost per USD | Q57: =5.9/100 -> 0.059 | R57: =6.11/100 -> 0.0611 | S57: =6.79/100 -> 0.0679 | T57: =6.9/1000 -> 0.0069 | Y57: 0.76 | Z57: -9.130198194
A58: 1280 | B58: GCM8C | E58: 57.7 | F58: 6 | H58: GCM8P | K58: 41 | L58: 75 | O58: Payoff per USD | Q58: =MAX(Q51-Q50,0)*Q56*Q53 -> 22292900.59 | R58: =MAX(R51-R50,0)*R56*R53 -> 14137257.72 | S58: 13628989.69 | T58: 13038401.95 | Y58: 0.78 | Z58: -1.521699699
A59: 1285 | B59: GCM8C | E59: 55.1 | F59: 0 | H59: GCM8P | K59: 43.4 | L59: 46 | O59: Payoff AUD | Q59: =Q58/Q50 -> 30748828.4 | R59: =R58/R50 -> 18976184.87 | S59: =S58/S50 -> 18293945.89 | T59: =T58/T50 -> 17501210.67 | Y59: 0.8 | Z59: 6.086798796
A60: 1290 | B60: GCM8C | E60: 52.6 | F60: 0 | H60: GCM8P | K60: 45.9 | L60: 18 | O60: Total Cost USD | Q60: =Q57*Q56*Q53 -> 22445070.56 | R60: =R57*R56*R53 -> 22791199.13 | S60: =S57*S56*S53 -> 24943622.63 | T60: =T57*T56*T53 -> 2485220.261 | Y60: 0.82 | Z60: 13.69529729
A61: 1295 | B61: GCM8C | E61: 50.2 | F61: 338 | H61: GCM8P | K61: 48.4 | L61: 338 | O61: Cost AUD | Q61: =Q60/Q51 -> 28643530.58 | R61: =R60/R51 -> 29111251.92 | S61: 31893137.24 | T61: 3181285.536 | Y61: 0.84 | Z61: 21.30379579
A62: 1300 | B62: GCM8C | E62: 47.9 | F62: 663 | H62: GCM8P | K62: 51.1 | L62: 680 | O62: Number of AUD per contract | Q62: 100000 | R62: 100000 | S62: 100000 | T62: 100000 | Y62: 0.86 | Z62: 28.91229428
A63: 1305 | B63: GCM8C | E63: 45.7 | F63: 276 | H63: GCM8P | K63: 53.9 | L63: 276 | O63: Amount of AUD to Hedge | Q63: =380.424924766633*1000000 -> 380424924.8 | R63: =373.014715684346*1000000 -> 373014715.7 | S63: =367.358212547399*1000000 -> 367358212.5 | T63: =360.176849371656*1000000 -> 360176849.4 | Y63: =Y62+$Z$46 -> 0.88 | Z63: 36.52079278
A64: 1310 | B64: GCM8C | E64: 43.6 | F64: 115 | H64: GCM8P | K64: 56.7 | L64: 75 | O64: Gain/loss on option USD | Q64: =Q59-(Q61) -> 2105297.823 | R64: =R59-(R61) -> -10135067.06 | S64: -13599191.35 | T64: 14319925.13 | Y64: 0.9 | Z64: 44.12929127
A65: 1315 | B65: GCM8C | E65: 41.6 | F65: 150 | H65: GCM8P | K65: 59.7 | L65: 157 | Y65: 0.92 | Z65: 51.73778977
A66: =A65+5 -> 1320 | B66: GCM8C | E66: 39.7 | H66: GCM8P | K66: 62.7 | Y66: 0.94 | Z66: 59.34628826
A67: =A66+5 -> 1325 | B67: GCM8C | E67: 37.8 | H67: GCM8P | K67: 65.9 | R67: Total Initial Cost of Options Strategy | Y67: 0.96 | Z67: 66.95478676
A68: 1330 | B68: GCM8C | E68: 36.1 | H68: GCM8P | K68: 69.1 | Y68: 0.98 | Z68: 74.56328525
A69: 1335 | B69: GCM8C | E69: 34.4 | H69: GCM8P | K69: 72.4 | Q69: 18Q2 | R69: 18Q3 | S69: 18Q4 | T69: 19Q1 | U69: 19Q2 | V69: 19Q3 | W69: 19Q4
A70: 1340 | B70: GCM8C | E70: 32.9 | H70: GCM8P | K70: 75.8 | Q70: 2 | R70: 3 | S70: 4 | T70: 1 | U70: 2 | V70: 3 | W70: 4
A71: 1345 | B71: GCM8C | E71: 31.4 | H71: GCM8P | K71: 79.2 | O71: Collar on Gold Futures | Q71: =-Q35 -> -4240381.641 | R71: -7229503.125 | S71: -10110573.08 | T71: -12585350.61 | U71: -14385635.62 | V71: -18118185.65 | W71: -23635687.44
A72: 1350 | B72: GCM8C | E72: 29.9 | H72: GCM8P | K72: 82.8 | O72: Long Call on FX Futures | Q72: =-Q60 -> -22445070.56 | R72: =-R60 -> -22791199.13 | S72: =-S60 -> -24943622.63 | T72: =-T60 -> -2485220.261 | U72: 0 | V72: 0 | W72: 0
A73: 1355 | B73: GCM8C | E73: 28.6 | H73: GCM8P | K73: 86.4 | O73: Total Cost | Q73: =SUM(Q71:Q72) -> -26685452.2 | R73: =SUM(R71:R72) -> -30020702.25 | S73: -35054195.71 | T73: -15070570.87 | U73: -14385635.62 | V73: -18118185.65 | W73: -23635687.44
A74: 1360 | B74: GCM8C | E74: 27.3 | H74: GCM8P | K74: 90.1 | O74: Forex (AUD/USD) | Q74: =Assumptions!$J$50 -> 0.7836 | R74: =Assumptions!$J$50 -> 0.7836 | S74: =Assumptions!$J$50 -> 0.7836 | T74: =Assumptions!$J$50 -> 0.7836 | U74: =Assumptions!$J$50 -> 0.7836 | V74: =Assumptions!$J$50 -> 0.7836 | W74: =Assumptions!$J$50 -> 0.7836
A75: 1365 | B75: GCM8C | E75: 26.1 | H75: GCM8P | K75: 93.8 | O75: Total Cost in AUD MM | Q75: =(Q73/Q74)/1000000 -> -34.05494155 | R75: =(R73/R74)/1000000 -> -38.31125862 | S75: -44.73480821 | T75: -19.23247942 | U75: -18.35839155 | V75: -23.12172747 | W75: -30.16294977
A76: 1370 | B76: GCM8C | E76: 24.9 | H76: GCM8P | K76: 97.6
A77: 1375 | B77: GCM8C | E77: 23.8 | H77: GCM8P | K77: 101.5
A78: 1380 | B78: GCM8C | E78: 22.8 | H78: GCM8P | K78: 105.4
B80: 2018-09-01 | G80: =Assumptions!$E$23 -> 1302.65
A81: 1275 | B81: GCU8C | E81: 78.7 | F81: 0 | G81: 1275 | H81: GCU8P | K81: 49.4 | L81: 0
A82: 1280 | B82: GCU8C | E82: 75.9 | F82: 0 | G82: 1280 | H82: GCU8P | K82: 51.6 | L82: 0
A83: 1285 | B83: GCU8C | E83: 73.2 | F83: 0 | G83: 1285 | H83: GCU8P | K83: 53.8 | L83: 0
A84: 1290 | B84: GCU8C | E84: 70.6 | F84: 0 | G84: 1290 | H84: GCU8P | K84: 56.2 | L84: 0
A85: 1295 | B85: GCU8C | E85: 68.1 | F85: 25 | G85: 1295 | H85: GCU8P | K85: 58.6 | L85: 25
A86: 1300 | B86: GCU8C | E86: 65.6 | F86: 0 | G86: 1300 | H86: GCU8P | K86: 61.1 | L86: 5
A87: 1305 | B87: GCU8C | E87: 63.3 | F87: 1 | G87: 1305 | H87: GCU8P | K87: 63.7 | L87: 1
A88: 1310 | B88: GCU8C | E88: 61 | F88: 0 | G88: 1310 | H88: GCU8P | K88: 66.3 | L88: 0
A89: 1315 | B89: GCU8C | E89: 58.7 | F89: 0 | G89: 1315 | H89: GCU8P | K89: 69 | L89: 0
A90: =A89+5 -> 1320 | B90: GCM8C | E90: 56.6 | G90: =G89+5 -> 1320 | K90: 71.8
A91: =A90+5 -> 1325 | B91: GCM8C | E91: 54.5 | G91: =G90+5 -> 1325 | K91: 74.7
A92: 1330 | B92: GCM8C | E92: 52.5 | G92: 1330 | K92: 77.6
A93: 1335 | B93: GCM8C | E93: 50.5 | G93: 1335 | K93: 80.6
A94: 1340 | B94: GCM8C | E94: 48.6 | G94: 1340 | K94: 83.7
A95: 1345 | B95: GCM8C | E95: 46.8 | G95: 1345 | K95: 86.8
A96: 1350 | B96: GCM8C | E96: 45.1 | G96: 1350 | K96: 90.1
A97: 1355 | B97: GCM8C | E97: 43.4 | G97: 1355 | K97: 93.3
A98: 1360 | B98: GCM8C | E98: 41.8 | G98: 1360 | K98: 96.7
A99: 1365 | B99: GCM8C | E99: 40.2 | G99: 1365 | K99: 100.1
A100: 1370 | B100: GCM8C | E100: 38.8 | G100: 1370 | K100: 103.5
A101: 1375 | B101: GCM8C | E101: 37.3 | G101: 1375 | K101: 107.1
A102: 1380 | B102: GCM8C | E102: 35.9 | G102: 1380 | K102: 110.6
B104: 2018-12-01 | G104: =Assumptions!$D$24 -> 1308.6
A105: 1275 | B105: GCZ8C | E105: 90.4 | F105: 161 | G105: 1275 | H105: GCZ8P | K105: 57.2 | L105: 110
A106: 1280 | B106: GCZ8C | E106: 87.6 | F106: 160 | G106: 1280 | H106: GCZ8P | K106: 59.4 | L106: 160
A107: 1285 | B107: GCZ8C | E107: 84.9 | F107: 0 | G107: 1285 | H107: GCZ8P | K107: 61.6 | L107: 0
A108: 1290 | B108: GCZ8C | E108: 82.3 | F108: 150 | G108: 1290 | H108: GCZ8P | K108: 63.9 | L108: 0
A109: 1295 | B109: GCZ8C | E109: 79.7 | F109: 0 | G109: 1295 | H109: GCZ8P | K109: 66.3 | L109: 0
A110: 1300 | B110: GCZ8C | E110: 77.2 | F110: 2519 | G110: 1300 | H110: GCZ8P | K110: 68.7 | L110: 410
A111: 1305 | B111: GCZ8C | E111: 74.8 | F111: 100 | G111: 1305 | H111: GCZ8P | K111: 71.2 | L111: 100
A112: 1310 | B112: GCZ8C | E112: 72.4 | F112: 25 | G112: 1310 | H112: GCZ8P | K112: 73.8 | L112: 525
A113: 1315 | B113: GCZ8C | E113: 70 | F113: 0 | G113: 1315 | H113: GCZ8P | K113: 76.4 | L113: 0
A114: 1320 | B114: GCZ8C | E114: 67.8 | F114: 225 | G114: 1320 | H114: GCZ8P | K114: 79 | L114: 225
A115: 1325 | B115: GCZ8C | E115: 65.6 | F115: 125 | G115: 1325 | H115: GCZ8P | K115: 81.8 | L115: 25
A116: 1330 | B116: GCZ8C | E116: 63.4 | F116: 185 | G116: 1330 | H116: GCZ8P | K116: 84.6 | L116: 0
A117: 1335 | B117: GCZ8C | E117: 61.4 | F117: 120 | G117: 1335 | H117: GCZ8P | K117: 87.4 | L117: 120
A118: =A117+5 -> 1340 | B118: GCZ8C | E118: 59.3 | G118: =G117+5 -> 1340 | H118: GCZ8P | K118: 90.4
A119: =A118+5 -> 1345 | B119: GCZ8C | E119: 57.4 | G119: =G118+5 -> 1345 | H119: GCZ8P | K119: 93.3
A120: 1350 | B120: GCZ8C | E120: 55.5 | G120: 1350 | H120: GCZ8P | K120: 96.4
A121: 1355 | B121: GCZ8C | E121: 53.5 | G121: 1355 | H121: GCZ8P | K121: 99.5
A122: 1360 | B122: GCZ8C | E122: 51.9 | G122: 1360 | H122: GCZ8P | K122: 102.6
A123: 1365 | B123: GCZ8C | E123: 50.1 | G123: 1365 | H123: GCZ8P | K123: 105.9
A124: 1370 | B124: GCZ8C | E124: 48.4 | G124: 1370 | H124: GCZ8P | K124: 109.1
A125: 1375 | B125: GCZ8C | E125: 46.8 | G125: 1375 | H125: GCZ8P | K125: 112.4
A126: 1380 | B126: GCZ8C | E126: 45.3 | G126: 1380 | H126: GCZ8P | K126: 115.8
A127: 1385 | B127: GCZ8C | E127: 43.7 | G127: 1385 | H127: GCZ8P | K127: 119.2
A128: 1390 | B128: GCZ8C | E128: 42.3 | G128: 1390 | H128: GCZ8P | K128: 112.7
A129: 1395 | B129: GCZ8C | E129: 40.9 | G129: 1395 | H129: GCZ8P | K129: 126.2
A130: 1400 | B130: GCZ8C | E130: 39.5 | G130: 1400 | H130: GCZ8P | K130: 129.8
B132: 2019-03-01 | G132: =Assumptions!$E$26 -> 1314.65
A133: 1275 | B133: GCH9C | E133: 111.5 | F133: 0 | G133: 1275 | H133: GCH9P | K133: 70.4 | L133: 0
A134: 1280 | B134: GCH9C | E134: 108.8 | F134: 0 | G134: 1280 | H134: GCH9P | K134: 72.6 | L134: 0
A135: 1285 | B135: GCH9C | E135: 106.1 | F135: 0 | G135: 1285 | H135: GCH9P | K135: 74.9 | L135: 0
A136: 1290 | B136: GCH9C | E136: 103.5 | F136: 0 | G136: 1290 | H136: GCH9P | K136: 77.2 | L136: 0
A137: 1295 | B137: GCH9C | E137: 101 | F137: 0 | G137: 1295 | H137: GCH9P | K137: 79.6 | L137: 0
A138: 1300 | B138: GCH9C | E138: 98.5 | F138: 0 | G138: 1300 | H138: GCH9P | K138: 82.1 | L138: 0
A139: 1305 | B139: GCH9C | E139: 96.2 | F139: 0 | G139: 1305 | H139: GCH9P | K139: 84.6 | L139: 0
A140: 1310 | B140: GCH9C | E140: 93.8 | F140: 0 | G140: 1310 | H140: GCH9P | K140: 87.2 | L140: 0
A141: 1315 | B141: GCH9C | E141: 91.6 | F141: 0 | G141: 1315 | H141: GCH9P | K141: 89.9 | L141: 0
A142: 1320 | B142: GCH9C | E142: 89.4 | F142: 0 | G142: 1320 | H142: GCH9P | K142: 92.6 | L142: 0
A143: 1325 | B143: GCH9C | E143: 87.2 | F143: 0 | G143: 1325 | H143: GCH9P | K143: 95.4 | L143: 0
A144: 1330 | B144: GCH9C | E144: 85.1 | F144: 0 | G144: 1330 | H144: GCH9P | K144: 98.2 | L144: 0
A145: 1335 | B145: GCH9C | E145: 83.1 | F145: 0 | G145: 1335 | H145: GCH9P | K145: 101.1 | L145: 0
A146: =A145+5 -> 1340 | B146: GCH9C | E146: 81.1 | G146: =G145+5 -> 1340 | H146: GCH9P | K146: 104.1
A147: =A146+5 -> 1345 | B147: GCH9C | E147: 79.2 | G147: =G146+5 -> 1345 | H147: GCH9P | K147: 107.1
A148: 1350 | B148: GCH9C | E148: 77.3 | G148: 1350 | H148: GCH9P | K148: 110.1
A149: 1355 | B149: GCH9C | E149: 75.5 | G149: 1355 | H149: GCH9P | K149: 113.3
A150: 1360 | B150: GCH9C | E150: 73.7 | G150: 1360 | H150: GCH9P | K150: 116.4
A151: 1365 | B151: GCH9C | E151: 72 | G151: 1365 | H151: GCH9P | K151: 119.6
A152: 1370 | B152: GCH9C | E152: 70.3 | G152: 1370 | H152: GCH9P | K152: 122.8
A153: 1375 | B153: GCH9C | E153: 68.7 | G153: 1375 | H153: GCH9P | K153: 126.1
A154: 1380 | B154: GCH9C | E154: 67.1 | G154: 1380 | H154: GCH9P | K154: 129.4
A155: 1385 | B155: GCH9C | E155: 65.5 | G155: 1385 | H155: GCH9P | K155: 132.8
A156: 1390 | B156: GCH9C | E156: 64 | G156: 1390 | H156: GCH9P | K156: 136.2
A157: 1395 | B157: GCH9C | E157: 62.5 | G157: 1395 | H157: GCH9P | K157: 139.6
A158: 1400 | B158: GCH9C | E158: 61 | G158: 1400 | H158: GCH9P | K158: 143.1
B160: 2019-06-01 | G160: =Assumptions!$D$27 -> 1320.9
A161: 1275 | B161: GCM9C | E161: 122.7 | F161: 0 | G161: 1275 | H161: GCM9P | K161: 77.6 | L161: 0
A162: 1280 | B162: GCM9C | E162: 120.2 | F162: 25 | G162: 1280 | H162: GCM9P | K162: 80 | L162: 25
A163: 1285 | B163: GCM9C | E163: 117.6 | F163: 0 | G163: 1285 | H163: GCM9P | K163: 82.4 | L163: 0
A164: 1290 | B164: GCM9C | E164: 115.2 | F164: 0 | G164: 1290 | H164: GCM9P | K164: 84.8 | L164: 0
A165: 1295 | B165: GCM9C | E165: 112.7 | F165: 0 | G165: 1295 | H165: GCM9P | K165: 87.3 | L165: 0
A166: 1300 | B166: GCM9C | E166: 110.3 | F166: 0 | G166: 1300 | H166: GCM9P | K166: 89.8 | L166: 0
A167: 1305 | B167: GCM9C | E167: 108 | F167: 0 | G167: 1305 | H167: GCM9P | K167: 92.3 | L167: 0
A168: 1310 | B168: GCM9C | E168: 105.7 | F168: 0 | G168: 1310 | H168: GCM9P | K168: 94.9 | L168: 0
A169: 1315 | B169: GCM9C | E169: 103.4 | F169: 0 | G169: 1315 | H169: GCM9P | K169: 97.6 | L169: 0
A170: 1320 | B170: GCM9C | E170: 101.2 | F170: 0 | G170: 1320 | H170: GCM9P | K170: 100.3 | L170: 0
A171: 1325 | B171: GCM9C | E171: 99 | F171: 0 | G171: 1325 | H171: GCM9P | K171: 103 | L171: 0
A172: 1330 | B172: GCM9C | E172: 96.9 | F172: 0 | G172: 1330 | H172: GCM9P | K172: 105.8 | L172: 0
A173: 1335 | B173: GCM9C | E173: 94.8 | F173: 0 | G173: 1335 | H173: GCM9P | K173: 108.6 | L173: 0
A174: =A173+5 -> 1340 | B174: GCH9C | E174: 92.7 | G174: =G173+5 -> 1340 | H174: GCH9P | K174: 111.5
A175: =A174+5 -> 1345 | B175: GCH9C | E175: 90.7 | G175: =G174+5 -> 1345 | H175: GCH9P | K175: 114.4
A176: 1350 | B176: GCH9C | E176: 88.7 | G176: 1350 | H176: GCH9P | K176: 117.3
A177: 1355 | B177: GCH9C | E177: 86.8 | G177: 1355 | H177: GCH9P | K177: 120.3
A178: 1360 | B178: GCH9C | E178: 84.9 | G178: 1360 | H178: GCH9P | K178: 123.3
A179: 1365 | B179: GCH9C | E179: 83.1 | G179: 1365 | H179: GCH9P | K179: 126.4
A180: 1370 | B180: GCH9C | E180: 81.2 | G180: 1370 | H180: GCH9P | K180: 129.5
A181: 1375 | B181: GCH9C | E181: 79.5 | G181: 1375 | H181: GCH9P | K181: 132.6
A182: 1380 | B182: GCH9C | E182: 77.7 | G182: 1380 | H182: GCH9P | K182: 135.8
A183: 1385 | B183: GCH9C | E183: 76 | G183: 1385 | H183: GCH9P | K183: 139
A184: 1390 | B184: GCH9C | E184: 74.3 | G184: 1390 | H184: GCH9P | K184: 142.3
A185: 1395 | B185: GCH9C | E185: 72.7 | G185: 1395 | H185: GCH9P | K185: 145.5
A186: 1400 | B186: GCH9C | E186: 71.1 | G186: 1400 | H186: GCH9P | K186: 148.9
E190: AU Curncy Futures: Currency Options
A192: 43070
A193: 0.7836 | B193: 43070 | G193: 0.7836 | I193: 1.2164 | J193: 1.276161307
A194: Strike | B194: Ticker | C194: Bid | D194: Ask | E194: Last Price | F194: Open Int | G194: Strike | H194: Ticker | I194: Bid | J194: Ask | K194: Last Price | L194: Open Int
A195: 74.5 | B195: AUAZ7C | E195: 4.02 | F195: 118 | G195: 74.5 | H195: AUAZ7P | K195: 0.17 | L195: 313
A196: 75 | B196: AUAZ7C | E196: 3.58 | F196: 180 | G196: 75 | H196: AUAZ7P | K196: 0.23 | L196: 461
A197: 75.5 | B197: AUAZ7C | E197: 3.15 | F197: 1063 | G197: 75.5 | H197: AUAZ7P | K197: 0.3 | L197: 589
A198: 76 | B198: AUAZ7C | E198: 2.74 | F198: 324 | G198: 76 | H198: AUAZ7P | K198: 0.39 | L198: 937
A199: 76.5 | B199: AUAZ7C | E199: 2.35 | F199: 225 | G199: 76.5 | H199: AUAZ7P | K199: 0.49 | L199: 885
A200: 77 | B200: AUAZ7C | E200: 1.99 | F200: 142 | G200: 77 | H200: AUAZ7P | K200: 0.63 | L200: 432
A201: 77.5 | B201: AUAZ7C | E201: 1.65 | F201: 423 | G201: 77.5 | H201: AUAZ7P | K201: 0.79 | L201: 368
A202: 78 | B202: AUAZ7C | E202: 1.35 | F202: 209 | G202: 78 | H202: AUAZ7P | K202: 0.99 | L202: 646
A203: 78.5 | B203: AUAZ7C | E203: 1.09 | F203: 429 | G203: 78.5 | H203: AUAZ7P | K203: 1.22 | L203: 413
A204: 79 | B204: AUAZ7C | E204: 0.85 | F204: 196 | G204: 79 | H204: AUAZ7P | K204: 1.49 | L204: 245
A205: 79.5 | B205: AUAZ7C | E205: 0.66 | F205: 599 | G205: 79.5 | H205: AUAZ7P | K205: 1.8 | L205: 447
A206: 80 | B206: AUAZ7C | E206: 0.51 | F206: 446 | G206: 80 | H206: AUAZ7P | K206: 2.15 | L206: 331
A207: 80.5 | B207: AUAZ7C | E207: 0.39 | F207: 475 | G207: 80.5 | H207: AUAZ7P | K207: 2.52 | L207: 189
A209: 43160 | G209: 0.7829
A211: 74.5 | B211: AUAH8C | E211: 4.41 | F211: 10 | G211: 74.5 | H211: AUAH8P | K211: 0.64 | L211: 59
... 40 more rows

Sheet FX Margins
A3: Assumptions | F3: Margin Call Caluclations for Long Position on AUS FX Futures | N3: Summarised Tables
F4: (Initial & Maintenance Margins were sourced from Bloomberg Terminals on the 29th September 2017)
A6: Assumtions for Calculations of Margins | D6: =IF('Monte Carlo Simulation (1000)'!$A$2="Simulate",'Monte Carlo Simulation (1000)'!$C$6,Scenario!$E$14) -> 0 | E6: Forex Appreciation/Deprecation | M6: Margin Calls Required USD | P6: Margin Calls Reinbursed USD
H7: Initial | I7: =1450 -> 1450 | M7: 19Q2 | N7: =-J19 -> 0 | P7: 19Q2 | R7: =IF((N7<0),N7*-1,N7) -> 0
A8: Hedging Percentage: | B8: 1 | H8: Maint | I8: =1450 -> 1450 | M8: 19Q3 | N8: =-$J$37 -> 0 | P8: 19Q3 | R8: =IF((N8<0),N8*-1,N8) -> 0
H9: AUD | I9: 100000 | M9: 19Q4 | N9: =-$J$55 -> 0 | P9: 19Q4 | R9: =IF((N9<0),N9*-1,N9) -> 0
A10: Spot Revenue to Hedge AUD: | H10: No of Contract | I10: =B18 -> 3489.964973 | N10: =SUM(N7:N9) -> 0 | P10: Sum | R10: =IF((N10<0),N10*-1,N10) -> 0
A12: 19Q2 | B12: 0 | F12: Futures | G12: Gain/Loss | H12: Cumulative gain/loss | I12: Margin Balance | J12: Margin Call | K12: New Margin Balance | M12: Initial Margins | P12: Initial Margins to be Reinbursed @ Contract Expirations
A13: 19Q3 | B13: 0 | C13: 2019-12-01 | F13: 0.782565 | I13: =I7*I10 -> 5060449.211 | M13: 19Q2 | N13: =-I7*I10 -> -5060449.211 | P13: 19Q2 | R13: =N13*-1 -> 5060449.211
A14: 19Q4 | B14: 0 | E14: 19Q2 | F14: =0.77946*(1+$D$6) -> 0.77946 | G14: =IF(($D$6=0),0,(F14-F13)*$I$9*$I$10) -> 0 | H14: =G14 -> 0 | I14: =I13+G14 -> 5060449.211 | J14: =IF((I14>$I$8),($I$13-I14),IF($D$6=0,0,($I$13-I14))) -> 0 | K14: =I14+J14 -> 5060449.211 | M14: 19Q3 | N14: =-I25*I28 -> -5175604.647 | P14: 19Q3 | R14: =N14*-1 -> 5175604.647
E15: 19Q3 | F15: =0.7784549*(1+$D$6) -> 0.7784549 | G15: 0 | H15: 0 | I15: =K14+G15 -> 5060449.211 | J15: =IF((I15>$I$8),0,IF($D$6=0,0,($I$7-I15))) -> 0 | K15: =I15+J15 -> 5060449.211 | M15: 19Q4 | N15: =-I42*I45 -> -6018922.864 | P15: 19Q4 | R15: =N15*-1 -> 6018922.864
A16: Contracts Needed to Hedge per Period: | E16: 19Q4 | F16: =0.77658*(1+$D$6) -> 0.77658 | G16: 0 | H16: 0 | I16: =K15+G16 -> 5060449.211 | J16: =IF((I16>$I$8),0,IF($D$6=0,0,($I$7-I16))) -> 0 | K16: =I16+J16 -> 5060449.211 | M16: Sum to be paid 18Q2 | N16: =SUM(N13:N15) -> -16254976.72 | P16: Sum | R16: =SUM(R13:R15) -> 16254976.72
A18: 19Q2 | B18: =(348.996497291565*1000000/I9)*B8 -> 3489.964973
A19: 19Q3 | B19: =(356.938251525942*1000000/I9)*B8 -> 3569.382515 | I19: Total Margin Calls Required | J19: =SUM(J14:J17) -> 0
A20: 19Q4 | B20: =(415.098128571127*1000000/I9)*B8 -> 4150.981286 | I20: Initial Margin Balance | J20: =R16 -> 16254976.72
I21: Reinbursement | J21: =N13 -> -5060449.211
I22: Cumulative Margin Balance | J22: =J20+J21 -> 11194527.51
H25: Initial | I25: =I7 -> 1450
H26: Maint | I26: =I8 -> 1450
H27: AUD | I27: 100000
H28: No of Contract | I28: =B19 -> 3569.382515
C30: 2019-03-01 | F30: Futures | G30: Gain/Loss | H30: Cumulative gain/loss | I30: Margin Balance | J30: Margin Call | K30: New Margin Balance
F31: 0.782565 | I31: =I25*I28 -> 5175604.647 | J31: 0 | K31: =I31+J31 -> 5175604.647
E32: 19Q2 | F32: =0.77946*(1+$D$6) -> 0.77946 | I32: =I31 -> 5175604.647 | K32: =I32+J32 -> 5175604.647
E33: 19Q3 | F33: =0.7784549*(1+$D$6) -> 0.7784549 | G33: =IF(($D$6=0),0,($F$32-F31)*$I$9*$I$10) -> 0 | H33: =G33+G32 -> 0 | I33: =K32+G33 -> 5175604.647 | J33: =IF((I33>$I$8),($I$31-I33),IF($D$6=0,0,($I$31-I33))) -> 0 | K33: =I33+J33 -> 5175604.647
E34: 19Q4 | F34: =0.77658*(1+$D$6) -> 0.77658 | G34: 0 | H34: =H33+G34 -> 0 | I34: =K33+G34 -> 5175604.647 | J34: =IF((I34>$I$8),0,($I$7-I34)) -> 0 | K34: =I34+J34 -> 5175604.647
I37: Total Margin Calls Required | J37: =SUM(J32:J35) -> 0
I38: Ending Initial Margin Balance | J38: =J22 -> 11194527.51
I39: Reinbursement | J39: =N14 -> -5175604.647
I40: Cumulative Margin Balance | J40: =J38+J39 -> 6018922.864
H42: Initial | I42: =I7 -> 1450
H43: Maint | I43: =I8 -> 1450
H44: AUD | I44: 100000
H45: No of Contract | I45: =B20 -> 4150.981286
C47: 2019-06-01 | F47: Futures | G47: Gain/Loss | H47: Cumulative gain/loss | I47: Margin Balance | J47: Margin Call | K47: New Margin Balance
F48: 0.782565 | I48: =I42*I45 -> 6018922.864 | J48: 0 | K48: =I48+J48 -> 6018922.864
E49: 19Q2 | F49: =0.77946*(1+$D$6) -> 0.77946 | G49: 0 | I49: =K48+G49 -> 6018922.864 | K49: =I49+J49 -> 6018922.864
E50: 19Q3 | F50: =0.7784549*(1+$D$6) -> 0.7784549 | G50: 0 | I50: =K49+G50 -> 6018922.864 | K50: =K49 -> 6018922.864
E51: 19Q4 | F51: =0.77658*(1+$D$6) -> 0.77658 | G51: =IF(($D$6=0),0,($F$49-F48)*$I$9*$I$10) -> 0 | H51: =H50+G51 -> 0 | I51: =K50+G51 -> 6018922.864 | J51: =IF((I51>$I$8),($I$48-I51),IF($D$6=0,0,($I$48-I51))) -> 0 | K51: =I51+J51 -> 6018922.864
I55: Total Margin Calls Required | J55: =SUM(J49:J53) -> 0
I56: Ending Margin Balance | J56: =K51 -> 6018922.864
I57: Reinbursement | J57: =N15 -> -6018922.864
I58: Cumulative Margin Balance | J58: =J56+J57 -> 0

Sheet Gold Future Margins
A3: Assumptions | F3: Margin Call Caluclations for Short Call on GC Gold 100 Future Contracts | N3: Summarised Tables
F4: (Initial & Maintenance Margins were sourced from Bloomberg Terminals on the 29th September 2017)
A6: Assumtions for Calculations of Margins | D6: =IF('Monte Carlo Simulation (1000)'!$A$2="Simulate",'Monte Carlo Simulation (1000)'!$C$5,Scenario!$E$15) -> 0 | E6: Gold Price Change | H6: Initial | I6: 4900 | M6: Margin Calls Required USD | P6: Margin Calls Reinbursed USD
H7: Maint | I7: 4900 | M7: 18Q2 | N7: =J21 -> 0 | P7: 18Q2 | R7: =IF((N7<0),N7*-1,N7) -> 0
A8: Hedging Percentage: | B8: =Scenario!$E$8 -> 0.8 | H8: Troy Ounce | I8: 100 | M8: 18Q3 | N8: =$J$41 -> 0 | P8: 18Q3 | R8: =IF((N8<0),N8*-1,N8) -> 0
H9: No of Contract | I9: =$B$20 -> 1853.71875 | M9: 18Q4 | N9: =$J$61 -> 0 | P9: 18Q4 | R9: 0
A10: Spot Revenue to Hedge AUD: | M10: 19Q1 | N10: =$J$82 -> 0 | P10: 19Q1 | R10: 0
A11: 18Q2 | B11: 0 | F11: Futures | G11: Gain/Loss | H11: Cumulative gain/loss | I11: Margin Balance | J11: Margin Call | K11: New Margin Balance | M11: 19Q2 | N11: =$J$102 -> 0 | P11: 19Q2 | R11: 0
A12: 18Q3 | B12: 0 | F12: 1284.8 | I12: =I6*I9 -> 9083221.875 | M12: 19Q3 | N12: =$J$122 -> 0 | P12: 19Q3 | R12: 0
A13: 18Q4 | B13: 0 | C13: 2017-12-01 | E13: 18Q2 | F13: =Assumptions!$D$18*(1+$D$6) -> 1284.8 | G13: =IF(($D$6=0),0,(F12-$F$13)*$I$8*$I$9) -> 0 | H13: =G13 -> 0 | I13: =I12+G13 -> 9083221.875 | J13: =IF((I13>$I$7),(0),($I$12-I13)) -> 0 | K13: =I13+J13 -> 9083221.875 | M13: 19Q4 | N13: =$J$142 -> 0 | P13: 19Q4 | R13: 0
A14: 19Q1 | B14: 0 | C14: 2017-12-01 | E14: 18Q3 | F14: =Assumptions!$E$20*(1+$D$6) -> 1290.9 | G14: 0 | H14: 0 | I14: =IF(K$13=$I$12,$I$12,K13+G14) -> 9083221.875 | J14: =IF((I14>$I$7),0,($I$6-I14)) -> 0 | K14: 9083221.875 | M14: Sum of Margin Payment | N14: =SUM(N7:N13) -> 0 | P14: Sum | R14: 0
A15: 19Q2 | B15: 0 | C15: 2 | E15: 18Q4 | F15: =Assumptions!$D$21*(1+$D$6) -> 1296.8 | G15: 0 | H15: =G15+G14 -> 0 | I15: =K14+G15 -> 9083221.875 | J15: 0 | K15: 9083221.875
A16: 19Q3 | B16: 0 | E16: 19Q1 | F16: =Assumptions!$E$23*(1+$D$6) -> 1302.65 | G16: 0 | H16: =G16+G15 -> 0 | I16: =K15+G16 -> 9083221.875 | J16: 0 | K16: 9083221.875
A17: 19Q4 | B17: 0 | E17: 19Q2 | F17: =Assumptions!$D$24*(1+$D$6) -> 1308.6 | G17: 0 | H17: =G17+G16 -> 0 | I17: =K16+G17 -> 9083221.875 | J17: 0 | K17: 9083221.875 | M17: Initial Margin of Contracts | P17: Initial Margin of Contracts
E18: 19Q3 | F18: =Assumptions!$E$26*(1+$D$6) -> 1314.65 | G18: 0 | H18: =G18+G17 -> 0 | I18: =K17+G18 -> 9083221.875 | J18: 0 | K18: 9083221.875
A19: Contracts Needed to Hedge per Period: | E19: 19Q4 | F19: =Assumptions!$D$27*(1+$D$6) -> 1320.9 | G19: 0 | H19: =G19+G18 -> 0 | I19: =K18+G19 -> 9083221.875 | J19: 0 | K19: 9083221.875 | M19: 18Q2 | N19: =-I6*I9 -> -9083221.875 | P19: 18Q2 | R19: =N19*-1 -> 9083221.875
A20: 18Q2 | B20: =Assumptions!$J$44*B8*1000/I8 -> 1853.71875 | M20: 18Q3 | N20: =-I26*I29 -> -8856141.328 | P20: 18Q3 | R20: 8856141.328
A21: 18Q3 | B21: =Assumptions!$K$44*B8*1000/100 -> 1807.375781 | I21: Total Margin Calls Required | J21: =SUM(J13:J19) -> 0 | M21: 18Q4 | N21: =-I46*I49 -> -8634737.795 | P21: 18Q4 | R21: 8634737.795
A22: 18Q4 | B22: =Assumptions!$L$44*B8*1000/100 -> 1762.191387 | I22: Initial Margin Balance | J22: =R26 -> 61359663.62 | M22: 19Q1 | N22: =-I67*I70 -> -8418869.35 | P22: 19Q1 | R22: 8418869.35
A23: 19Q1 | B23: =Assumptions!$M$44*B8*1000/100 -> 1718.136602 | I23: Reinburesement of Initial Margin | J23: =$N$19 -> -9083221.875 | M23: 19Q2 | N23: =-I87*I90 -> -8208397.616 | P23: 19Q2 | R23: 8208397.616
A24: 19Q2 | B24: =Assumptions!$N$44*B8*1000/100 -> 1675.183187 | I24: Cumulative Initiall Margin Bal | J24: =J22+J23 -> 52276441.75 | M24: 19Q3 | N24: =-I107*I110 -> -8395187.676 | P24: 19Q3 | R24: 8395187.676
A25: 19Q3 | B25: =Assumptions!$O$44*B8*1000/100 -> 1713.303607 | M25: 19Q4 | N25: =-I127*I130 -> -9763107.984 | P25: 19Q4 | R25: 9763107.984
A26: 19Q4 | B26: =Assumptions!$P$44*B8*1000/100 -> 1992.471017 | H26: Initial | I26: =I6 -> 4900 | M26: Sum Paid @ 18Q2 | N26: =SUM(N19:N25) -> -61359663.62 | P26: Sum Paid @ 18Q2 | R26: 61359663.62
H27: Maint | I27: =I7 -> 4900
H28: Troy Ounce | I28: 100
H29: No of Contract | I29: =$B$21 -> 1807.375781
F31: Futures | G31: Gain/Loss | H31: Cumulative gain/loss | I31: Margin Balance | J31: Margin Call | K31: New Margin Balance
C32: 2018-03-01 | F32: =Assumptions!$E$20 -> 1290.9 | G32: =(F33-F32)*$I$9 -> -11307.68438 | I32: =I26*I29 -> 8856141.328
C33: 2018-03-01 | E33: 18Q2 | F33: =Assumptions!$D$18*(1+$D$6) -> 1284.8 | G33: =IF((C34=3),0,IF((F33>F32),-(F33-F32)*$I$9*$I$8,(F32-F33)*$I$9*$I$8)) -> 0 | H33: =G33*$I$8 -> 0 | I33: =I32+G33 -> 8856141.328 | J33: =IF((I33>$I$7),0,($I$6-I33)) -> 0 | K33: =I33+J33 -> 8856141.328
C34: 3 | E34: 18Q3 | F34: =Assumptions!$E$20*(1+$D$6) -> 1290.9 | G34: =IF(($D$6=0),0,-(F33-$F$32)*$I$29*$I$8) -> 0 | H34: =(G34+G33) -> 0 | I34: =K33+G34 -> 8856141.328 | J34: =IF((I34>$I$7),(0),($I$32-I34)) -> 0 | K34: 8856141.328
E35: 18Q4 | F35: =Assumptions!$D$21*(1+$D$6) -> 1296.8 | G35: 0 | H35: 0 | I35: =IF($K$34=$I$32,$I$32,K34+G35) -> 8856141.328 | J35: 0 | K35: 8856141.328
E36: 19Q1 | F36: =Assumptions!$E$23*(1+$D$6) -> 1302.65 | G36: 0 | H36: 0 | I36: =K35+G36 -> 8856141.328 | J36: 0 | K36: 8856141.328
E37: 19Q2 | F37: =Assumptions!$D$24*(1+$D$6) -> 1308.6 | G37: 0 | H37: 0 | I37: =K36+G37 -> 8856141.328 | J37: 0 | K37: 8856141.328
E38: 19Q3 | F38: =Assumptions!$E$26*(1+$D$6) -> 1314.65 | G38: 0 | H38: 0 | I38: =K37+G38 -> 8856141.328 | J38: 0 | K38: 8856141.328
E39: 19Q4 | F39: =Assumptions!$D$27*(1+$D$6) -> 1320.9 | G39: 0 | H39: 0 | I39: =K38+G39 -> 8856141.328 | J39: 0 | K39: 8856141.328
I41: Total Margin Calls Required | J41: =SUM(J33:J39) -> 0
I42: Intial Margin Balance | J42: =J24 -> 52276441.75
I43: Reinbursement | J43: =N20 -> -8856141.328
I44: Cumulative Initiall Margin Bal | J44: =J42+J43 -> 43420300.42
H46: Initial | I46: =I6 -> 4900
H47: Maint | I47: =I7 -> 4900
H48: Troy Ounce | I48: 100
H49: No of Contract | I49: =$B$22 -> 1762.191387
F51: Futures | G51: Gain/Loss | H51: Cumulative gain/loss | I51: Margin Balance | J51: Margin Call | K51: New Margin Balance
C52: 2018-06-01 | F52: =Assumptions!$D$21 -> 1296.8 | G52: =(F53-F52)*$I$9 -> -22244.625 | I52: =I46*I49 -> 8634737.795
C53: 2018-06-01 | E53: 18Q2 | F53: =Assumptions!$D$18*(1+$D$6) -> 1284.8 | G53: =IF((C54=4),0,IF((F53>F52),-(F53-F52)*$I$9*$I$8,(F52-F53)*$I$9*$I$8)) -> 0 | H53: =G53*$I$8 -> 0 | I53: =I52+G53 -> 8634737.795 | J53: =IF((I53>$I$7),0,($I$6-I53)) -> 0 | K53: =I53+J53 -> 8634737.795
C54: 4 | E54: 18Q3 | F54: =Assumptions!$E$20*(1+$D$6) -> 1290.9 | G54: =IF((C54=4),0,-(F54-F53)*$I$29*$I$8) -> 0 | H54: =G54+G53 -> 0 | I54: =K53+G54 -> 8634737.795 | J54: 0 | K54: 8634737.795
E55: 18Q4 | F55: =Assumptions!$D$21*(1+$D$6) -> 1296.8 | G55: =IF(($D$6=0),0,-($F$53-$F$52)*$I$29*$I$8) -> 0 | H55: =G55+G54 -> 0 | I55: =K54+G55 -> 8634737.795 | J55: =IF((I55>I52),(0),($I$52-I55)) -> 0 | K55: 8634737.795
E56: 19Q1 | F56: =Assumptions!$E$23*(1+$D$6) -> 1302.65 | G56: 0 | H56: 0 | I56: =IF($K$55=$I$52,$I$52,K55+G56) -> 8634737.795 | J56: 0 | K56: 8634737.795
E57: 19Q2 | F57: =Assumptions!$D$24*(1+$D$6) -> 1308.6 | G57: 0 | H57: =G57+G56 -> 0 | I57: =IF($K$55=$I$52,$I$52,K56+G57) -> 8634737.795 | J57: 0 | K57: 8634737.795
E58: 19Q3 | F58: =Assumptions!$E$26*(1+$D$6) -> 1314.65 | G58: 0 | H58: =G58+G57 -> 0 | I58: =IF($K$55=$I$52,$I$52,K57+G58) -> 8634737.795 | J58: 0 | K58: 8634737.795
E59: 19Q4 | F59: =Assumptions!$D$27*(1+$D$6) -> 1320.9 | G59: 0 | H59: =G59+G58 -> 0 | I59: =IF($K$55=$I$52,$I$52,K58+G59) -> 8634737.795 | J59: 0 | K59: 8634737.795
I61: Total Margin Calls Required | J61: =SUM(J53:J59) -> 0
I63: Initial Margin Balance | J63: =J44 -> 43420300.42
I64: Reinbursement | J64: =N21 -> -8634737.795
I65: Cumulative Initial Margin Bal | J65: =J63+J64 -> 34785562.63
H67: Initial | I67: =I6 -> 4900
H68: Maint | I68: =I7 -> 4900
H69: Troy Ounce | I69: 100
H70: No of Contract | I70: =$B$23 -> 1718.136602
F72: Futures | G72: Gain/Loss | H72: Cumulative gain/loss | I72: Margin Balance | J72: Margin Call | K72: New Margin Balance
C73: 2018-09-01 | F73: =Assumptions!$E$23 -> 1302.65 | G73: =(F74-F73)*$I$9 -> -33088.87969 | I73: =I67*I70 -> 8418869.35
C74: 2018-09-01 | E74: 18Q2 | F74: =Assumptions!$D$18*(1+$D$6) -> 1284.8 | G74: =IF((C75=1),0,IF((F74>F73),-(F74-F73)*$I$9*$I$8,(F73-F74)*$I$9*$I$8)) -> 0 | H74: =G74*$I$8 -> 0 | I74: =I73+G74 -> 8418869.35 | J74: =IF((I74>$I$7),0,($I$6-I74)) -> 0 | K74: =I74+J74 -> 8418869.35
C75: 1 | E75: 18Q3 | F75: =Assumptions!$E$20*(1+$D$6) -> 1290.9 | G75: =IF((C75=1),0,-(F75-F74)*$I$70*$I$8) -> 0 | H75: =G75+G74 -> 0 | I75: =K74+G75 -> 8418869.35 | J75: 0 | K75: 8418869.35
E76: 18Q4 | F76: =Assumptions!$D$21*(1+$D$6) -> 1296.8 | G76: =IF((C75=1),0,-(F76-F75)*$I$29*$I$8) -> 0 | H76: =G76+G75 -> 0 | I76: =K75+G76 -> 8418869.35 | J76: 0 | K76: 8418869.35
E77: 19Q1 | F77: =Assumptions!$E$23*(1+$D$6) -> 1302.65 | G77: =IF(($D$6=0),0,-($F$74-$F$73)*$I$29*$I$8) -> 0 | H77: =G77+G76 -> 0 | I77: =K76+G77 -> 8418869.35 | J77: =IF((I77>$I$7),(0),($I$73-I77)) -> 0 | K77: 8418869.35
E78: 19Q2 | F78: =Assumptions!$D$24*(1+$D$6) -> 1308.6 | G78: 0 | H78: 0 | I78: =IF($K$77=$I$73,$I$73,K77+G78) -> 8418869.35 | J78: 0 | K78: 8418869.35
E79: 19Q3 | F79: =Assumptions!$E$26*(1+$D$6) -> 1314.65 | G79: 0 | H79: 0 | I79: =IF($K$77=$I$73,$I$73,K78+G79) -> 8418869.35 | J79: 0 | K79: 8418869.35
E80: 19Q4 | F80: =Assumptions!$D$27*(1+$D$6) -> 1320.9 | G80: 0 | H80: =G80+G79 -> 0 | I80: =IF($K$77=$I$73,$I$73,K79+G80) -> 8418869.35 | J80: 0 | K80: 8418869.35
I82: Total Margin Calls Required | J82: =SUM(J74:J80) -> 0
I83: Ending Margin Balance | J83: =J65 -> 34785562.63
I84: Reinburesment | J84: =N22 -> -8418869.35
I85: Cumulative Initial Margin Bal | J85: =J83+J84 -> 26366693.28
H87: Initial | I87: =I67 -> 4900
H88: Maint | I88: =I68 -> 4900
H89: Troy Ounce | I89: 100
H90: No of Contract | I90: =$B$24 -> 1675.183187
F92: Futures | G92: Gain/Loss | H92: Cumulative gain/loss | I92: Margin Balance | J92: Margin Call | K92: New Margin Balance
C93: 2018-12-01 | F93: =Assumptions!$D$24 -> 1308.6 | G93: =(F94-F93)*$I$9 -> -44118.50625 | I93: =I87*I90 -> 8208397.616
C94: 2018-12-01 | E94: 18Q2 | F94: =Assumptions!$D$18*(1+$D$6) -> 1284.8 | G94: =IF((C95=2),0,IF((F94>F93),-(F94-F93)*$I$9*$I$8,(F93-F94)*$I$9*$I$8)) -> 0 | H94: =G94*$I$8 -> 0 | I94: =I93+G94 -> 8208397.616 | J94: =IF((I94>$I$7),0,($I$6-I94)) -> 0 | K94: =I94+J94 -> 8208397.616
C95: 2 | E95: 18Q3 | F95: =Assumptions!$E$20*(1+$D$6) -> 1290.9 | G95: =IF(($C$95=2),0,-(F95-F94)*$I$70*$I$8) -> 0 | H95: =G95+G94 -> 0 | I95: =K94+G95 -> 8208397.616 | J95: 0 | K95: 8208397.616
E96: 18Q4 | F96: =Assumptions!$D$21*(1+$D$6) -> 1296.8 | G96: =IF(($C$95=2),0,-(F96-F95)*$I$70*$I$8) -> 0 | H96: 0 | I96: 8208397.616 | J96: 0 | K96: 8208397.616
E97: 19Q1 | F97: =Assumptions!$E$23*(1+$D$6) -> 1302.65 | G97: =IF(($C$95=2),0,-(F97-F96)*$I$70*$I$8) -> 0 | H97: 0 | I97: 8208397.616 | J97: 0 | K97: 8208397.616
E98: 19Q2 | F98: =Assumptions!$D$24*(1+$D$6) -> 1308.6 | G98: =IF(($D$6=0),0,-($F$94-$F$93)*$I$29*$I$8) -> 0 | H98: 0 | I98: 8208397.616 | J98: =IF((I98>$I$7),(0),($I$93-I98)) -> 0 | K98: 8208397.616
E99: 19Q3 | F99: =Assumptions!$E$26*(1+$D$6) -> 1314.65 | G99: 0 | H99: 0 | I99: =IF($K$98=$I$93,$I$93,K98+G99) -> 8208397.616 | J99: 0 | K99: 8208397.616
E100: 19Q4 | F100: =Assumptions!$D$27*(1+$D$6) -> 1320.9 | G100: 0 | H100: 0 | I100: 8208397.616 | J100: 0 | K100: 8208397.616
I102: Total Margin Calls Required | J102: =SUM(J94:J100) -> 0
I103: Ending Margin Balance | J103: =J85 -> 26366693.28
I104: Reinbursement | J104: =N23 -> -8208397.616
I105: Cumulative Initial Margin Bal | J105: =J103+J104 -> 18158295.66
H107: Initial | I107: =I87 -> 4900
H108: Maint | I108: =I88 -> 4900
H109: Troy Ounce | I109: 100
H110: No of Contract | I110: =$B$25 -> 1713.303607
F112: Futures | G112: Gain/Loss | H112: Cumulative gain/loss | I112: Margin Balance | J112: Margin Call | K112: New Margin Balance
C113: 2019-03-01 | F113: =Assumptions!$E$26 -> 1314.65 | G113: =(F114-F113)*$I$9 -> -55333.50469 | I113: =I107*I110 -> 8395187.676
C114: 2019-03-01 | E114: 18Q2 | F114: =Assumptions!$D$18*(1+$D$6) -> 1284.8 | G114: =IF(($C$115=3),0,IF((F114>F113),-(F114-F113)*$I$9*$I$8,(F113-F114)*$I$9*$I$8)) -> 0 | H114: =G114*$I$8 -> 0 | I114: =I113+G114 -> 8395187.676 | J114: =IF((I114>$I$7),0,($I$6-I114)) -> 0 | K114: =I114+J114 -> 8395187.676
C115: 3 | E115: 18Q3 | F115: =Assumptions!$E$20*(1+$D$6) -> 1290.9 | G115: =IF(($C$115=3),0,-(F115-F114)*$I$70*$I$8) -> 0 | H115: =G115+G114 -> 0 | I115: =K114+G115 -> 8395187.676 | J115: 0 | K115: 8395187.676
E116: 18Q4 | F116: =Assumptions!$D$21*(1+$D$6) -> 1296.8 | G116: =IF(($C$115=3),0,-(F116-F115)*$I$70*$I$8) -> 0 | H116: =G116+G115 -> 0 | I116: 8395187.676 | J116: 0 | K116: 8395187.676
E117: 19Q1 | F117: =Assumptions!$E$23*(1+$D$6) -> 1302.65 | G117: =IF(($C$115=3),0,-(F117-F116)*$I$70*$I$8) -> 0 | H117: =G117+G116 -> 0 | I117: 8395187.676 | J117: 0 | K117: 8395187.676
E118: 19Q2 | F118: =Assumptions!$D$24*(1+$D$6) -> 1308.6 | G118: =IF(($C$115=3),0,-(F118-F117)*$I$70*$I$8) -> 0 | H118: =G118+G117 -> 0 | I118: 8395187.676 | J118: 0 | K118: 8395187.676
E119: 19Q3 | F119: =Assumptions!$E$26*(1+$D$6) -> 1314.65 | G119: =IF(($D$6=0),0,-($F$114-$F$113)*$I$29*$I$8) -> 0 | H119: =G119+G118 -> 0 | I119: 8395187.676 | J119: =IF((I119>$I$7),(0),($I$113-I119)) -> 0 | K119: 8395187.676
E120: 19Q4 | F120: =Assumptions!$D$27*(1+$D$6) -> 1320.9 | G120: 0 | H120: 0 | I120: 8395187.676 | J120: 0 | K120: 8395187.676
I122: Total Margin Calls Required | J122: =SUM(J114:J120) -> 0
I123: Ending Margin Balance | J123: =J105 -> 18158295.66
I124: Reinbursements | J124: =N24 -> -8395187.676
I125: Cumulative Initial Margin Bal | J125: =J123+J124 -> 9763107.984
H127: Initial | I127: =I107 -> 4900
H128: Maint | I128: =I108 -> 4900
H129: Troy Ounce | I129: 100
H130: No of Contract | I130: =$B$26 -> 1992.471017
F132: Futures | G132: Gain/Loss | H132: Cumulative gain/loss | I132: Margin Balance | J132: Margin Call | K132: New Margin Balance
C133: 2019-06-01 | F133: =Assumptions!$D$27 -> 1320.9 | G133: =(F134-F133)*$I$9 -> -66919.24688 | I133: =I127*I130 -> 9763107.984
C134: 2019-06-01 | E134: 18Q2 | F134: =Assumptions!$D$18*(1+$D$6) -> 1284.8 | G134: =IF(($C$135=4),0,IF((F134>F133),-(F134-F133)*$I$9*$I$8,(F133-F134)*$I$9*$I$8)) -> 0 | H134: =G134*$I$8 -> 0 | I134: =I133+G134 -> 9763107.984 | J134: =IF((I134>$I$7),0,($I$6-I134)) -> 0 | K134: =I134+J134 -> 9763107.984
C135: 4 | E135: 18Q3 | F135: =Assumptions!$E$20*(1+$D$6) -> 1290.9 | G135: =IF(($C$135=4),0,-(F135-F134)*$I$70*$I$8) -> 0 | H135: =G135+G134 -> 0 | I135: =K134+G135 -> 9763107.984 | J135: 0 | K135: 9763107.984
E136: 18Q4 | F136: =Assumptions!$D$21*(1+$D$6) -> 1296.8 | G136: =IF(($C$135=4),0,-(F136-F135)*$I$70*$I$8) -> 0 | H136: 0 | I136: 9763107.984 | J136: 0 | K136: 9763107.984
E137: 19Q1 | F137: =Assumptions!$E$23*(1+$D$6) -> 1302.65 | G137: =IF(($C$135=4),0,-(F137-F136)*$I$70*$I$8) -> 0 | H137: 0 | I137: 9763107.984 | J137: 0 | K137: 9763107.984
E138: 19Q2 | F138: =Assumptions!$D$24*(1+$D$6) -> 1308.6 | G138: =IF(($C$135=4),0,-(F138-F137)*$I$70*$I$8) -> 0 | H138: 0 | I138: 9763107.984 | J138: 0 | K138: 9763107.984
E139: 19Q3 | F139: =Assumptions!$E$26*(1+$D$6) -> 1314.65 | G139: =IF(($C$135=4),0,-(F139-F138)*$I$70*$I$8) -> 0 | H139: 0 | I139: 9763107.984 | J139: 0 | K139: 9763107.984
E140: 19Q4 | F140: =Assumptions!$D$27*(1+$D$6) -> 1320.9 | G140: =IF(($D$6=0),0,-($F$134-$F$133)*$I$29*$I$8) -> 0 | H140: 0 | I140: 9763107.984 | J140: =IF((I140>$I$7),(0),($I$133-I140)) -> 0 | K140: 9763107.984
I142: Total Margin Calls Required | J142: =SUM(J134:J140) -> 0
I143: Ending Margin Balance | J143: =J125 -> 9763107.984
I144: Reinbursement | J144: =N25 -> -9763107.984
I145: Cumulative Initial Margin Bal | J145: =J143+J144 -> 1.676380634e-08

Sheet Monte Carlo Simulation (1000)
A1: Drop Down Menu! | L1: Unhedged
A2: Don't Simulate | B2: <---- Change to Simulate for a similuation for the HEDGED mine | L2: Don't Simulate | M2: <---- Change to Simulate for a similuation for the UNHEDGED mine
A3: Monte Carlo Simulation Assumptions | L3: Monte Carlo Simulation Assumptions
A5: Gold Price | B5: =RANDBETWEEN(-20,20) -> -13 | C5: =B5/100 -> -0.13 | L5: Gold Price | M5: =RANDBETWEEN(-20,20) -> -20 | N5: =M5/100 -> -0.2
A6: Forex | B6: =RANDBETWEEN(-20,20) -> 14 | C6: =B6/100 -> 0.14 | L6: Forex | M6: =M5*0.8 -> -16 | N6: =M6/100 -> -0.16
A7: Interest Rates | B7: =RANDBETWEEN(-20,20) -> 6 | C7: =B7/100 -> 0.06 | L7: Interest Rates | M7: =RANDBETWEEN(-20,20) -> 20 | N7: =M7/100 -> 0.2
A8: Assumptions for CFaR (Hedged) | L8: Assumptions for CFaR (Hedged)
A9: Cash on Hand @ 19Q4 | C9: =E23 -> 76.99418928 | L9: Cash on Hand @ 19Q4 | N9: ='Base Model'!$M$60 -> -3.105987926
A10: Confidence Interval | C10: 0.95 | L10: Confidence Interval | N10: 0.95
A11: Standard Deviation | C11: =$C$16 -> 1.208527065e-12 | L11: Standard Deviation | N11: =$N$16 -> 3.021317664e-14
A12: Expected Cash on Hand | C12: =$C$15 -> 76.99418928 | L12: Expected Cash on Hand | N12: =$N$15 -> -3.105987926
A13: Value at Risk (Var, in Millions) | C13: =_xlfn.NORM.INV((1-$C$10),$C$12,$C$11) -> 76.99418928 | L13: Value at Risk (Var, in Millions) | N13: =_xlfn.NORM.INV((1-$N$10),$N$12,$N$11) -> -3.105987926
A14: Monte Carlo Simulation (Hedged) | L14: Monte Carlo Simulation (Hedged)
A15: Mean | C15: =AVERAGE(B27:B10026) -> 76.99418928 | L15: Mean | N15: =AVERAGE(N27:N1026) -> -3.105987926
A16: Standard Deviation | C16: =_xlfn.STDEV.S(B27:B10026) -> 1.208527065e-12 | L16: Standard Deviation | N16: =_xlfn.STDEV.S(N27:N1026) -> 3.021317664e-14
A17: Min | C17: =MIN(B27:B10026) -> 76.99418928 | L17: Min | N17: =MIN(N27:N1026) -> -3.105987926
A18: Max | C18: =MAX(B27:B10026) -> 76.99418928 | L18: Max | N18: =MAX(N27:N1026) -> -3.105987926
A19: Median | C19: =MEDIAN(B27:B10026) -> 76.99418928 | L19: Median | N19: =MEDIAN(N27:N1026) -> -3.105987926
A20: Spread | C20: =C17+C18 -> 153.9883786 | L20: Spread | N20: =N17+N18 -> -6.211975853
A21: Increments | C21: =C20/20 -> 7.699418928 | D21: low as 31% | L21: Increments | N21: =N20/20 -> -0.3105987926
A22: Average Loss | C22: =SUMIF(B27:B1026,"<0")/COUNTIF(B27:B1026,"<0") ->  | D22: Cash @ End of 19Q4 | L22: Average Loss | N22: =SUMIF(N27:N1026,"<0")/COUNTIF(N27:N1026,"<0") -> -3.105987926 | O22: Cash @ End of 19Q4
A23: Prob of Loss | C23: =COUNTIFS(B27:B10026,"<0")/1000 -> 0 | D23: 19Q4 | E23: ='Hedged Model'!M105 -> 76.99418928 | L23: Prob of Loss | N23: =COUNTIFS(N27:N1026,"<0")/1000 -> 1 | O23: 19Q4 | P23: =N26 -> -3.105987926
A25: Hedged | M25: Unhedged
A26: # of Scenarios | B26: =$E$23 -> 76.99418928 | D26: Bins | E26: Frequency (Monte) | H26: Bins | I26: Frequency for CFaR | M26: # of Scenarios | N26: ='Base Model'!M60 -> -3.105987926
A27: 1 | B27: 76.99418928 | D27: =ROUND(-692.7134463916,0) -> -693 | E27: =FREQUENCY(B27:B1026,D27:D131) -> 0 | H27: =ROUND(-692.7134463916,0) -> -693 | I27: =(IF(D27<=$C$13,E27,NA())) -> 0 | J27: =IF(D27>=$C$13,E27,NA()) ->  | M27: 1 | N27: -3.105987926
A28: 2 | B28: 76.99418928 | D28: =ROUND(D27+$C$21,0) -> -685 | E28: 0 | H28: =ROUND(H27+$C$21,0) -> -685 | I28: 0 | M28: 2 | N28: -3.105987926
A29: 3 | B29: 76.99418928 | D29: -677 | E29: 0 | H29: -677 | I29: 0 | M29: 3 | N29: -3.105987926
A30: 4 | B30: 76.99418928 | D30: -669 | E30: 0 | H30: -669 | I30: 0 | M30: 4 | N30: -3.105987926
A31: 5 | B31: 76.99418928 | D31: -661 | E31: 0 | H31: -661 | I31: 0 | M31: 5 | N31: -3.105987926
A32: 6 | B32: 76.99418928 | D32: -653 | E32: 0 | H32: -653 | I32: 0 | M32: 6 | N32: -3.105987926
A33: 7 | B33: 76.99418928 | D33: -645 | E33: 0 | H33: -645 | I33: 0 | M33: 7 | N33: -3.105987926
A34: 8 | B34: 76.99418928 | D34: -637 | E34: 0 | H34: -637 | I34: 0 | M34: 8 | N34: -3.105987926
A35: 9 | B35: 76.99418928 | D35: -629 | E35: 0 | H35: -629 | I35: 0 | M35: 9 | N35: -3.105987926
A36: 10 | B36: 76.99418928 | D36: -621 | E36: 0 | H36: -621 | I36: 0 | M36: 10 | N36: -3.105987926
A37: 11 | B37: 76.99418928 | D37: -613 | E37: 0 | H37: -613 | I37: 0 | M37: 11 | N37: -3.105987926
A38: 12 | B38: 76.99418928 | D38: -605 | E38: 0 | H38: -605 | I38: 0 | M38: 12 | N38: -3.105987926
A39: 13 | B39: 76.99418928 | D39: -597 | E39: 0 | H39: -597 | I39: 0 | M39: 13 | N39: -3.105987926
A40: 14 | B40: 76.99418928 | D40: -589 | E40: 0 | H40: -589 | I40: 0 | M40: 14 | N40: -3.105987926
A41: 15 | B41: 76.99418928 | D41: -581 | E41: 0 | H41: -581 | I41: 0 | M41: 15 | N41: -3.105987926
A42: 16 | B42: 76.99418928 | D42: -573 | E42: 0 | H42: -573 | I42: 0 | M42: 16 | N42: -3.105987926
A43: 17 | B43: 76.99418928 | D43: -565 | E43: 0 | H43: -565 | I43: 0 | M43: 17 | N43: -3.105987926
A44: 18 | B44: 76.99418928 | D44: -557 | E44: 0 | H44: -557 | I44: 0 | M44: 18 | N44: -3.105987926
A45: 19 | B45: 76.99418928 | D45: -549 | E45: 0 | H45: -549 | I45: 0 | M45: 19 | N45: -3.105987926
A46: 20 | B46: 76.99418928 | D46: -541 | E46: 0 | H46: -541 | I46: 0 | M46: 20 | N46: -3.105987926
A47: 21 | B47: 76.99418928 | D47: -533 | E47: 0 | H47: -533 | I47: 0 | M47: 21 | N47: -3.105987926
A48: 22 | B48: 76.99418928 | D48: -525 | E48: 0 | H48: -525 | I48: 0 | M48: 22 | N48: -3.105987926
A49: 23 | B49: 76.99418928 | D49: -517 | E49: 0 | H49: -517 | I49: 0 | M49: 23 | N49: -3.105987926
A50: 24 | B50: 76.99418928 | D50: -509 | E50: 0 | H50: -509 | I50: 0 | M50: 24 | N50: -3.105987926
A51: 25 | B51: 76.99418928 | D51: -501 | E51: 0 | H51: -501 | I51: 0 | M51: 25 | N51: -3.105987926
A52: 26 | B52: 76.99418928 | D52: -493 | E52: 0 | H52: -493 | I52: 0 | M52: 26 | N52: -3.105987926
A53: 27 | B53: 76.99418928 | D53: -485 | E53: 0 | H53: -485 | I53: 0 | M53: 27 | N53: -3.105987926
A54: 28 | B54: 76.99418928 | D54: -477 | E54: 0 | H54: -477 | I54: 0 | M54: 28 | N54: -3.105987926
A55: 29 | B55: 76.99418928 | D55: -469 | E55: 0 | H55: -469 | I55: 0 | M55: 29 | N55: -3.105987926
A56: 30 | B56: 76.99418928 | D56: -461 | E56: 0 | H56: -461 | I56: 0 | M56: 30 | N56: -3.105987926
A57: 31 | B57: 76.99418928 | D57: -453 | E57: 0 | H57: -453 | I57: 0 | M57: 31 | N57: -3.105987926
A58: 32 | B58: 76.99418928 | D58: -445 | E58: 0 | H58: -445 | I58: 0 | M58: 32 | N58: -3.105987926
A59: 33 | B59: 76.99418928 | D59: -437 | E59: 0 | H59: -437 | I59: =(IF(D59<=$C$13,E59,NA())) -> 0 | J59: =IF(D59>=$C$13,E59,NA()) ->  | M59: 33 | N59: -3.105987926
A60: 34 | B60: 76.99418928 | D60: =ROUND(D59+$C$21,0) -> -429 | E60: 0 | H60: =ROUND(H59+$C$21,0) -> -429 | I60: 0 | M60: 34 | N60: -3.105987926
A61: 35 | B61: 76.99418928 | D61: -421 | E61: 0 | H61: -421 | I61: 0 | M61: 35 | N61: -3.105987926
A62: 36 | B62: 76.99418928 | D62: -413 | E62: 0 | H62: -413 | I62: 0 | M62: 36 | N62: -3.105987926
A63: 37 | B63: 76.99418928 | D63: -405 | E63: 0 | H63: -405 | I63: 0 | M63: 37 | N63: -3.105987926
A64: 38 | B64: 76.99418928 | D64: -397 | E64: 0 | H64: -397 | I64: 0 | M64: 38 | N64: -3.105987926
A65: 39 | B65: 76.99418928 | D65: -389 | E65: 0 | H65: -389 | I65: 0 | M65: 39 | N65: -3.105987926
A66: 40 | B66: 76.99418928 | D66: -381 | E66: 0 | H66: -381 | I66: 0 | M66: 40 | N66: -3.105987926
A67: 41 | B67: 76.99418928 | D67: -373 | E67: 0 | H67: -373 | I67: 0 | M67: 41 | N67: -3.105987926
A68: 42 | B68: 76.99418928 | D68: -365 | E68: 0 | H68: -365 | I68: 0 | M68: 42 | N68: -3.105987926
A69: 43 | B69: 76.99418928 | D69: -357 | E69: 0 | H69: -357 | I69: 0 | M69: 43 | N69: -3.105987926
A70: 44 | B70: 76.99418928 | D70: -349 | E70: 0 | H70: -349 | I70: 0 | M70: 44 | N70: -3.105987926
A71: 45 | B71: 76.99418928 | D71: -341 | E71: 0 | H71: -341 | I71: 0 | M71: 45 | N71: -3.105987926
A72: 46 | B72: 76.99418928 | D72: -333 | E72: 0 | H72: -333 | I72: 0 | M72: 46 | N72: -3.105987926
A73: 47 | B73: 76.99418928 | D73: -325 | E73: 0 | H73: -325 | I73: 0 | M73: 47 | N73: -3.105987926
A74: 48 | B74: 76.99418928 | D74: -317 | E74: 0 | H74: -317 | I74: 0 | M74: 48 | N74: -3.105987926
A75: 49 | B75: 76.99418928 | D75: -309 | E75: 0 | H75: -309 | I75: 0 | M75: 49 | N75: -3.105987926
A76: 50 | B76: 76.99418928 | D76: -301 | E76: 0 | H76: -301 | I76: 0 | M76: 50 | N76: -3.105987926
A77: 51 | B77: 76.99418928 | D77: -293 | E77: 0 | H77: -293 | I77: 0 | M77: 51 | N77: -3.105987926
A78: 52 | B78: 76.99418928 | D78: -285 | E78: 0 | H78: -285 | I78: 0 | M78: 52 | N78: -3.105987926
A79: 53 | B79: 76.99418928 | D79: -277 | E79: 0 | H79: -277 | I79: 0 | M79: 53 | N79: -3.105987926
A80: 54 | B80: 76.99418928 | D80: -269 | E80: 0 | H80: -269 | I80: 0 | M80: 54 | N80: -3.105987926
A81: 55 | B81: 76.99418928 | D81: -261 | E81: 0 | H81: -261 | I81: 0 | M81: 55 | N81: -3.105987926
A82: 56 | B82: 76.99418928 | D82: -253 | E82: 0 | H82: -253 | I82: 0 | M82: 56 | N82: -3.105987926
A83: 57 | B83: 76.99418928 | D83: -245 | E83: 0 | H83: -245 | I83: 0 | M83: 57 | N83: -3.105987926
A84: 58 | B84: 76.99418928 | D84: -237 | E84: 0 | H84: -237 | I84: 0 | M84: 58 | N84: -3.105987926
A85: 59 | B85: 76.99418928 | D85: -229 | E85: 0 | H85: -229 | I85: 0 | M85: 59 | N85: -3.105987926
A86: 60 | B86: 76.99418928 | D86: -221 | E86: 0 | H86: -221 | I86: 0 | M86: 60 | N86: -3.105987926
A87: 61 | B87: 76.99418928 | D87: -213 | E87: 0 | H87: -213 | I87: 0 | M87: 61 | N87: -3.105987926
A88: 62 | B88: 76.99418928 | D88: -205 | E88: 0 | H88: -205 | I88: 0 | M88: 62 | N88: -3.105987926
A89: 63 | B89: 76.99418928 | D89: -197 | E89: 0 | H89: -197 | I89: 0 | M89: 63 | N89: -3.105987926
A90: 64 | B90: 76.99418928 | D90: -189 | E90: 0 | H90: -189 | I90: 0 | M90: 64 | N90: -3.105987926
A91: 65 | B91: 76.99418928 | D91: -181 | E91: 0 | H91: -181 | I91: =(IF(D91<=$C$13,E91,NA())) -> 0 | J91: =IF(D91>=$C$13,E91,NA()) ->  | M91: 65 | N91: -3.105987926
A92: 66 | B92: 76.99418928 | D92: =ROUND(D91+$C$21,0) -> -173 | E92: 0 | H92: =ROUND(H91+$C$21,0) -> -173 | I92: 0 | M92: 66 | N92: -3.105987926
A93: 67 | B93: 76.99418928 | D93: -165 | E93: 0 | H93: -165 | I93: 0 | M93: 67 | N93: -3.105987926
A94: 68 | B94: 76.99418928 | D94: -157 | E94: 0 | H94: -157 | I94: 0 | M94: 68 | N94: -3.105987926
A95: 69 | B95: 76.99418928 | D95: -149 | E95: 0 | H95: -149 | I95: 0 | M95: 69 | N95: -3.105987926
A96: 70 | B96: 76.99418928 | D96: -141 | E96: 0 | H96: -141 | I96: 0 | M96: 70 | N96: -3.105987926
A97: 71 | B97: 76.99418928 | D97: -133 | E97: 0 | H97: -133 | I97: 0 | M97: 71 | N97: -3.105987926
A98: 72 | B98: 76.99418928 | D98: -125 | E98: 0 | H98: -125 | I98: 0 | M98: 72 | N98: -3.105987926
A99: 73 | B99: 76.99418928 | D99: -117 | E99: 0 | H99: -117 | I99: 0 | M99: 73 | N99: -3.105987926
A100: 74 | B100: 76.99418928 | D100: -109 | E100: 0 | H100: -109 | I100: 0 | M100: 74 | N100: -3.105987926
A101: 75 | B101: 76.99418928 | D101: -101 | E101: 0 | H101: -101 | I101: 0 | M101: 75 | N101: -3.105987926
A102: 76 | B102: 76.99418928 | D102: -93 | E102: 0 | H102: -93 | I102: 0 | M102: 76 | N102: -3.105987926
A103: 77 | B103: 76.99418928 | D103: -85 | E103: 0 | H103: -85 | I103: 0 | M103: 77 | N103: -3.105987926
A104: 78 | B104: 76.99418928 | D104: -77 | E104: 0 | H104: -77 | I104: 0 | M104: 78 | N104: -3.105987926
A105: 79 | B105: 76.99418928 | D105: -69 | E105: 0 | H105: -69 | I105: 0 | M105: 79 | N105: -3.105987926
A106: 80 | B106: 76.99418928 | D106: -61 | E106: 0 | H106: -61 | I106: 0 | M106: 80 | N106: -3.105987926
A107: 81 | B107: 76.99418928 | D107: -53 | E107: 0 | H107: -53 | I107: 0 | M107: 81 | N107: -3.105987926
A108: 82 | B108: 76.99418928 | D108: -45 | E108: 0 | H108: -45 | I108: 0 | M108: 82 | N108: -3.105987926
A109: 83 | B109: 76.99418928 | D109: -37 | E109: 0 | H109: -37 | I109: 0 | M109: 83 | N109: -3.105987926
A110: 84 | B110: 76.99418928 | D110: -29 | E110: 0 | H110: -29 | I110: 0 | M110: 84 | N110: -3.105987926
A111: 85 | B111: 76.99418928 | D111: -21 | E111: 0 | H111: -21 | I111: 0 | M111: 85 | N111: -3.105987926
A112: 86 | B112: 76.99418928 | D112: -13 | E112: 0 | H112: -13 | I112: 0 | M112: 86 | N112: -3.105987926
A113: 87 | B113: 76.99418928 | D113: -5 | E113: 0 | H113: -5 | I113: 0 | M113: 87 | N113: -3.105987926
A114: 88 | B114: 76.99418928 | D114: 3 | E114: 0 | H114: 3 | I114: 0 | M114: 88 | N114: -3.105987926
A115: 89 | B115: 76.99418928 | D115: 11 | E115: 0 | H115: 11 | I115: 0 | M115: 89 | N115: -3.105987926
A116: 90 | B116: 76.99418928 | D116: 19 | E116: 0 | H116: 19 | I116: 0 | M116: 90 | N116: -3.105987926
A117: 91 | B117: 76.99418928 | D117: 27 | E117: 0 | H117: 27 | I117: 0 | M117: 91 | N117: -3.105987926
A118: 92 | B118: 76.99418928 | D118: 35 | E118: 0 | H118: 35 | I118: 0 | M118: 92 | N118: -3.105987926
A119: 93 | B119: 76.99418928 | D119: 43 | E119: 0 | H119: 43 | I119: 0 | M119: 93 | N119: -3.105987926
A120: 94 | B120: 76.99418928 | D120: 51 | E120: 0 | H120: 51 | I120: 0 | M120: 94 | N120: -3.105987926
A121: 95 | B121: 76.99418928 | D121: 59 | E121: 0 | H121: 59 | I121: 0 | M121: 95 | N121: -3.105987926
A122: 96 | B122: 76.99418928 | D122: 67 | E122: 0 | H122: 67 | I122: 0 | M122: 96 | N122: -3.105987926
A123: 97 | B123: 76.99418928 | D123: 75 | E123: 0 | H123: 75 | I123: =(IF(D123<=$C$13,E123,NA())) -> 0 | J123: =IF(D123>=$C$13,E123,NA()) ->  | M123: 97 | N123: -3.105987926
A124: 98 | B124: 76.99418928 | D124: =ROUND(D123+$C$21,0) -> 83 | E124: 1000 | H124: =ROUND(H123+$C$21,0) -> 83 | J124: 1000 | M124: 98 | N124: -3.105987926
A125: 99 | B125: 76.99418928 | D125: 91 | E125: 0 | H125: 91 | J125: 0 | M125: 99 | N125: -3.105987926
A126: 100 | B126: 76.99418928 | D126: 99 | E126: 0 | H126: 99 | J126: 0 | M126: 100 | N126: -3.105987926
A127: 101 | B127: 76.99418928 | D127: 107 | E127: 0 | H127: 107 | J127: 0 | M127: 101 | N127: -3.105987926
A128: 102 | B128: 76.99418928 | D128: 115 | E128: 0 | H128: 115 | J128: 0 | M128: 102 | N128: -3.105987926
A129: 103 | B129: 76.99418928 | D129: 123 | E129: 0 | H129: 123 | J129: 0 | M129: 103 | N129: -3.105987926
A130: 104 | B130: 76.99418928 | D130: 131 | E130: 0 | H130: 131 | J130: 0 | M130: 104 | N130: -3.105987926
A131: 105 | B131: 76.99418928 | D131: 139 | E131: 0 | H131: 139 | J131: 0 | M131: 105 | N131: -3.105987926
A132: 106 | B132: 76.99418928 | M132: 106 | N132: -3.105987926
A133: 107 | B133: 76.99418928 | M133: 107 | N133: -3.105987926
A134: 108 | B134: 76.99418928 | M134: 108 | N134: -3.105987926
A135: 109 | B135: 76.99418928 | M135: 109 | N135: -3.105987926
A136: 110 | B136: 76.99418928 | M136: 110 | N136: -3.105987926
A137: 111 | B137: 76.99418928 | M137: 111 | N137: -3.105987926
A138: 112 | B138: 76.99418928 | M138: 112 | N138: -3.105987926
A139: 113 | B139: 76.99418928 | M139: 113 | N139: -3.105987926
A140: 114 | B140: 76.99418928 | M140: 114 | N140: -3.105987926
A141: 115 | B141: 76.99418928 | M141: 115 | N141: -3.105987926
A142: 116 | B142: 76.99418928 | M142: 116 | N142: -3.105987926
A143: 117 | B143: 76.99418928 | M143: 117 | N143: -3.105987926
A144: 118 | B144: 76.99418928 | M144: 118 | N144: -3.105987926
A145: 119 | B145: 76.99418928 | M145: 119 | N145: -3.105987926
A146: 120 | B146: 76.99418928 | M146: 120 | N146: -3.105987926
A147: 121 | B147: 76.99418928 | M147: 121 | N147: -3.105987926
A148: 122 | B148: 76.99418928 | M148: 122 | N148: -3.105987926
A149: 123 | B149: 76.99418928 | M149: 123 | N149: -3.105987926
A150: 124 | B150: 76.99418928 | M150: 124 | N150: -3.105987926
A151: 125 | B151: 76.99418928 | M151: 125 | N151: -3.105987926
A152: 126 | B152: 76.99418928 | M152: 126 | N152: -3.105987926
A153: 127 | B153: 76.99418928 | M153: 127 | N153: -3.105987926
A154: 128 | B154: 76.99418928 | M154: 128 | N154: -3.105987926
A155: 129 | B155: 76.99418928 | M155: 129 | N155: -3.105987926
A156: 130 | B156: 76.99418928 | M156: 130 | N156: -3.105987926
A157: 131 | B157: 76.99418928 | M157: 131 | N157: -3.105987926
A158: 132 | B158: 76.99418928 | M158: 132 | N158: -3.105987926
A159: 133 | B159: 76.99418928 | M159: 133 | N159: -3.105987926
A160: 134 | B160: 76.99418928 | M160: 134 | N160: -3.105987926
A161: 135 | B161: 76.99418928 | M161: 135 | N161: -3.105987926
A162: 136 | B162: 76.99418928 | M162: 136 | N162: -3.105987926
A163: 137 | B163: 76.99418928 | M163: 137 | N163: -3.105987926
A164: 138 | B164: 76.99418928 | M164: 138 | N164: -3.105987926
A165: 139 | B165: 76.99418928 | M165: 139 | N165: -3.105987926
A166: 140 | B166: 76.99418928 | M166: 140 | N166: -3.105987926
A167: 141 | B167: 76.99418928 | M167: 141 | N167: -3.105987926
A168: 142 | B168: 76.99418928 | M168: 142 | N168: -3.105987926
A169: 143 | B169: 76.99418928 | M169: 143 | N169: -3.105987926
A170: 144 | B170: 76.99418928 | M170: 144 | N170: -3.105987926
A171: 145 | B171: 76.99418928 | M171: 145 | N171: -3.105987926
A172: 146 | B172: 76.99418928 | M172: 146 | N172: -3.105987926
A173: 147 | B173: 76.99418928 | M173: 147 | N173: -3.105987926
A174: 148 | B174: 76.99418928 | M174: 148 | N174: -3.105987926
A175: 149 | B175: 76.99418928 | M175: 149 | N175: -3.105987926
A176: 150 | B176: 76.99418928 | M176: 150 | N176: -3.105987926
A177: 151 | B177: 76.99418928 | M177: 151 | N177: -3.105987926
A178: 152 | B178: 76.99418928 | M178: 152 | N178: -3.105987926
A179: 153 | B179: 76.99418928 | M179: 153 | N179: -3.105987926
A180: 154 | B180: 76.99418928 | M180: 154 | N180: -3.105987926
A181: 155 | B181: 76.99418928 | M181: 155 | N181: -3.105987926
A182: 156 | B182: 76.99418928 | M182: 156 | N182: -3.105987926
A183: 157 | B183: 76.99418928 | M183: 157 | N183: -3.105987926
A184: 158 | B184: 76.99418928 | M184: 158 | N184: -3.105987926
A185: 159 | B185: 76.99418928 | M185: 159 | N185: -3.105987926
A186: 160 | B186: 76.99418928 | M186: 160 | N186: -3.105987926
A187: 161 | B187: 76.99418928 | M187: 161 | N187: -3.105987926
A188: 162 | B188: 76.99418928 | M188: 162 | N188: -3.105987926
A189: 163 | B189: 76.99418928 | M189: 163 | N189: -3.105987926
A190: 164 | B190: 76.99418928 | M190: 164 | N190: -3.105987926
A191: 165 | B191: 76.99418928 | M191: 165 | N191: -3.105987926
A192: 166 | B192: 76.99418928 | M192: 166 | N192: -3.105987926
A193: 167 | B193: 76.99418928 | M193: 167 | N193: -3.105987926
A194: 168 | B194: 76.99418928 | M194: 168 | N194: -3.105987926
A195: 169 | B195: 76.99418928 | M195: 169 | N195: -3.105987926
A196: 170 | B196: 76.99418928 | M196: 170 | N196: -3.105987926
A197: 171 | B197: 76.99418928 | M197: 171 | N197: -3.105987926
A198: 172 | B198: 76.99418928 | M198: 172 | N198: -3.105987926
A199: 173 | B199: 76.99418928 | M199: 173 | N199: -3.105987926
A200: 174 | B200: 76.99418928 | M200: 174 | N200: -3.105987926
A201: 175 | B201: 76.99418928 | M201: 175 | N201: -3.105987926
A202: 176 | B202: 76.99418928 | M202: 176 | N202: -3.105987926
... 824 more rows

Sheet Charts from Monte Carlo

Sheet Random Data
A1: Forwards
A3: Currencies | B3: XAU | C3: USD | E3: via | F3: --
A4: Market | I4: Forwards
A5: Spot Source | B5: BGN
A6: Fwd Source | B6: CMPN | I6: Currencies | J6: AUD | K6: USD | M6: via | N6: --
I7: Market
A8: Forward Curve | I8: Spot Source | J8: BGN
B9: Dates | C9: Rates Bid/Ask | E9: Forwards Bid/Ask | I9: Fwd Source | J9: BGN
A10: ON | B10: 10/02/2017
A11: TN | B11: 10/03/2017 | I11: Forward Curve
A12: SP | B12: 10/03/2017 | C12: 1277.52 | D12: 1281.98 | E12: 1277.52 | F12: 1281.98 | J12: Dates | K12: Points Bid/Ask | M12: Forwards Bid/Ask | O12: Midpoint | R12: ADZ7 COMB CURNCY AUDUSD Crncy Fut
A13: SN | B13: 10/04/2017 | C13: 1.38 | D13: 1.53 | E13: 1277.569 | F13: 1282.0345 | I13: ON | J13: 10/03/2017 | K13: -0.25 | L13: -0.198 | M13: 0.7829243 | N13: 0.7839345 | O13: =(M13+N13)/2 -> 0.7834294 | R13: AUD/USD Future
A14: 1W | B14: 10/10/2017 | C14: 1.38 | D14: 1.53 | E14: 1277.8628 | F14: 1282.3614 | I14: TN | J14: 10/04/2017 | K14: -0.095 | L14: -0.045 | M14: 0.7829045 | N14: 0.7839095 | O14: =(M14+N14)/2 -> 0.783407 | R14: Date
A15: 2W | B15: 10/17/2017 | C15: 1.4 | D15: 1.55 | E15: 1278.2155 | F15: 1282.7527 | I15: SP | J15: 10/04/2017 | K15: 0.7829 | L15: 0.7839 | M15: 0.7829 | N15: 0.7839 | O15: 0.7834 | R15: 2017-10-01 | S15: 0.7842
A16: 3W | B16: 10/24/2017 | C16: 1.41 | D16: 1.53 | E16: 1278.5678 | F16: 1283.1209 | I16: SN | J16: 10/05/2017 | K16: -0.131 | L16: -0.065 | M16: 0.7828869 | N16: 0.7838935 | O16: 0.7833902 | R16: 2017-11-01 | S16: 0.784
A17: 1M | B17: 11/03/2017 | C17: 1.41 | D17: 1.51 | E17: 1279.0711 | F17: 1283.6469 | I17: 1W | J17: 10/11/2017 | K17: -0.7 | L17: -0.55 | M17: 0.78283 | N17: 0.783845 | O17: 0.7833375 | R17: 2017-12-01 | S17: 0.7836
A18: 2M | B18: 12/04/2017 | C18: 1.42 | D18: 1.52 | E18: 1280.6442 | F18: 1285.3359 | I18: 2W | J18: 10/18/2017 | K18: -1.26 | L18: -1.12 | M18: 0.782774 | N18: 0.783788 | O18: 0.783281 | R18: 2018-01-01 | S18: 0.7834
A19: 3M | B19: 01/03/2018 | C19: 1.43 | D19: 1.53 | E19: 1282.1886 | F19: 1286.9925 | I19: 3W | J19: 10/25/2017 | K19: -1.87 | L19: -1.75 | M19: 0.782713 | N19: 0.783725 | O19: 0.783219 | R19: 2018-03-01 | S19: 0.7829
A20: 4M | B20: 02/05/2018 | C20: 1.44 | D20: 1.54 | E20: 1283.9106 | F20: 1288.838 | I20: 1M | J20: 11/06/2017 | K20: -3.05 | L20: -2.85 | M20: 0.782595 | N20: 0.783615 | O20: 0.783105 | R20: 2018-06-01 | S20: 0.7821
A21: 5M | B21: 03/05/2018 | C21: 1.45 | D21: 1.55 | E21: 1285.3716 | F21: 1290.4039 | I21: 2M | J21: 12/04/2017 | K21: -5.91 | L21: -5.59 | M21: 0.782309 | N21: 0.783341 | O21: 0.782825 | R21: 2018-09-01 | S21: 0.7812
A22: 6M | B22: 04/03/2018 | C22: 1.45 | D22: 1.55 | E22: 1286.8849 | F22: 1292.0257 | I22: 3M | J22: 01/04/2018 | K22: -8.52 | L22: -8.18 | M22: 0.782048 | N22: 0.783082 | O22: 0.782565 | R22: 2018-12-01 | S22: 0.7803
A23: 9M | B23: 07/03/2018 | C23: 1.5 | D23: 1.6 | E23: 1292.0518 | F23: 1297.5347 | I23: 4M | J23: 02/05/2018 | K23: -12.26 | L23: -9.51 | M23: 0.781674 | N23: 0.782949 | O23: 0.7823115 | R23: 2019-03-01 | S23: 0.7793
A24: 1Y | B24: 10/03/2018 | C24: 1.54 | D24: 1.64 | E24: 1297.4671 | F24: 1303.2965 | I24: 5M | J24: 03/05/2018 | K24: -13.4 | L24: -12.9 | M24: 0.78156 | N24: 0.78261 | O24: 0.782085 | R24: 2019-06-01 | S24: 0.7784
A25: 15M | B25: 01/03/2019 | C25: 1.59 | D25: 1.73 | E25: 1303.2784 | F25: 1310.1109 | I25: 6M | J25: 04/04/2018 | K25: -15.91 | L25: -15.04 | M25: 0.781309 | N25: 0.782396 | O25: 0.7818525
A26: 18M | B26: 04/03/2019 | C26: 1.62 | D26: 1.79 | E26: 1308.9633 | F26: 1316.7772 | I26: 9M | J26: 07/05/2018 | K26: -23.55 | L26: -22.55 | M26: 0.780545 | N26: 0.781645 | O26: 0.781095
A27: 2Y | B27: 10/03/2019 | C27: 1.66 | D27: 1.86 | E27: 1320.5227 | F27: 1330.332 | I27: 1Y | J27: 10/04/2018 | K27: -31.81 | L27: -30.29 | M27: 0.779719 | N27: 0.780871 | O27: 0.780295
A28: 3Y | B28: 10/05/2020 | I28: 15M | J28: 01/04/2019 | K28: -40.88 | L28: -37.92 | M28: 0.778812 | N28: 0.780108 | O28: 0.77946
A29: 4Y | B29: 10/04/2021 | I29: 18M | J29: 04/04/2019 | K29: -50.3 | L29: -46.72 | M29: 0.77787 | N29: 0.779228 | O29: 0.778549
A30: 5Y | B30: 10/03/2022 | I30: 2Y | J30: 10/04/2019 | K30: -72.79 | L30: -63.61 | M30: 0.775621 | N30: 0.777539 | O30: 0.77658
A31: 6Y | B31: 10/03/2023 | I31: 3Y | J31: 10/06/2020 | K31: -125.75 | L31: -113.25 | M31: 0.770325 | N31: 0.772575 | O31: 0.77145
A32: 7Y | B32: 10/03/2024 | I32: 4Y | J32: 10/05/2021 | K32: -190.61 | L32: -170.61 | M32: 0.763839 | N32: 0.766839 | O32: 0.765339
A33: 8Y | B33: 10/03/2025 | I33: 5Y | J33: 10/04/2022 | K33: -268 | L33: -228 | M33: 0.7561 | N33: 0.7611 | O33: 0.7586
A34: 9Y | B34: 10/05/2026 | I34: 6Y | J34: 10/04/2023 | K34: -351.4 | L34: -291.4 | M34: 0.74776 | N34: 0.75476 | O34: 0.75126
A35: 10Y | B35: 10/04/2027 | I35: 7Y | J35: 10/04/2024 | K35: -414.84 | L35: -367.34 | M35: 0.741416 | N35: 0.747166 | O35: 0.744291
A36: 15Y | B36: 10/04/2032 | I36: 8Y | J36: 10/07/2025 | K36: -528.22 | L36: -438.18 | M36: 0.730078 | N36: 0.740082 | O36: 0.73508
A37: 20Y | B37: 10/05/2037 | I37: 9Y | J37: 10/06/2026 | K37: -624.42 | L37: -514.38 | M37: 0.720458 | N37: 0.732462 | O37: 0.72646
A38: 25Y | B38: 10/03/2042 | I38: 10Y | J38: 10/05/2027 | K38: -689.24 | L38: -599.24 | M38: 0.713976 | N38: 0.723976 | O38: 0.718976
A39: 30Y | B39: 10/03/2047 | I39: 15Y | J39: 10/05/2032 | K39: -1129.35 | L39: -1102.63 | M39: 0.669965 | N39: 0.673637 | O39: 0.671801
I40: 20Y | J40: 10/06/2037 | K40: -1419.86 | L40: -1392.62 | M40: 0.640914 | N40: 0.644638 | O40: 0.642776
I41: 25Y | J41: 10/07/2042 | K41: -1703.01 | L41: -1673.38 | M41: 0.612599 | N41: 0.616562 | O41: 0.6145805
I42: 30Y | J42: 10/04/2047 | K42: -1871.36 | L42: -1828.9 | M42: 0.595764 | N42: 0.60101 | O42: 0.598387
